Workbook

Sheet 1. Utility_Info_
AB1: Algoma Power Inc.
AB2: Atikokan Hydro Inc.
AB3: Attawapiskat Power Corporation
AB4: Bluewater Power Distribution Corp.
AB5: Brant County Power
AB6: Brantford Power Inc.
AB7: Burlington Hydro Inc.
AB8: Cambridge and North Dumfries Hydro
AB9: Canadian Niagara Power Inc. – Eastern Ontario Power/Fort Erie/Port Colborne
AB10: Centre Wellington Hydro Ltd.
AB11: Chapleau Public Utilities Corporation
AB12: COLLUS Power Corp.
F13: Version | G13: 5 | AB13: Cooperative Hydro Embrun Inc.
AB14: E.L.K. Energy Inc.
C15: Utility Name | D15: Hearst Power Distribution Co. Ltd. | AB15: Enersource Hydro Mississauga Inc.
AB16: Entegrus Powerlines Inc.
C17: Assigned EB Number | D17: EB-2014-0080 | AB17: ENWIN Utilities Ltd.
AB18: Erie Thames Powerlines Corp.
C19: Name and Title | D19: Jessy Richard | AB19: Espanola Regional Hydro Distribution Corporation
AB20: Essex Powerlines Corporation
C21: Phone Number | D21: 705-372-2815 | AB21: Festival Hydro Inc.
AB22: Fort Albany Power Corporation
C23: Email Address | D23: jrichard@hearstpower.com | AB23: Fort Frances Power Corporation
AB24: Greater Sudbury Hydro Inc.
C25: Date | D25: 2015-03-05 | AB25: Grimsby Power Inc.
AB26: Guelph Hydro Electric Systems Inc.
C27: Last COS Re-based Year | D27: 2010 | AB27: Haldimand County Hydro Inc.
AB28: Halton Hills Hydro Inc.
AB29: Hearst Power Distribution Co. Ltd.
A30: Note: Drop-down lists are shaded blue; Input cells are shaded green.
AB32: Horizon Utilities Corporation
AB33: Hydro 2000 Inc.
AB34: Hydro Hawkesbury Inc.
AB35: Hydro One Brampton Networks Inc.
AB36: Hydro One Networks Inc.
AB37: Hydro One Remote Communities Inc.
AB38: Hydro Ottawa Limited
AB39: Innisfil Hydro Dist. Systems Limited
AB40: Kashechewan Power Corporation
AB41: Kenora Hydro Electric Corporation Ltd.
AB42: Kingston Hydro Corporation
AB43: Kitchener-Wilmot Hydro Inc.
AB44: Lakefront Utilities Inc.
AB45: Lakeland Power Distribution Ltd.
AB46: London Hydro Inc.
AB47: Midland Power Utility Corporation
AB48: Milton Hydro Distribution Inc.
AB49: Newmarket – Tay Power Distribution Ltd.
AB50: Niagara Peninsula Energy Inc.
AB51: Niagara-on-the-Lake Hydro Inc.
AB52: Norfolk Power Distribution Ltd.
AB53: North Bay Hydro Distribution Limited
AB54: Northern Ontario Wires Inc.
AB55: Oakville Hydro Distribution Inc.
AB56: Orangeville Hydro Limited
AB57: Orillia Power Distribution Corp.
AB58: Oshawa PUC Networks Inc.
AB59: Ottawa River Power Corporation
AB60: Parry Sound Power Corporation
AB61: Peterborough Distribution Inc.
AB62: PowerStream Inc.
AB63: PUC Distribution Inc.
AB64: Renfrew Hydro Inc.
AB65: Rideau St. Lawrence Distribution Inc.
AB66: St. Thomas Energy Inc.
AB67: Sioux Lookout Hydro Inc.
AB68: Thunder Bay Hydro Electricity Distribution
AB69: Tillsonburg Hydro Inc.
AB70: Toronto Hydro-Electric System Limited
AB71: Veridian Connections Inc.
AB72: Wasaga Distribution Inc.
AB73: Waterloo North Hydro Inc.
AB74: Welland Hydro Electric System Corp.
AB75: Wellington North Power Inc.
AB76: West Coast Huron Energy Inc.
AB77: Westario Power Inc.
AB78: Whitby Hydro Electric Corporation
AB79: Woodstock Hydro Services Inc.

Sheet 2. Smart_Meter_Costs
B13: Distributors must enter all incremental costs related to their smart meter program and all revenues recovered to date in the applicable tabs except for those costs (and associated revenues) for which the Board has approved on a final basis, i.e. capital costs have been included in rate base and OM&A costs in revenue requirement. For 2014, distributors that have completed their deployments by the end of 2013 are not expected to enter any capital costs. However, for OM&A, regardless of whether a distributor has deployments in 2014, distributors should enter the forecasted OM&A for 2014 for all smart meters in service.
G18: 2006 | I18: 2007 | K18: 2008 | M18: 2009 | O18: 2010 | Q18: 2011 | S18: 2012 | U18: 2013 | W18: 2014 | Y18: 2015 | AA18: Total
B19: Smart Meter Capital Cost and Operational Expense Data | G19: Audited Actual | I19: Audited Actual | K19: Audited Actual | M19: Audited Actual | O19: Audited Actual | Q19: Audited Actual | S19: Audited Actual | U19: Audited Actual | W19: Forecast | Y19: Forecast
C21: Smart Meter Installation Plan
C23: Actual/Planned number of Smart Meters installed during the Calendar Year
C25: Residential | M25: 2280 | AA25: =SUM(G25,I25,K25,M25,O25,Q25,S25,U25,W25,Y25) -> 2280
C27: General Service < 50 kW | M27: 433 | O27: 11 | Q27: 10 | S27: 17 | AA27: =SUM(G27,I27,K27,M27,O27,Q27,S27,U27,W27,Y27) -> 471
C29: Actual/Planned number of Smart Meters installed (Residential and GS < 50 kW only) | G29: =G25+G27 -> 0 | I29: =I25+I27 -> 0 | K29: =K25+K27 -> 0 | M29: =M25+M27 -> 2713 | O29: =O25+O27 -> 11 | Q29: =Q25+Q27 -> 10 | S29: =S25+S27 -> 17 | U29: =U25+U27 -> 0 | W29: =W25+W27 -> 0 | Y29: =Y25+Y27 -> 0 | AA29: =SUM(G29,I29,K29,M29,O29,Q29,S29,U29,W29,Y29) -> 2751
C31: Percentage of Residential and GS < 50 kW Smart Meter Installations Completed | G31: =IF($AA29=0,0,G29/$AA29) -> 0 | I31: =IF(G31=100%, 0, IF(ISERROR(SUM(G29:I29)/$AA29),0,SUM(G29:I29)/$AA29)) -> 0 | K31: =IF(I31=100%, 0, IF(ISERROR(SUM(G29:K29)/$AA29), 0, SUM(G29:K29)/$AA29)) -> 0 | M31: =IF(K31=100%,0,IF(ISERROR(SUM(G29:M29)/$AA29),0,SUM(G29:M29)/$AA29)) -> 0.9861868411 | O31: =IF(M31=100%,0,IF(ISERROR(SUM(G29:O29)/$AA29),0,SUM(G29:O29)/$AA29)) -> 0.9901853871 | Q31: =IF(O31=100%,0,IF(ISERROR(SUM(G29:Q29)/$AA29),0,SUM(G29:Q29)/$AA29)) -> 0.9938204289 | S31: =IF(Q31=100%,0,IF(ISERROR(SUM(G29:S29)/$AA29),0,SUM(G29:S29)/$AA29)) -> 1 | U31: =IF(S31=100%,0,IF(ISERROR(SUM(I29:U29)/$AA29),0,SUM(I29:U29)/$AA29)) -> 0 | W31: =IF(U31=100%,0,IF(ISERROR(SUM(K29:W29)/$AA29),0,SUM(K29:W29)/$AA29)) -> 1 | Y31: =IF(W31=100%,0,IF(ISERROR(SUM(M29:Y29)/$AA29),0,SUM(M29:Y29)/$AA29)) -> 0 | AA31: =IF($AA29=0,"",AA29/$AA29) -> 1
C33: Actual/Planned number of GS > 50 kW meters installed | M33: 36 | O33: 1 | Q33: 2 | S33: 1 | AA33: =SUM(G33,I33,K33,M33,O33,Q33,S33,U33,W33,Y33) -> 40
C35: Other (please identify) | D35: Intermediate | Q35: 1 | S35: 1 | AA35: =SUM(G35,I35,K35,M35,O35,Q35,S35,U35,W35,Y35) -> 2
C37: Total Number of Smart Meters installed or planned to be installed | G37: =SUM(G29,G33,G35) -> 0 | I37: =SUM(I29,I33,I35) -> 0 | K37: =SUM(K29,K33,K35) -> 0 | M37: =SUM(M29,M33,M35) -> 2749 | O37: =SUM(O29,O33,O35) -> 12 | Q37: =SUM(Q29,Q33,Q35) -> 13 | S37: =SUM(S29,S33,S35) -> 19 | U37: =SUM(U29,U33,U35) -> 0 | W37: =SUM(W29,W33,W35) -> 0 | Y37: =SUM(Y29,Y33,Y35) -> 0 | AA37: =SUM(G37,I37,K37,M37,O37,Q37,S37,U37,W37,Y37) -> 2793
B39: 1 | C39: Capital Costs
E40: Asset Type
C41: 1.1 ADVANCED METERING COMMUNICATION DEVICE (AMCD) | E41: Asset type must be selected to enable calculations | G41: =IF(ISBLANK(G19),"",G19) -> Audited Actual | I41: =IF(ISBLANK(I19),"",I19) -> Audited Actual | K41: =IF(ISBLANK(K19),"",K19) -> Audited Actual | M41: =IF(ISBLANK(M19),"",M19) -> Audited Actual | O41: =IF(ISBLANK(O19),"",O19) -> Audited Actual | Q41: =IF(ISBLANK(Q19),"",Q19) -> Audited Actual | S41: =IF(ISBLANK(S19),"",S19) -> Audited Actual | U41: =IF(ISBLANK(U19),"",U19) -> Audited Actual | W41: =IF(ISBLANK(W19),"",W19) -> Forecast | Y41: =IF(ISBLANK(Y19),"",Y19) -> Forecast
C42: 1.1.1 Smart Meters (may include new meters and modules, etc.) | E42: Smart Meter | M42: =222835.49+10843.23 -> 233678.72 | O42: =45.88+588.99+156.64+5388.09+665.52-79.4-158.72-79.36-79.36-79.36-79.36-79.36+4499.19-(5*71.45)-142.9+11588.36 -> 21797.6 | Q42: =859.36-(8*71.45)+16150+13376+8056+5120.5-(5*71.61)+3749.04-3423.27+13376+929.65 -> 57263.63 | S42: =890.17+3410.8+1756.27+6080 -> 12137.24 | W42: 1536 | Y42: 1625 | AA42: =SUM(G42,I42,K42,M42,O42,Q42,S42,U42,W42,Y42) -> 328038.19
C44: 1.1.2 Installation Costs (may include socket kits, labour, vehicle, benefits, etc.) | E44: Smart Meter | M44: =4251.37+54+23.05+2879.78+72+18.24+117.39+369.61+70.19+9357.64+16.99+369.61+2588.33+1009.9+64+64+64+64+64+14.03+335.76+8305.37+4106.99+117.72 -> 34397.97 | O44: =3020.14+19.01+270+1944+1944+2418.74+4023.47+100.44+27.92+14.87+95+80.68+43.25+576.41+3.34+13.44+3322.72+134.28+33.57+1043.29+67.14+4930.12-832.96 -> 23292.87 | Q44: =33.57+23931.65+335.7+239.53+3313.18+174.6+20.14+14.38+58.23+388.42+10.28+4996.14+2232.3+995.66 -> 36743.78 | S44: =48.04+4593.8 -> 4641.84 | W44: 1000 | Y44: 1000 | AA44: =SUM(G44,I44,K44,M44,O44,Q44,S44,U44,W44,Y44) -> 101076.46
C46: 1.1.3a Workforce Automation Hardware (may include fieldwork handhelds, barcode hardware, etc.) | E46: Computer Hardware | M46: =4310.72-48.39 -> 4262.33 | O46: =715.81+18.14 -> 733.95 | AA46: =SUM(G46,I46,K46,M46,O46,Q46,S46,U46,W46,Y46) -> 4996.28
C48: 1.1.3b Workforce Automation Software (may include fieldwork handhelds, barcode hardware, etc.) | E48: Computer Software | AA48: =SUM(G48,I48,K48,M48,O48,Q48,S48,U48,W48,Y48) -> 0
C50: Total Advanced Metering Communications Devices (AMCD) | G50: =SUM(G42,G44,G46,G48) -> 0 | I50: =SUM(I42,I44,I46,I48) -> 0 | K50: =SUM(K42,K44,K46,K48) -> 0 | M50: =SUM(M42,M44,M46,M48) -> 272339.02 | O50: =SUM(O42,O44,O46,O48) -> 45824.42 | Q50: =SUM(Q42,Q44,Q46,Q48) -> 94007.41 | S50: =SUM(S42,S44,S46,S48) -> 16779.08 | U50: =SUM(U42,U44,U46,U48) -> 0 | W50: =SUM(W42,W44,W46,W48) -> 2536 | Y50: =SUM(Y42,Y44,Y46,Y48) -> 2625 | AA50: =AA42+AA44+AA46+AA48 -> 434110.93
E52: =E40 -> Asset Type
C53: 1.2 ADVANCED METERING REGIONAL COLLECTOR (AMRC) (includes LAN) | G53: =G41 -> Audited Actual | I53: =I41 -> Audited Actual | K53: =K41 -> Audited Actual | M53: =M41 -> Audited Actual | O53: =O41 -> Audited Actual | Q53: =Q41 -> Audited Actual | S53: =S41 -> Audited Actual | U53: =U41 -> Audited Actual | W53: =W41 -> Forecast | Y53: =Y41 -> Forecast
C54: 1.2.1 Collectors | E54: Other Equipment | M54: =156857.65+1674 -> 158531.65 | AA54: =SUM(G54,I54,K54,M54,O54,Q54,S54,U54,W54,Y54) -> 158531.65
C56: 1.2.2 Repeaters (may include radio licence, etc.) | E56: Other Equipment | M56: =119.88+76.84+13.44+341.55 -> 551.71 | AA56: =SUM(G56,I56,K56,M56,O56,Q56,S56,U56,W56,Y56) -> 551.71
C58: 1.2.3 Installation (may include meter seals and rings, collector computer hardware, etc.) | E58: Other Equipment | AA58: =SUM(G58,I58,K58,M58,O58,Q58,S58,U58,W58,Y58) -> 0
C60: Total Advanced Metering Regional Collector (AMRC) (Includes LAN) | G60: =G54+G56+G58 -> 0 | I60: =I54+I56+I58 -> 0 | K60: =K54+K56+K58 -> 0 | M60: =M54+M56+M58 -> 159083.36 | O60: =O54+O56+O58 -> 0 | Q60: =Q54+Q56+Q58 -> 0 | S60: =S54+S56+S58 -> 0 | U60: =U54+U56+U58 -> 0 | W60: =W54+W56+W58 -> 0 | Y60: =Y54+Y56+Y58 -> 0 | AA60: =AA54+AA56+AA58 -> 159083.36
E62: =E52 -> Asset Type
C63: 1.3 ADVANCED METERING CONTROL COMPUTER (AMCC) | G63: =G53 -> Audited Actual | I63: =I53 -> Audited Actual | K63: =K53 -> Audited Actual | M63: =M53 -> Audited Actual | O63: =O53 -> Audited Actual | Q63: =Q53 -> Audited Actual | S63: =S53 -> Audited Actual | U63: =U53 -> Audited Actual | W63: =W53 -> Forecast | Y63: =Y53 -> Forecast
C64: 1.3.1 Computer Hardware | E64: Computer Hardware | AA64: =SUM(G64,I64,K64,M64,O64,Q64,S64,U64,W64,Y64) -> 0
C66: 1.3.2 Computer Software | E66: Computer Software | O66: =2250+3192.3+472-74+133+8100+500 -> 14573.3 | Q66: =2250+488.8 -> 2738.8 | S66: =665+35.98 -> 700.98 | U66: =804.59 -> 804.59 | AA66: =SUM(G66,I66,K66,M66,O66,Q66,S66,U66,W66,Y66) -> 18817.67
C68: 1.3.3 Computer Software Licences & Installation (includes hardware and software) | E68: Applications Software | AA68: =SUM(G68,I68,K68,M68,O68,Q68,S68,U68,W68,Y68) -> 0
C69: (may include AS/400 disk space, backup and recovery computer, UPS, etc.)
C70: Total Advanced Metering Control Computer (AMCC) | G70: =G64+G66+G68 -> 0 | I70: =I64+I66+I68 -> 0 | K70: =K64+K66+K68 -> 0 | M70: =M64+M66+M68 -> 0 | O70: =O64+O66+O68 -> 14573.3 | Q70: =Q64+Q66+Q68 -> 2738.8 | S70: =S64+S66+S68 -> 700.98 | U70: =U64+U66+U68 -> 804.59 | W70: =W64+W66+W68 -> 0 | Y70: =Y64+Y66+Y68 -> 0 | AA70: =AA64+AA66+AA68 -> 18817.67
E72: =E62 -> Asset Type
C73: 1.4 WIDE AREA NETWORK (WAN) | G73: =G63 -> Audited Actual | I73: =I63 -> Audited Actual | K73: =K63 -> Audited Actual | M73: =M63 -> Audited Actual | O73: =O63 -> Audited Actual | Q73: =Q63 -> Audited Actual | S73: =S63 -> Audited Actual | U73: =U63 -> Audited Actual | W73: =W63 -> Forecast | Y73: =Y63 -> Forecast
C75: 1.4.1 Activiation Fees | E75: Smart Meter | AA75: =SUM(G75,I75,K75,M75,O75,Q75,S75,U75,W75,Y75) -> 0
C77: Total Wide Area Network (WAN) | G77: =G75 -> 0 | I77: =I75 -> 0 | K77: =K75 -> 0 | M77: =M75 -> 0 | O77: =O75 -> 0 | Q77: =Q75 -> 0 | S77: =S75 -> 0 | U77: =U75 -> 0 | W77: =W75 -> 0 | Y77: =Y75 -> 0 | AA77: =AA75 -> 0
E79: =E72 -> Asset Type
C80: 1.5 OTHER AMI CAPITAL COSTS RELATED TO MINIMUM FUNCTIONALITY | G80: =G73 -> Audited Actual | I80: =I73 -> Audited Actual | K80: =K73 -> Audited Actual | M80: =M73 -> Audited Actual | O80: =O73 -> Audited Actual | Q80: =Q73 -> Audited Actual | S80: =S73 -> Audited Actual | U80: =U73 -> Audited Actual | W80: =W73 -> Forecast | Y80: =Y73 -> Forecast
C82: 1.5.1 Customer Equipment (including repair of damaged equipment) | E82: Tools & Equipment | AA82: =SUM(G82,I82,K82,M82,O82,Q82,S82,U82,W82,Y82) -> 0
C84: 1.5.2 AMI Interface to CIS | E84: Applications Software | Q84: =2000+148+2500+5000+2500 -> 12148 | AA84: =SUM(G84,I84,K84,M84,O84,Q84,S84,U84,W84,Y84) -> 12148
C86: 1.5.3 Professional Fees | E86: Smart Meter | M86: =3318.45+503.57+2144.24 -> 5966.26 | O86: -5938.01 | AA86: =SUM(G86,I86,K86,M86,O86,Q86,S86,U86,W86,Y86) -> 28.25
C88: 1.5.4 Integration | AA88: =SUM(G88,I88,K88,M88,O88,Q88,S88,U88,W88,Y88) -> 0
C90: 1.5.5 Program Management | E90: Other Equipment | M90: =13844.88+2307.48 -> 16152.36 | Q90: =6912.19+2368.89 -> 9281.08 | S90: =2990.84 -> 2990.84 | U90: =1064.67+636+6115.13 -> 7815.8 | AA90: =SUM(G90,I90,K90,M90,O90,Q90,S90,U90,W90,Y90) -> 36240.08
C92: 1.5.6 Other AMI Capital | E92: Other Equipment | M92: =950 -> 950 | O92: 700 | Q92: =700+22.66 -> 722.66 | S92: 800 | U92: 276 | AA92: =SUM(G92,I92,K92,M92,O92,Q92,S92,U92,W92,Y92) -> 3448.66
C94: Total Other AMI Capital Costs Related to Minimum Functionality | G94: =SUM(G82,G84,G86,G88,G90,G92) -> 0 | I94: =SUM(I82,I84,I86,I88,I90,I92) -> 0 | K94: =SUM(K82,K84,K86,K88,K90,K92) -> 0 | M94: =SUM(M82,M84,M86,M88,M90,M92) -> 23068.62 | O94: =SUM(O82,O84,O86,O88,O90,O92) -> -5238.01 | Q94: =SUM(Q82,Q84,Q86,Q88,Q90,Q92) -> 22151.74 | S94: =SUM(S82,S84,S86,S88,S90,S92) -> 3790.84 | U94: =SUM(U82,U84,U86,U88,U90,U92) -> 8091.8 | W94: =SUM(W82,W84,W86,W88,W90,W92) -> 0 | Y94: =SUM(Y82,Y84,Y86,Y88,Y90,Y92) -> 0 | AA94: =SUM(AA82,AA84,AA86,AA88,AA90,AA92) -> 51864.99
C96: Total Capital Costs Related to Minimum Functionality | G96: =SUM(G50,G60,G70,G77,G94) -> 0 | I96: =SUM(I50,I60,I70,I77,I94) -> 0 | K96: =SUM(K50,K60,K70,K77,K94) -> 0 | M96: =SUM(M50,M60,M70,M77,M94) -> 454491 | O96: =SUM(O50,O60,O70,O77,O94) -> 55159.71 | Q96: =SUM(Q50,Q60,Q70,Q77,Q94) -> 118897.95 | S96: =SUM(S50,S60,S70,S77,S94) -> 21270.9 | U96: =SUM(U50,U60,U70,U77,U94) -> 8896.39 | W96: =SUM(W50,W60,W70,W77,W94) -> 2536 | Y96: =SUM(Y50,Y60,Y70,Y77,Y94) -> 2625 | AA96: =SUM(AA50,AA60,AA70,AA77,AA94) -> 663876.95
E98: =E79 -> Asset Type
C99: 1.6 CAPITAL COSTS BEYOND MINIMUM FUNCTIONALITY | G99: =G80 -> Audited Actual | I99: =I80 -> Audited Actual | K99: =K80 -> Audited Actual | M99: =M80 -> Audited Actual | O99: =O80 -> Audited Actual | Q99: =Q80 -> Audited Actual | S99: =S80 -> Audited Actual | U99: =U80 -> Audited Actual | W99: =W80 -> Forecast | Y99: =Y80 -> Forecast
C100: (Please provide a descriptive title and identify nature of beyond minimum functionality costs)
C101: 1.6.1 Costs related to technical capabilities in the smart meters or related communications infrastructure that exceed those specified in O.Reg 425/06 | AA101: =SUM(G101,I101,K101,M101,O101,Q101,S101,U101,W101,Y101) -> 0
C103: 1.6.2 Costs for deployment of smart meters to customers other than residential and small general service | AA103: =SUM(G103,I103,K103,M103,O103,Q103,S103,U103,W103,Y103) -> 0
C105: 1.6.3 Costs for TOU rate implementation, CIS system upgrades, web presentation, integration with the MDM/R, etc. | AA105: =SUM(G105,I105,K105,M105,O105,Q105,S105,U105,W105,Y105) -> 0
C107: Total Capital Costs Beyond Minimum Functionality | G107: =SUM(G101,G103,G105) -> 0 | I107: =SUM(I101,I103,I105) -> 0 | K107: =SUM(K101,K103,K105) -> 0 | M107: =SUM(M101,M103,M105) -> 0 | O107: =SUM(O101,O103,O105) -> 0 | Q107: =SUM(Q101,Q103,Q105) -> 0 | S107: =SUM(S101,S103,S105) -> 0 | U107: =SUM(U101,U103,U105) -> 0 | W107: =SUM(W101,W103,W105) -> 0 | Y107: =SUM(Y101,Y103,Y105) -> 0 | AA107: =SUM(AA101,AA103,AA105) -> 0
C109: Total Smart Meter Capital Costs | G109: =G96+G107 -> 0 | I109: =I96+I107 -> 0 | K109: =K96+K107 -> 0 | M109: =M96+M107 -> 454491 | O109: =O96+O107 -> 55159.71 | Q109: =Q96+Q107 -> 118897.95 | S109: =S96+S107 -> 21270.9 | U109: =U96+U107 -> 8896.39 | W109: =W96+W107 -> 2536 | Y109: =Y96+Y107 -> 2625 | AA109: =AA96+AA107 -> 663876.95
B111: 2 | C111: OM&A Expenses
C112: 2.1 ADVANCED METERING COMMUNICATION DEVICE (AMCD) | G112: =G99 -> Audited Actual | I112: =I99 -> Audited Actual | K112: =K99 -> Audited Actual | M112: =M99 -> Audited Actual | O112: =O99 -> Audited Actual | Q112: =Q99 -> Audited Actual | S112: =S99 -> Audited Actual | U112: =U99 -> Audited Actual | W112: =W99 -> Forecast | Y112: =Y99 -> Forecast
C114: 2.1.1 Maintenance (may include meter reverification costs, etc.) | O114: =984.47+985.67+32.75+596.03 -> 2598.92 | S114: =7.06+55.92+10.44 -> 73.42 | AA114: =SUM(G114,I114,K114,M114,O114,Q114,S114,U114,W114,Y114) -> 2672.34
C116: 2.1.2 Other (please specifiy) | AA116: =SUM(G116,I116,K116,M116,O116,Q116,S116,U116,W116,Y116) -> 0
C118: Total Incremental AMCD OM&A Costs | G118: =SUM(G114,G116) -> 0 | I118: =SUM(I114,I116) -> 0 | K118: =SUM(K114,K116) -> 0 | M118: =SUM(M114,M116) -> 0 | O118: =SUM(O114,O116) -> 2598.92 | Q118: =SUM(Q114,Q116) -> 0 | S118: =SUM(S114,S116) -> 73.42 | U118: =SUM(U114,U116) -> 0 | W118: =SUM(W114,W116) -> 0 | Y118: =SUM(Y114,Y116) -> 0 | AA118: =SUM(AA114,AA116) -> 2672.34
C120: 2.2 ADVANCED METERING REGIONAL COLLECTOR (AMRC) (includes LAN)
C122: 2.2.1 Maintenance | O122: =2674.3+2695.75+2697.05+2697.48+2697.77+2698.63+2702.81+2704.68+2707.42+2751.18+2756.45+2758.06+0.2 -> 32541.78 | Q122: =2434.5+2438.11+2438.24+2438.37+2438.36+2439.27+2439.52-1025.55-170.92-170.92+2440.04+2437.98+2489.77+2490.29+2484.78-1248.78 -> 26793.06 | S122: =2356.8+2358.67+2359.92+2359.91+2360.28+2360.29+2588.44-227.77+2588.44-228.27+2400.23+2399.47-9439.65 -> 14236.76 | U122: =350.05+1250.23+1634.21+1634.33+1634.33+1634.33+1634.08+1633.43+1633.69+1633.69+1633.04+1654.35+1654.48+1654.09-10 -> 21258.33 | W122: =1666.71+2499.89-833.44+1667.55+1667.55+1666.84+2742.51-1075.4+363.53+1303.58+2500.81-833.44+1667.11+2797.39-1098.3+1701.11+1701.52 -> 20105.52 | Y122: =W122*1.02 -> 20507.6304 | AA122: =SUM(G122,I122,K122,M122,O122,Q122,S122,U122,W122,Y122) -> 135443.0804
C124: 2.2.2 Other (please specifiy) | AA124: =SUM(G124,I124,K124,M124,O124,Q124,S124,U124,W124,Y124) -> 0
C126: Total Incremental AMRC OM&A Costs | G126: =SUM(G122,G124) -> 0 | I126: =SUM(I122,I124) -> 0 | K126: =SUM(K122,K124) -> 0 | M126: =SUM(M122,M124) -> 0 | O126: =SUM(O122,O124) -> 32541.78 | Q126: =SUM(Q122,Q124) -> 26793.06 | S126: =SUM(S122,S124) -> 14236.76 | U126: =SUM(U122,U124) -> 21258.33 | W126: =SUM(W122,W124) -> 20105.52 | Y126: =SUM(Y122,Y124) -> 20507.6304 | AA126: =SUM(AA122,AA124) -> 135443.0804
C128: 2.3 ADVANCED METERING CONTROL COMPUTER (AMCC)
C130: 2.3.1 Hardware Maintenance (may include server support, etc.) | O130: =298+1728-82+216+216+216+216+216+200+200+200+200+200+200 -> 4224 | Q130: =210+210+210 -> 630 | W130: =649.25+787.69+562.86+2059.06+2666.32 -> 6725.18 | Y130: =W130*1.02 -> 6859.6836 | AA130: =SUM(G130,I130,K130,M130,O130,Q130,S130,U130,W130,Y130) -> 18438.8636
C132: 2.3.2 Software Maintenance (may include maintenance support, etc.) | M132: 375.04 | O132: =377.5-23.44+407.91+408.24+381.17+381.63+353.64+353.5+354.06+353.78+332.54+1200+207.15+334.88+335.14 -> 5757.7 | Q132: =335.15+534.3+538.72+544.31+549.12+548.99+549.77-197.6-197.6-200.98+560.95-201.89+564.33-193.44-195-197.44-212.68+575.77-215.54+361.4+359.84 -> 4210.48 | S132: =1236+363.74+365.17+365.43+1200+594.23-228.8-234.26+599.69+604.5-236.34+368.16+367.51+370.24+366.21+366.34+366.73 -> 6834.55 | U132: =366.34+366.34+367.9+366.34-0.39+367.9+367.9+367.77+367.38+367.25+367.38+368.42+368.68 -> 4409.21 | W132: =1349.46+368.81+368.42+368.29+368.29+606.45-238.16+606.71-238.29+606.71-239.28+606.58-238.29+606.71-238.29+370.33+368.42+368.42 -> 5771.29 | Y132: =W132*1.02 -> 5886.7158 | AA132: =SUM(G132,I132,K132,M132,O132,Q132,S132,U132,W132,Y132) -> 33244.9858
C134: 2.3.2 Other (please specifiy) | AA134: =SUM(G134,I134,K134,M134,O134,Q134,S134,U134,W134,Y134) -> 0
C136: Total Incremental AMCC OM&A Costs | G136: =SUM(G130,G132,G134) -> 0 | I136: =SUM(I130,I132,I134) -> 0 | K136: =SUM(K130,K132,K134) -> 0 | M136: =SUM(M130,M132,M134) -> 375.04 | O136: =SUM(O130,O132,O134) -> 9981.7 | Q136: =SUM(Q130,Q132,Q134) -> 4840.48 | S136: =SUM(S130,S132,S134) -> 6834.55 | U136: =SUM(U130,U132,U134) -> 4409.21 | W136: =SUM(W130,W132,W134) -> 12496.47 | Y136: =SUM(Y130,Y132,Y134) -> 12746.3994 | AA136: =SUM(AA130,AA132,AA134) -> 51683.8494
C138: 2.4 WIDE AREA NETWORK (WAN)
C140: 2.4.1 WAN Maintenance | AA140: =SUM(G140,I140,K140,M140,O140,Q140,S140,U140,W140,Y140) -> 0
C142: 2.4.2 Other (please specifiy) | AA142: =SUM(G142,I142,K142,M142,O142,Q142,S142,U142,W142,Y142) -> 0
C144: Total Incremental AMRC OM&A Costs | G144: =SUM(G140,G142) -> 0 | I144: =SUM(I140,I142) -> 0 | K144: =SUM(K140,K142) -> 0 | M144: =SUM(M140,M142) -> 0 | O144: =SUM(O140,O142) -> 0 | Q144: =SUM(Q140,Q142) -> 0 | S144: =SUM(S140,S142) -> 0 | U144: =SUM(U140,U142) -> 0 | W144: =SUM(W140,W142) -> 0 | Y144: =SUM(Y140,Y142) -> 0 | AA144: =SUM(AA140,AA142) -> 0
C146: 2.5 OTHER AMI OM&A COSTS RELATED TO MINIMUM FUNCTIONALITY
C148: 2.5.1 Business Process Redesign | AA148: =SUM(G148,I148,K148,M148,O148,Q148,S148,U148,W148,Y148) -> 0
C150: 2.5.2 Customer Communication (may include project communication, etc.) | M150: =966.6+1381.37+90+77.72+19.97+43.19 -> 2578.85 | Q150: =145.88+230.88+489.5 -> 866.26 | AA150: =SUM(G150,I150,K150,M150,O150,Q150,S150,U150,W150,Y150) -> 3445.11
C152: 2.5.3 Program Management | I152: =9788.11 -> 9788.11 | K152: =2365.42+2333.4+61.12+2387.25+2390.47 -> 9537.66 | M152: =571.18+2772.8+2447.24+375+2615.28+2307.48+2136.56 -> 13225.54 | O152: =2774.45+3862.24+1675.33+882+866.95+851.24+882+817.72+815.73+923.34+791.53+450.45 -> 15592.98 | Q152: =822.87+928.04+826.79+388.28+817.3+222.13+936.43+656.25 -> 5598.09 | S152: 198.41 | AA152: =SUM(G152,I152,K152,M152,O152,Q152,S152,U152,W152,Y152) -> 53940.79
C154: 2.5.4 Change Management (may include training, etc.) | M154: =1240.18+998.56 -> 2238.74 | O154: =1032.82+100 -> 1132.82 | AA154: =SUM(G154,I154,K154,M154,O154,Q154,S154,U154,W154,Y154) -> 3371.56
C156: 2.5.5 Administration Costs | AA156: =SUM(G156,I156,K156,M156,O156,Q156,S156,U156,W156,Y156) -> 0
C158: 2.5.6 Other AMI Expenses | AA158: =SUM(G158,I158,K158,M158,O158,Q158,S158,U158,W158,Y158) -> 0
C159: (please specify)
C160: Total Other AMI OM&A Costs Related to Minimum Functionality | G160: =SUM(G158,G156,G154,G152,G150,G148) -> 0 | I160: =SUM(I158,I156,I154,I152,I150,I148) -> 9788.11 | K160: =SUM(K158,K156,K154,K152,K150,K148) -> 9537.66 | M160: =SUM(M158,M156,M154,M152,M150,M148) -> 18043.13 | O160: =SUM(O158,O156,O154,O152,O150,O148) -> 16725.8 | Q160: =SUM(Q158,Q156,Q154,Q152,Q150,Q148) -> 6464.35 | S160: =SUM(S158,S156,S154,S152,S150,S148) -> 198.41 | U160: =SUM(U158,U156,U154,U152,U150,U148) -> 0 | W160: =SUM(W158,W156,W154,W152,W150,W148) -> 0 | Y160: =SUM(Y158,Y156,Y154,Y152,Y150,Y148) -> 0 | AA160: =SUM(AA154,AA156,AA158,AA152,AA150,AA148) -> 60757.46
C162: TOTAL OM&A COSTS RELATED TO MINIMUM FUNCTIONALITY | G162: =SUM(G118,G126,G136,G144,G160) -> 0 | I162: =SUM(I118,I126,I136,I144,I160) -> 9788.11 | K162: =SUM(K118,K126,K136,K144,K160) -> 9537.66 | M162: =SUM(M118,M126,M136,M144,M160) -> 18418.17 | O162: =SUM(O118,O126,O136,O144,O160) -> 61848.2 | Q162: =SUM(Q118,Q126,Q136,Q144,Q160) -> 38097.89 | S162: =SUM(S118,S126,S136,S144,S160) -> 21343.14 | U162: =SUM(U118,U126,U136,U144,U160) -> 25667.54 | W162: =SUM(W118,W126,W136,W144,W160) -> 32601.99 | Y162: =SUM(Y118,Y126,Y136,Y144,Y160) -> 33254.0298 | AA162: =SUM(AA118,AA126,AA136,AA144,AA160) -> 250556.7298
C164: 2.6 OM&A COSTS RELATED TO BEYOND MINIMUM FUNCTIONALITY | G164: =G112 -> Audited Actual | I164: =I112 -> Audited Actual | K164: =K112 -> Audited Actual | M164: =M112 -> Audited Actual | O164: =O112 -> Audited Actual | Q164: =Q112 -> Audited Actual | S164: =S112 -> Audited Actual | U164: Audited Actual | W164: Forecast | Y164: =Y112 -> Forecast
C165: (Please provide a descriptive title and identify nature of beyond minimum functionality costs)
C166: 2.6.1 Costs related to technical capabilities in the smart meters or related communications infrastructure that exceed those specified in O.Reg 425/06 | AA166: =SUM(G166,I166,K166,M166,O166,Q166,S166,U166,W166,Y166) -> 0
C168: 2.6.2 Costs for deployment of smart meters to customers other than residential and small general service | AA168: =SUM(G168,I168,K168,M168,O168,Q168,S168,U168,W168,Y168) -> 0
C170: 2.6.3 Costs for TOU rate implementation, CIS system upgrades, web presentation, integration with the MDM/R, etc. | AA170: =SUM(G170,I170,K170,M170,O170,Q170,S170,U170,W170,Y170) -> 0
C172: Total OM&A Costs Beyond Minimum Functionality | G172: =SUM(G166,G168,G170) -> 0 | I172: =SUM(I166,I168,I170) -> 0 | K172: =SUM(K166,K168,K170) -> 0 | M172: =SUM(M166,M168,M170) -> 0 | O172: =SUM(O166,O168,O170) -> 0 | Q172: =SUM(Q166,Q168,Q170) -> 0 | S172: =SUM(S166,S168,S170) -> 0 | U172: =SUM(U166,U168,U170) -> 0 | W172: =SUM(W166,W168,W170) -> 0 | Y172: =SUM(Y166,Y168,Y170) -> 0 | AA172: =SUM(AA166,AA168,AA170) -> 0
C174: Total Smart Meter OM&A Costs | G174: =G162+G172 -> 0 | I174: =I162+I172 -> 9788.11 | K174: =K162+K172 -> 9537.66 | M174: =M162+M172 -> 18418.17 | O174: =O162+O172 -> 61848.2 | Q174: =Q162+Q172 -> 38097.89 | S174: =S162+S172 -> 21343.14 | U174: =U162+U172 -> 25667.54 | W174: =W162+W172 -> 32601.99 | Y174: =Y162+Y172 -> 33254.0298 | AA174: =AA162+AA172 -> 250556.7298
B177: 3 | C177: Aggregate Smart Meter Costs by Category
C179: 3.1 | D179: Capital
C181: 3.1.1 | D181: Smart Meter | G181: =SUMIF($E$42:$E$105,$D181,G$42:G$105) -> 0 | I181: =SUMIF($E$42:$E$105,$D181,I$42:I$105) -> 0 | K181: =SUMIF($E$42:$E$105,$D181,K$42:K$105) -> 0 | M181: =SUMIF($E$42:$E$105,$D181,M$42:M$105) -> 274042.95 | O181: =SUMIF($E$42:$E$105,$D181,O$42:O$105) -> 39152.46 | Q181: =SUMIF($E$42:$E$105,$D181,Q$42:Q$105) -> 94007.41 | S181: =SUMIF($E$42:$E$105,$D181,S$42:S$105) -> 16779.08 | U181: =SUMIF($E$42:$E$105,$D181,U$42:U$105) -> 0 | W181: =SUMIF($E$42:$E$105,$D181,W$42:W$105) -> 2536 | Y181: =SUMIF($E$42:$E$105,$D181,Y$42:Y$105) -> 2625 | AA181: =SUM(G181:Y181) -> 429142.9
C183: 3.1.2 | D183: Computer Hardware | G183: =SUMIF($E$42:$E$105,$D183,G$42:G$105) -> 0 | I183: =SUMIF($E$42:$E$105,$D183,I$42:I$105) -> 0 | K183: =SUMIF($E$42:$E$105,$D183,K$42:K$105) -> 0 | M183: =SUMIF($E$42:$E$105,$D183,M$42:M$105) -> 4262.33 | O183: =SUMIF($E$42:$E$105,$D183,O$42:O$105) -> 733.95 | Q183: =SUMIF($E$42:$E$105,$D183,Q$42:Q$105) -> 0 | S183: =SUMIF($E$42:$E$105,$D183,S$42:S$105) -> 0 | U183: =SUMIF($E$42:$E$105,$D183,U$42:U$105) -> 0 | W183: =SUMIF($E$42:$E$105,$D183,W$42:W$105) -> 0 | Y183: =SUMIF($E$42:$E$105,$D183,Y$42:Y$105) -> 0 | AA183: =SUM(G183:Y183) -> 4996.28
C185: 3.1.3 | D185: Computer Software | G185: =SUMIF($E$42:$E$105,$D185,G$42:G$105) -> 0 | I185: =SUMIF($E$42:$E$105,$D185,I$42:I$105) -> 0 | K185: =SUMIF($E$42:$E$105,$D185,K$42:K$105) -> 0 | M185: =SUMIF($E$42:$E$105,$D185,M$42:M$105) -> 0 | O185: =SUMIF($E$42:$E$105,$D185,O$42:O$105) -> 14573.3 | Q185: =SUMIF($E$42:$E$105,$D185,Q$42:Q$105) -> 2738.8 | S185: =SUMIF($E$42:$E$105,$D185,S$42:S$105) -> 700.98 | U185: =SUMIF($E$42:$E$105,$D185,U$42:U$105) -> 804.59 | W185: =SUMIF($E$42:$E$105,$D185,W$42:W$105) -> 0 | Y185: =SUMIF($E$42:$E$105,$D185,Y$42:Y$105) -> 0 | AA185: =SUM(G185:Y185) -> 18817.67
C187: 3.1.4 | D187: Tools & Equipment | G187: =SUMIF($E$42:$E$105,$D187,G$42:G$105) -> 0 | I187: =SUMIF($E$42:$E$105,$D187,I$42:I$105) -> 0 | K187: =SUMIF($E$42:$E$105,$D187,K$42:K$105) -> 0 | M187: =SUMIF($E$42:$E$105,$D187,M$42:M$105) -> 0 | O187: =SUMIF($E$42:$E$105,$D187,O$42:O$105) -> 0 | Q187: =SUMIF($E$42:$E$105,$D187,Q$42:Q$105) -> 0 | S187: =SUMIF($E$42:$E$105,$D187,S$42:S$105) -> 0 | U187: =SUMIF($E$42:$E$105,$D187,U$42:U$105) -> 0 | W187: =SUMIF($E$42:$E$105,$D187,W$42:W$105) -> 0 | Y187: =SUMIF($E$42:$E$105,$D187,Y$42:Y$105) -> 0 | AA187: =SUM(G187:Y187) -> 0
C189: 3.1.5 | D189: Other Equipment | G189: =SUMIF($E$42:$E$105,$D189,G$42:G$105) -> 0 | I189: =SUMIF($E$42:$E$105,$D189,I$42:I$105) -> 0 | K189: =SUMIF($E$42:$E$105,$D189,K$42:K$105) -> 0 | M189: =SUMIF($E$42:$E$105,$D189,M$42:M$105) -> 176185.72 | O189: =SUMIF($E$42:$E$105,$D189,O$42:O$105) -> 700 | Q189: =SUMIF($E$42:$E$105,$D189,Q$42:Q$105) -> 10003.74 | S189: =SUMIF($E$42:$E$105,$D189,S$42:S$105) -> 3790.84 | U189: =SUMIF($E$42:$E$105,$D189,U$42:U$105) -> 8091.8 | W189: =SUMIF($E$42:$E$105,$D189,W$42:W$105) -> 0 | Y189: =SUMIF($E$42:$E$105,$D189,Y$42:Y$105) -> 0 | AA189: =SUM(G189:Y189) -> 198772.1
C191: 3.1.6 | D191: Applications Software | G191: =SUMIF($E$42:$E$105,$D191,G$42:G$105) -> 0 | I191: =SUMIF($E$42:$E$105,$D191,I$42:I$105) -> 0 | K191: =SUMIF($E$42:$E$105,$D191,K$42:K$105) -> 0 | M191: =SUMIF($E$42:$E$105,$D191,M$42:M$105) -> 0 | O191: =SUMIF($E$42:$E$105,$D191,O$42:O$105) -> 0 | Q191: =SUMIF($E$42:$E$105,$D191,Q$42:Q$105) -> 12148 | S191: =SUMIF($E$42:$E$105,$D191,S$42:S$105) -> 0 | U191: =SUMIF($E$42:$E$105,$D191,U$42:U$105) -> 0 | W191: =SUMIF($E$42:$E$105,$D191,W$42:W$105) -> 0 | Y191: =SUMIF($E$42:$E$105,$D191,Y$42:Y$105) -> 0 | AA191: =SUM(G191:Y191) -> 12148
C193: 3.1.7 | D193: Total Capital Costs | G193: =SUM(G181:G191) -> 0 | I193: =SUM(I181:I191) -> 0 | K193: =SUM(K181:K191) -> 0 | M193: =SUM(M181:M191) -> 454491 | O193: =SUM(O181:O191) -> 55159.71 | Q193: =SUM(Q181:Q191) -> 118897.95 | S193: =SUM(S181:S191) -> 21270.9 | U193: =SUM(U181:U191) -> 8896.39 | W193: =SUM(W181:W191) -> 2536 | Y193: =SUM(Y181:Y191) -> 2625 | AA193: =SUM(AA181:AA191) -> 663876.95
G194: =IF(G193=G109,"","Error") ->  | I194: =IF(I193=I109,"","Error") ->  | K194: =IF(K193=K109,"","Error") ->  | M194: =IF(M193=M109,"","Error") ->  | O194: =IF(O193=O109,"","Error") ->  | Q194: =IF(Q193=Q109,"","Error") ->  | S194: =IF(S193=S109,"","Error") ->  | U194: =IF(U193=U109,"","Error") ->  | W194: =IF(W193=W109,"","Error") ->  | Y194: =IF(Y193=Y109,"","Error") ->  | AA194: =IF(AA193=AA109,"","Error") -> 
C195: 3.2 | D195: OM&A Costs
C197: 3.2.1 | D197: Total OM&A Costs | G197: =G174 -> 0 | I197: =I174 -> 9788.11 | K197: =K174 -> 9537.66 | M197: =M174 -> 18418.17 | O197: =O174 -> 61848.2 | Q197: =Q174 -> 38097.89 | S197: =S174 -> 21343.14 | U197: =U174 -> 25667.54 | W197: =W174 -> 32601.99 | Y197: =Y174 -> 33254.0298 | AA197: =AA174 -> 250556.7298
D199: Important Notes
D200: Stranded meter Cost | M200: 45081
D204: Total carried | I204: =I193+I197+I201+I200+I202+G204 -> 9788.11 | K204: =K193+K197+K201+K200+K202+I204 -> 19325.77 | M204: =M193+M197+M201+M200+M202+K204 -> 537315.94 | O204: =O193+O197+O201+O200+O202+M204 -> 654323.85 | Q204: =Q193+Q197+Q201+Q200+Q202+O204 -> 811319.69 | S204: =S193+S197+S201+S200+S202+Q204 -> 853933.73 | U204: =U193+U197+U201+U200+U202+S204 -> 888497.66 | W204: =W193+W197+W201+W200+W202+U204 -> 923635.65
G206: Hearst Power Smart Meter Variance accounts as per Audited Financial Statements
K207: 2008 | M207: 2009 | O207: 2010 | Q207: 2011 | S207: 2012 | U207: 2013
G208: Smart Meter costs defered | K208: 19326 | M208: 537315 | O208: 654323 | Q208: 811319 | S208: 853934 | U208: 888226
G209: Smart Meter funding revenues | K209: -20714 | M209: -43159 | O209: -75890 | Q209: -137456 | S209: -171620 | U209: -171620
G211: Carrying Charge (smart meter) | K211: -1074 | M211: 1218 | O211: 5817 | Q211: 14112 | S211: 23954 | U211: 34667
G213: Total Smart meter variances accounts balance | K213: =K208+K209+K211 -> -2462 | M213: =M208+M209+M211 -> 495374 | O213: =O208+O209+O211 -> 584250 | Q213: 687975 | S213: 706268 | U213: 751273

Sheet 3. Cost_of_Service_Parameters
G19: 2006 | I19: 2007 | K19: 2008 | M19: 2009 | O19: 2010 | Q19: 2011 | S19: 2012 | U19: 2013 | W19: 2014 | Y19: 2015
B20: Cost of Capital
C21: Capital Structure1
D22: Deemed Short-term Debt Capitalization | O22: 0.04 | Q22: 0.04 | S22: 0.04 | U22: 0.04 | W22: 0.04 | Y22: 0.04
D23: Deemed Long-term Debt Capitalization | G23: 0.5 | I23: =G23 -> 0.5 | K23: =IF(I23=50%,53.3%-K22,IF(I23=55%,57.5%-K22,IF(I23=65%,62.5%-K22,60%-K22))) -> 0.533 | M23: =IF(I23=50%,56.7%-M22,60%-M22) -> 0.567 | O23: =60%-O22 -> 0.56 | Q23: =O23-(Q22-O22) -> 0.56 | S23: =Q23-(S22-Q22) -> 0.56 | U23: =S23-(U22-S22) -> 0.56 | W23: =U23-(W22-U22) -> 0.56 | Y23: =W23-(Y22-W22) -> 0.56
D24: Deemed Equity Capitalization | G24: =100%-G23-G25 -> 0.5 | I24: =100%-I23-I25-I22 -> 0.5 | K24: =100%-K23-K25-K22 -> 0.467 | M24: =100%-M23-M25-M22 -> 0.433 | O24: =100%-O23-O25-O22 -> 0.4 | Q24: =100%-Q23-Q25-Q22 -> 0.4 | S24: =100%-S23-S25-S22 -> 0.4 | U24: =100%-U23-U25-U22 -> 0.4 | W24: =100%-W23-W25-W22 -> 0.4 | Y24: =100%-Y23-Y25-Y22 -> 0.4
D25: Preferred Shares
C26: Total | G26: =SUM(G22:G25) -> 1 | I26: =SUM(I22:I25) -> 1 | K26: =SUM(K22:K25) -> 1 | M26: =SUM(M22:M25) -> 1 | O26: =SUM(O22:O25) -> 1 | Q26: =SUM(Q22:Q25) -> 1 | S26: =SUM(S22:S25) -> 1 | U26: =SUM(U22:U25) -> 1 | W26: =SUM(W22:W25) -> 1 | Y26: =SUM(Y22:Y25) -> 1
C28: Cost of Capital Parameters
D29: Deemed Short-term Debt Rate | O29: 0.0207 | Q29: 0.0207 | S29: 0.0207 | U29: 0.0207 | W29: 0.0207 | Y29: 0.0216
D30: Long-term Debt Rate (actual/embedded/deemed)2 | G30: =IF(G23=50%,6.25%,IF(G23=55%,6%,IF(G23=60%,5.9%,5.8%))) -> 0.0625 | I30: =G30 -> 0.0625 | K30: 0.0625 | M30: 0.0625 | O30: 0.0587 | Q30: 0.0587 | S30: 0.0587 | U30: 0.0587 | W30: 0.0587 | Y30: 0.0477
D31: Target Return on Equity (ROE) | G31: 0.09 | I31: =G31 -> 0.09 | K31: 0.09 | M31: 0.09 | O31: 0.0731 | Q31: 0.0731 | S31: 0.0731 | U31: 0.0731 | W31: 0.0731 | Y31: 0.0648
D32: Return on Preferred Shares
C33: WACC | G33: =SUMPRODUCT(G22:G25,G29:G32) -> 0.07625 | I33: =SUMPRODUCT(I22:I25,I29:I32) -> 0.07625 | K33: =SUMPRODUCT(K22:K25,K29:K32) -> 0.0753425 | M33: =SUMPRODUCT(M22:M25,M29:M32) -> 0.0744075 | O33: =SUMPRODUCT(O22:O25,O29:O32) -> 0.06294 | Q33: =SUMPRODUCT(Q22:Q25,Q29:Q32) -> 0.06294 | S33: =SUMPRODUCT(S22:S25,S29:S32) -> 0.06294 | U33: =SUMPRODUCT(U22:U25,U29:U32) -> 0.06294 | W33: =SUMPRODUCT(W22:W25,W29:W32) -> 0.06294 | Y33: =SUMPRODUCT(Y22:Y25,Y29:Y32) -> 0.053496
B35: Working Capital Allowance
C36: Working Capital Allowance Rate | G36: 0.15 | I36: 0.15 | K36: 0.15 | M36: 0.15 | O36: 0.15 | Q36: 0.15 | S36: 0.15 | U36: 0.15 | W36: 0.15 | Y36: 0.13
C37: (% of the sum of Cost of Power + controllable expenses)
B39: Taxes/PILs
C40: Aggregate Corporate Income Tax Rate | G40: 0.1862 | I40: 0.1862 | K40: 0.1762 | M40: 0.1662 | O40: 0.165 | Q40: 0.15557 | S40: 0.11 | U40: 0.1486315965 | W40: 0.155 | Y40: 0.155
C41: Capital Tax (until July 1st, 2010) | G41: 0.003 | I41: 0.00225 | K41: 0.00225 | M41: 0.00225 | O41: 0.00075 | Q41: 0 | S41: 0 | U41: 0 | W41: 0 | Y41: 0
B43: Depreciation Rates
B44: (expressed as expected useful life in years)
C45: Smart Meters - years | G45: 15 | I45: 15 | K45: 15 | M45: 15 | O45: 15 | Q45: 15 | S45: 15 | U45: 15 | W45: 15 | Y45: 15
C46: - rate (%) | G46: =IF(G45=0,0,1/G45) -> 0.06666666667 | I46: =IF(I45=0,0,1/I45) -> 0.06666666667 | K46: =IF(K45=0,0,1/K45) -> 0.06666666667 | M46: =IF(M45=0,0,1/M45) -> 0.06666666667 | O46: =IF(O45=0,0,1/O45) -> 0.06666666667 | Q46: =IF(Q45=0,0,1/Q45) -> 0.06666666667 | S46: =IF(S45=0,0,1/S45) -> 0.06666666667 | U46: =IF(U45=0,0,1/U45) -> 0.06666666667 | W46: =IF(W45=0,0,1/W45) -> 0.06666666667 | Y46: =IF(Y45=0,0,1/Y45) -> 0.06666666667
C47: Computer Hardware - years | G47: 5 | I47: 5 | K47: 5 | M47: 5 | O47: 5 | Q47: 5 | S47: 5 | U47: 5 | W47: 5 | Y47: 5
C48: - rate (%) | G48: =IF(G47=0,0,1/G47) -> 0.2 | I48: =IF(I47=0,0,1/I47) -> 0.2 | K48: 0.05 | M48: =IF(M47=0,0,1/M47) -> 0.2 | O48: =IF(O47=0,0,1/O47) -> 0.2 | Q48: =IF(Q47=0,0,1/Q47) -> 0.2 | S48: =IF(S47=0,0,1/S47) -> 0.2 | U48: =IF(U47=0,0,1/U47) -> 0.2 | W48: =IF(W47=0,0,1/W47) -> 0.2 | Y48: =IF(Y47=0,0,1/Y47) -> 0.2
C49: Computer Software - years | G49: 5 | I49: 5 | M49: 5 | O49: 5 | Q49: 5 | S49: 5 | U49: 5 | W49: 5 | Y49: 5
C50: - rate (%) | G50: =IF(G49=0,0,1/G49) -> 0.2 | I50: =IF(I49=0,0,1/I49) -> 0.2 | K50: =IF(K49=0,0,1/K49) -> 0 | M50: =IF(M49=0,0,1/M49) -> 0.2 | O50: =IF(O49=0,0,1/O49) -> 0.2 | Q50: =IF(Q49=0,0,1/Q49) -> 0.2 | S50: =IF(S49=0,0,1/S49) -> 0.2 | U50: =IF(U49=0,0,1/U49) -> 0.2 | W50: =IF(W49=0,0,1/W49) -> 0.2 | Y50: =IF(Y49=0,0,1/Y49) -> 0.2
C51: Tools & Equipment - years | G51: 10 | I51: 10 | K51: 10 | M51: 10 | O51: 10 | Q51: 10 | S51: 10 | U51: 10 | W51: 10 | Y51: 10
C52: - rate (%) | G52: =IF(G51=0,0,1/G51) -> 0.1 | I52: =IF(I51=0,0,1/I51) -> 0.1 | K52: =IF(K51=0,0,1/K51) -> 0.1 | M52: =IF(M51=0,0,1/M51) -> 0.1 | O52: =IF(O51=0,0,1/O51) -> 0.1 | Q52: =IF(Q51=0,0,1/Q51) -> 0.1 | S52: =IF(S51=0,0,1/S51) -> 0.1 | U52: =IF(U51=0,0,1/U51) -> 0.1 | W52: =IF(W51=0,0,1/W51) -> 0.1 | Y52: =IF(Y51=0,0,1/Y51) -> 0.1
C53: Other Equipment - years | G53: 10 | I53: 10 | K53: 10 | M53: 10 | O53: 10 | Q53: 10 | S53: 10 | U53: 10 | W53: 10 | Y53: 10
C54: - rate (%) | G54: =IF(G53=0,0,1/G53) -> 0.1 | I54: =IF(I53=0,0,1/I53) -> 0.1 | K54: =IF(K53=0,0,1/K53) -> 0.1 | M54: =IF(M53=0,0,1/M53) -> 0.1 | O54: =IF(O53=0,0,1/O53) -> 0.1 | Q54: =IF(Q53=0,0,1/Q53) -> 0.1 | S54: =IF(S53=0,0,1/S53) -> 0.1 | U54: =IF(U53=0,0,1/U53) -> 0.1 | W54: =IF(W53=0,0,1/W53) -> 0.1 | Y54: =IF(Y53=0,0,1/Y53) -> 0.1
B56: CCA Rates
C57: Smart Meters - CCA Class | G57: 47 | I57: 47 | K57: 47 | M57: 47 | O57: 47 | Q57: 47 | S57: 47 | U57: 47 | W57: 47 | Y57: 47
C58: Smart Meters - CCA Rate | G58: 0.08 | I58: 0.08 | K58: 0.08 | M58: 0.08 | O58: 0.08 | Q58: 0.08 | S58: 0.08 | U58: 0.08 | W58: 0.08 | Y58: 0.08
C60: Computer Equipment - CCA Class | G60: 45 | I60: 50 | K60: 50 | M60: 50 | O60: 50 | Q60: 50 | S60: 50 | U60: 50 | W60: 50 | Y60: 50
C61: Computer Equipment - CCA Rate | G61: 0.45 | I61: 0.55 | K61: 0.55 | M61: 0.55 | O61: 0.55 | Q61: 0.55 | S61: 0.55 | U61: 0.55 | W61: 0.55 | Y61: 0.55
C63: General Equipment - CCA Class
C64: General Equipment - CCA Rate
C66: Applications Software - CCA Class | G66: 12 | I66: 12 | K66: 12 | M66: 12 | O66: 12 | Q66: 12 | S66: 12 | U66: 12 | W66: 12 | Y66: 12
C67: Applications Software - CCA Rate | G67: 1 | I67: 1 | K67: 1 | M67: 1 | O67: 1 | Q67: 1 | S67: 1 | U67: 1 | W67: 1 | Y67: 1
B69: Assumptions
B70: 1 | C70: Planned smart meter installations occur evenly throughout the year.
B71: 2 | C71: Fiscal calendar year (January 1 to December 31) used.
B72: 3 | C72: Amortization is done on a striaght line basis and has the "half-year" rule applied.

Sheet 4. SM_Assets_and_Rate_Base
G18: 2006 | I18: 2007 | K18: 2008 | M18: 2009 | O18: 2010 | Q18: 2011 | S18: 2012 | U18: 2013 | W18: 2014 | Y18: 2015
B19: Net Fixed Assets - Smart Meters
C21: Gross Book Value
D22: Opening Balance | I22: =G25 -> 0 | K22: =I25 -> 0 | M22: =K25 -> 0 | O22: =M25 -> 274042.95 | Q22: =O25 -> 313195.41 | S22: =Q25 -> 407202.82 | U22: =S25 -> 423981.9 | W22: =U25 -> 423981.9 | Y22: =W25 -> 426517.9
D23: Capital Additions during year (from Smart Meter Costs) | G23: ='2. Smart_Meter_Costs'!G181 -> 0 | I23: ='2. Smart_Meter_Costs'!I181 -> 0 | K23: ='2. Smart_Meter_Costs'!K181 -> 0 | M23: ='2. Smart_Meter_Costs'!M181 -> 274042.95 | O23: ='2. Smart_Meter_Costs'!O181 -> 39152.46 | Q23: ='2. Smart_Meter_Costs'!Q181 -> 94007.41 | S23: ='2. Smart_Meter_Costs'!S181 -> 16779.08 | U23: ='2. Smart_Meter_Costs'!U181 -> 0 | W23: ='2. Smart_Meter_Costs'!W181 -> 2536 | Y23: ='2. Smart_Meter_Costs'!Y181 -> 2625
D24: Retirements/Removals (if applicable)
D25: Closing Balance | G25: =G22+G23-G24 -> 0 | I25: =I22+I23-I24 -> 0 | K25: =K22+K23-K24 -> 0 | M25: =M22+M23-M24 -> 274042.95 | O25: =O22+O23-O24 -> 313195.41 | Q25: =Q22+Q23-Q24 -> 407202.82 | S25: =S22+S23-S24 -> 423981.9 | U25: =U22+U23-U24 -> 423981.9 | W25: =W22+W23-W24 -> 426517.9 | Y25: =Y22+Y23-Y24 -> 429142.9
C27: Accumulated Depreciation
D28: Opening Balance | I28: =G31 -> 0 | K28: =I31 -> 0 | M28: =K31 -> 0 | O28: =M31 -> -9134.765 | Q28: =O31 -> -28709.377 | S28: =Q31 -> -52722.65133 | U28: =S31 -> -80428.80867 | W28: =U31 -> -108694.2687 | Y28: =W31 -> -137044.262
D29: Amortization expense during year | G29: =IF(ISERROR(-G23/('3. Cost_of_Service_Parameters'!G45*2)), 0, -G23/('3. Cost_of_Service_Parameters'!G45*2)) -> 0 | I29: =IF(ISERROR(-(I23/('3. Cost_of_Service_Parameters'!I45*2)+MIN((I22/'3. Cost_of_Service_Parameters'!I45),(I22+I28)))), 0, -(I23/('3. Cost_of_Service_Parameters'!I45*2)+MIN((I22/'3. Cost_of_Service_Parameters'!I45),(I22+I28)))) -> 0 | K29: =IF(ISERROR(-(K23/('3. Cost_of_Service_Parameters'!K45*2)+MIN((K22/'3. Cost_of_Service_Parameters'!K45),(K22+K28)))), 0, -(K23/('3. Cost_of_Service_Parameters'!K45*2)+MIN((K22/'3. Cost_of_Service_Parameters'!K45),(K22+K28)))) -> 0 | M29: =IF(ISERROR(-(M23/('3. Cost_of_Service_Parameters'!M45*2)+MIN((M22/'3. Cost_of_Service_Parameters'!M45),(M22+M28)))), 0,-(M23/('3. Cost_of_Service_Parameters'!M45*2)+MIN((M22/'3. Cost_of_Service_Parameters'!M45),(M22+M28)))) -> -9134.765 | O29: =IF(ISERROR(-(O23/('3. Cost_of_Service_Parameters'!O45*2)+MIN((O22/'3. Cost_of_Service_Parameters'!O45),(O22+O28)))), 0, -(O23/('3. Cost_of_Service_Parameters'!O45*2)+MIN((O22/'3. Cost_of_Service_Parameters'!O45),(O22+O28)))) -> -19574.612 | Q29: =IF(ISERROR(-(Q23/('3. Cost_of_Service_Parameters'!Q45*2)+MIN((Q22/'3. Cost_of_Service_Parameters'!Q45),(Q22+Q28)))), 0, -(Q23/('3. Cost_of_Service_Parameters'!Q45*2)+MIN((Q22/'3. Cost_of_Service_Parameters'!Q45),(Q22+Q28)))) -> -24013.27433 | S29: =IF(ISERROR(-(S23/('3. Cost_of_Service_Parameters'!S45*2)+MIN((S22/'3. Cost_of_Service_Parameters'!S45),(S22+S28)))), 0, -(S23/('3. Cost_of_Service_Parameters'!S45*2)+MIN((S22/'3. Cost_of_Service_Parameters'!S45),(S22+S28)))) -> -27706.15733 | U29: =IF(ISERROR(-(U23/('3. Cost_of_Service_Parameters'!U45*2)+MIN((U22/'3. Cost_of_Service_Parameters'!U45),(U22+U28)))), 0, -(U23/('3. Cost_of_Service_Parameters'!U45*2)+MIN((U22/'3. Cost_of_Service_Parameters'!U45),(U22+U28)))) -> -28265.46 | W29: =IF(ISERROR(-(W23/('3. Cost_of_Service_Parameters'!W45*2)+MIN((W22/'3. Cost_of_Service_Parameters'!W45),(W22+W28)))), 0, -(W23/('3. Cost_of_Service_Parameters'!W45*2)+MIN((W22/'3. Cost_of_Service_Parameters'!W45),(W22+W28)))) -> -28349.99333 | Y29: =IF(ISERROR(-(Y23/('3. Cost_of_Service_Parameters'!Y45*2)+MIN((Y22/'3. Cost_of_Service_Parameters'!Y45),(Y22+Y28)))), 0, -(Y23/('3. Cost_of_Service_Parameters'!Y45*2)+MIN((Y22/'3. Cost_of_Service_Parameters'!Y45),(Y22+Y28)))) -> -28522.02667
D30: Retirements/Removals (if applicable)
D31: Closing Balance | G31: =G28+G29-G30 -> 0 | I31: =I28+I29-I30 -> 0 | K31: =K28+K29-K30 -> 0 | M31: =M28+M29-M30 -> -9134.765 | O31: =O28+O29-O30 -> -28709.377 | Q31: =Q28+Q29-Q30 -> -52722.65133 | S31: =S28+S29-S30 -> -80428.80867 | U31: =U28+U29-U30 -> -108694.2687 | W31: =W28+W29-W30 -> -137044.262 | Y31: =Y28+Y29-Y30 -> -165566.2887
C33: Net Book Value
D34: Opening Balance | G34: =G22+G28 -> 0 | I34: =G35 -> 0 | K34: =I35 -> 0 | M34: =K35 -> 0 | O34: =M35 -> 264908.185 | Q34: =O35 -> 284486.033 | S34: =Q35 -> 354480.1687 | U34: =S35 -> 343553.0913 | W34: =U35 -> 315287.6313 | Y34: =W35 -> 289473.638
D35: Closing Balance | G35: =G25+G31 -> 0 | I35: =I25+I31 -> 0 | K35: =K25+K31 -> 0 | M35: =M25+M31 -> 264908.185 | O35: =O25+O31 -> 284486.033 | Q35: =Q25+Q31 -> 354480.1687 | S35: =S25+S31 -> 343553.0913 | U35: =U25+U31 -> 315287.6313 | W35: =W25+W31 -> 289473.638 | Y35: =Y25+Y31 -> 263576.6113
D36: Average Net Book Value | G36: =AVERAGE(G34:G35) -> 0 | I36: =AVERAGE(I34:I35) -> 0 | K36: =AVERAGE(K34:K35) -> 0 | M36: =AVERAGE(M34:M35) -> 132454.0925 | O36: =AVERAGE(O34:O35) -> 274697.109 | Q36: =AVERAGE(Q34:Q35) -> 319483.1008 | S36: =AVERAGE(S34:S35) -> 349016.63 | U36: =AVERAGE(U34:U35) -> 329420.3613 | W36: =AVERAGE(W34:W35) -> 302380.6347 | Y36: =AVERAGE(Y34:Y35) -> 276525.1247
B38: Net Fixed Assets - Computer Hardware
C40: Gross Book Value
D41: Opening Balance | I41: =G44 -> 0 | K41: =I44 -> 0 | M41: =K44 -> 0 | O41: =M44 -> 4262.33 | Q41: =O44 -> 4996.28 | S41: =Q44 -> 4996.28 | U41: =S44 -> 4996.28 | W41: =U44 -> 4996.28 | Y41: =W44 -> 4996.28
D42: Capital Additions during year (from Smart Meter Costs) | G42: ='2. Smart_Meter_Costs'!G183 -> 0 | I42: ='2. Smart_Meter_Costs'!I183 -> 0 | K42: ='2. Smart_Meter_Costs'!K183 -> 0 | M42: ='2. Smart_Meter_Costs'!M183 -> 4262.33 | O42: ='2. Smart_Meter_Costs'!O183 -> 733.95 | Q42: ='2. Smart_Meter_Costs'!Q183 -> 0 | S42: ='2. Smart_Meter_Costs'!S183 -> 0 | U42: ='2. Smart_Meter_Costs'!U183 -> 0 | W42: ='2. Smart_Meter_Costs'!W183 -> 0 | Y42: ='2. Smart_Meter_Costs'!Y183 -> 0
D43: Retirements/Removals (if applicable)
D44: Closing Balance | G44: =G41+G42-G43 -> 0 | I44: =I41+I42-I43 -> 0 | K44: =K41+K42-K43 -> 0 | M44: =M41+M42-M43 -> 4262.33 | O44: =O41+O42-O43 -> 4996.28 | Q44: =Q41+Q42-Q43 -> 4996.28 | S44: =S41+S42-S43 -> 4996.28 | U44: =U41+U42-U43 -> 4996.28 | W44: =W41+W42-W43 -> 4996.28 | Y44: =Y41+Y42-Y43 -> 4996.28
C46: Accumulated Depreciation
D47: Opening Balance | G47: 0 | I47: =G50 -> 0 | K47: =I50 -> 0 | M47: =K50 -> 0 | O47: =M50 -> -426.233 | Q47: =O50 -> -1352.094 | S47: =Q50 -> -2351.35 | U47: =S50 -> -3350.606 | W47: =U50 -> -4349.862 | Y47: =W50 -> -4996.28
D48: Amortization expense during year | G48: =IF(ISERROR(-G42/('3. Cost_of_Service_Parameters'!G47*2)), 0, -G42/('3. Cost_of_Service_Parameters'!G47*2)) -> 0 | I48: =IF(ISERROR(-(I42/('3. Cost_of_Service_Parameters'!I47*2)+MIN((I41/'3. Cost_of_Service_Parameters'!I47),(I41+I47)))), 0, -(I42/('3. Cost_of_Service_Parameters'!I47*2)+MIN((I41/'3. Cost_of_Service_Parameters'!I47),(I41+I47)))) -> 0 | K48: =IF(ISERROR(-(K42/('3. Cost_of_Service_Parameters'!K47*2)+MIN((K41/'3. Cost_of_Service_Parameters'!K47),(K41+K47)))), 0, -(K42/('3. Cost_of_Service_Parameters'!K47*2)+MIN((K41/'3. Cost_of_Service_Parameters'!K47),(K41+K47)))) -> 0 | M48: =IF(ISERROR(-(M42/('3. Cost_of_Service_Parameters'!M47*2)+MIN((M41/'3. Cost_of_Service_Parameters'!M47),(M41+M47)))), 0,-(M42/('3. Cost_of_Service_Parameters'!M47*2)+MIN((M41/'3. Cost_of_Service_Parameters'!M47),(M41+M47)))) -> -426.233 | O48: =IF(ISERROR(-(O42/('3. Cost_of_Service_Parameters'!O47*2)+MIN((O41/'3. Cost_of_Service_Parameters'!O47),(O41+O47)))), 0, -(O42/('3. Cost_of_Service_Parameters'!O47*2)+MIN((O41/'3. Cost_of_Service_Parameters'!O47),(O41+O47)))) -> -925.861 | Q48: =IF(ISERROR(-(Q42/('3. Cost_of_Service_Parameters'!Q47*2)+MIN((Q41/'3. Cost_of_Service_Parameters'!Q47),(Q41+Q47)))), 0, -(Q42/('3. Cost_of_Service_Parameters'!Q47*2)+MIN((Q41/'3. Cost_of_Service_Parameters'!Q47),(Q41+Q47)))) -> -999.256 | S48: =IF(ISERROR(-(S42/('3. Cost_of_Service_Parameters'!S47*2)+MIN((S41/'3. Cost_of_Service_Parameters'!S47),(S41+S47)))), 0, -(S42/('3. Cost_of_Service_Parameters'!S47*2)+MIN((S41/'3. Cost_of_Service_Parameters'!S47),(S41+S47)))) -> -999.256 | U48: =IF(ISERROR(-(U42/('3. Cost_of_Service_Parameters'!U47*2)+MIN((U41/'3. Cost_of_Service_Parameters'!U47),(U41+U47)))), 0, -(U42/('3. Cost_of_Service_Parameters'!U47*2)+MIN((U41/'3. Cost_of_Service_Parameters'!U47),(U41+U47)))) -> -999.256 | W48: =IF(ISERROR(-(W42/('3. Cost_of_Service_Parameters'!W47*2)+MIN((W41/'3. Cost_of_Service_Parameters'!W47),(W41+W47)))), 0, -(W42/('3. Cost_of_Service_Parameters'!W47*2)+MIN((W41/'3. Cost_of_Service_Parameters'!W47),(W41+W47)))) -> -646.418 | Y48: =IF(ISERROR(-(Y42/('3. Cost_of_Service_Parameters'!Y47*2)+MIN((Y41/'3. Cost_of_Service_Parameters'!Y47),(Y41+Y47)))), 0, -(Y42/('3. Cost_of_Service_Parameters'!Y47*2)+MIN((Y41/'3. Cost_of_Service_Parameters'!Y47),(Y41+Y47)))) -> 0
D49: Retirements/Removals (if applicable)
D50: Closing Balance | G50: =G47+G48-G49 -> 0 | I50: =I47+I48-I49 -> 0 | K50: =K47+K48-K49 -> 0 | M50: =M47+M48-M49 -> -426.233 | O50: =O47+O48-O49 -> -1352.094 | Q50: =Q47+Q48-Q49 -> -2351.35 | S50: =S47+S48-S49 -> -3350.606 | U50: =U47+U48-U49 -> -4349.862 | W50: =W47+W48-W49 -> -4996.28 | Y50: =Y47+Y48-Y49 -> -4996.28
C52: Net Book Value
D53: Opening Balance | G53: =G41+G47 -> 0 | I53: =G54 -> 0 | K53: =I54 -> 0 | M53: =K54 -> 0 | O53: =M54 -> 3836.097 | Q53: =O54 -> 3644.186 | S53: =Q54 -> 2644.93 | U53: =S54 -> 1645.674 | W53: =U54 -> 646.418 | Y53: =W54 -> 0
D54: Closing Balance | G54: =G44+G50 -> 0 | I54: =I44+I50 -> 0 | K54: =K44+K50 -> 0 | M54: =M44+M50 -> 3836.097 | O54: =O44+O50 -> 3644.186 | Q54: =Q44+Q50 -> 2644.93 | S54: =S44+S50 -> 1645.674 | U54: =U44+U50 -> 646.418 | W54: =W44+W50 -> 0 | Y54: =Y44+Y50 -> 0
D55: Average Net Book Value | G55: =AVERAGE(G53:G54) -> 0 | I55: =AVERAGE(I53:I54) -> 0 | K55: =AVERAGE(K53:K54) -> 0 | M55: =AVERAGE(M53:M54) -> 1918.0485 | O55: =AVERAGE(O53:O54) -> 3740.1415 | Q55: =AVERAGE(Q53:Q54) -> 3144.558 | S55: =AVERAGE(S53:S54) -> 2145.302 | U55: =AVERAGE(U53:U54) -> 1146.046 | W55: =AVERAGE(W53:W54) -> 323.209 | Y55: =AVERAGE(Y53:Y54) -> 0
B57: Net Fixed Assets - Computer Software (including Applications Software)
C59: Gross Book Value
D60: Opening Balance | I60: =G63 -> 0 | K60: =I63 -> 0 | M60: =K63 -> 0 | O60: =M63 -> 0 | Q60: =O63 -> 14573.3 | S60: =Q63 -> 29460.1 | U60: =S63 -> 30161.08 | W60: =U63 -> 30965.67 | Y60: =W63 -> 30965.67
D61: Capital Additions during year (from Smart Meter Costs) | G61: ='2. Smart_Meter_Costs'!G185+'2. Smart_Meter_Costs'!G191 -> 0 | I61: ='2. Smart_Meter_Costs'!I185+'2. Smart_Meter_Costs'!I191 -> 0 | K61: ='2. Smart_Meter_Costs'!K185+'2. Smart_Meter_Costs'!K191 -> 0 | M61: ='2. Smart_Meter_Costs'!M185+'2. Smart_Meter_Costs'!M191 -> 0 | O61: ='2. Smart_Meter_Costs'!O185+'2. Smart_Meter_Costs'!O191 -> 14573.3 | Q61: ='2. Smart_Meter_Costs'!Q185+'2. Smart_Meter_Costs'!Q191 -> 14886.8 | S61: ='2. Smart_Meter_Costs'!S185+'2. Smart_Meter_Costs'!S191 -> 700.98 | U61: ='2. Smart_Meter_Costs'!U185+'2. Smart_Meter_Costs'!U191 -> 804.59 | W61: ='2. Smart_Meter_Costs'!W185+'2. Smart_Meter_Costs'!W191 -> 0 | Y61: ='2. Smart_Meter_Costs'!Y185+'2. Smart_Meter_Costs'!Y191 -> 0
D62: Retirements/Removals (if applicable)
D63: Closing Balance | G63: =G60+G61-G62 -> 0 | I63: =I60+I61-I62 -> 0 | K63: =K60+K61-K62 -> 0 | M63: =M60+M61-M62 -> 0 | O63: =O60+O61-O62 -> 14573.3 | Q63: =Q60+Q61-Q62 -> 29460.1 | S63: =S60+S61-S62 -> 30161.08 | U63: =U60+U61-U62 -> 30965.67 | W63: =W60+W61-W62 -> 30965.67 | Y63: =Y60+Y61-Y62 -> 30965.67
C65: Accumulated Depreciation
D66: Opening Balance | G66: 0 | I66: =G69 -> 0 | K66: =I69 -> 0 | M66: =K69 -> 0 | O66: =M69 -> 0 | Q66: =O69 -> -1457.33 | S66: =Q69 -> -5860.67 | U66: =S69 -> -11822.788 | W66: =U69 -> -17935.463 | Y66: =W69 -> -24128.597
D67: Amortization expense during year | G67: =IF(ISERROR(-G61/('3. Cost_of_Service_Parameters'!G49*2)), 0, -G61/('3. Cost_of_Service_Parameters'!G49*2)) -> 0 | I67: =IF(ISERROR(-(I61/('3. Cost_of_Service_Parameters'!I49*2)+MIN((I60/'3. Cost_of_Service_Parameters'!I49),(I60+I66)))), 0, -(I61/('3. Cost_of_Service_Parameters'!I49*2)+MIN((I60/'3. Cost_of_Service_Parameters'!I49),(I60+I66)))) -> 0 | K67: =IF(ISERROR(-(K61/('3. Cost_of_Service_Parameters'!K49*2)+MIN((K60/'3. Cost_of_Service_Parameters'!K49),(K60+K66)))), 0, -(K61/('3. Cost_of_Service_Parameters'!K49*2)+MIN((K60/'3. Cost_of_Service_Parameters'!K49),(K60+K66)))) -> 0 | M67: =IF(ISERROR(-(M61/('3. Cost_of_Service_Parameters'!M49*2)+MIN((M60/'3. Cost_of_Service_Parameters'!M49),(M60+M66)))), 0,-(M61/('3. Cost_of_Service_Parameters'!M49*2)+MIN((M60/'3. Cost_of_Service_Parameters'!M49),(M60+M66)))) -> 0 | O67: =IF(ISERROR(-(O61/('3. Cost_of_Service_Parameters'!O49*2)+MIN((O60/'3. Cost_of_Service_Parameters'!O49),(O60+O66)))), 0, -(O61/('3. Cost_of_Service_Parameters'!O49*2)+MIN((O60/'3. Cost_of_Service_Parameters'!O49),(O60+O66)))) -> -1457.33 | Q67: =IF(ISERROR(-(Q61/('3. Cost_of_Service_Parameters'!Q49*2)+MIN((Q60/'3. Cost_of_Service_Parameters'!Q49),(Q60+Q66)))), 0, -(Q61/('3. Cost_of_Service_Parameters'!Q49*2)+MIN((Q60/'3. Cost_of_Service_Parameters'!Q49),(Q60+Q66)))) -> -4403.34 | S67: =IF(ISERROR(-(S61/('3. Cost_of_Service_Parameters'!S49*2)+MIN((S60/'3. Cost_of_Service_Parameters'!S49),(S60+S66)))), 0, -(S61/('3. Cost_of_Service_Parameters'!S49*2)+MIN((S60/'3. Cost_of_Service_Parameters'!S49),(S60+S66)))) -> -5962.118 | U67: =IF(ISERROR(-(U61/('3. Cost_of_Service_Parameters'!U49*2)+MIN((U60/'3. Cost_of_Service_Parameters'!U49),(U60+U66)))), 0, -(U61/('3. Cost_of_Service_Parameters'!U49*2)+MIN((U60/'3. Cost_of_Service_Parameters'!U49),(U60+U66)))) -> -6112.675 | W67: =IF(ISERROR(-(W61/('3. Cost_of_Service_Parameters'!W49*2)+MIN((W60/'3. Cost_of_Service_Parameters'!W49),(W60+W66)))), 0, -(W61/('3. Cost_of_Service_Parameters'!W49*2)+MIN((W60/'3. Cost_of_Service_Parameters'!W49),(W60+W66)))) -> -6193.134 | Y67: =IF(ISERROR(-(Y61/('3. Cost_of_Service_Parameters'!Y49*2)+MIN((Y60/'3. Cost_of_Service_Parameters'!Y49),(Y60+Y66)))), 0, -(Y61/('3. Cost_of_Service_Parameters'!Y49*2)+MIN((Y60/'3. Cost_of_Service_Parameters'!Y49),(Y60+Y66)))) -> -6193.134
D68: Retirements/Removals (if applicable)
D69: Closing Balance | G69: =G66+G67-G68 -> 0 | I69: =I66+I67-I68 -> 0 | K69: =K66+K67-K68 -> 0 | M69: =M66+M67-M68 -> 0 | O69: =O66+O67-O68 -> -1457.33 | Q69: =Q66+Q67-Q68 -> -5860.67 | S69: =S66+S67-S68 -> -11822.788 | U69: =U66+U67-U68 -> -17935.463 | W69: =W66+W67-W68 -> -24128.597 | Y69: =Y66+Y67-Y68 -> -30321.731
C71: Net Book Value
D72: Opening Balance | G72: =G60+G66 -> 0 | I72: =G73 -> 0 | K72: =I73 -> 0 | M72: =K73 -> 0 | O72: =M73 -> 0 | Q72: =O73 -> 13115.97 | S72: =Q73 -> 23599.43 | U72: =S73 -> 18338.292 | W72: =U73 -> 13030.207 | Y72: =W73 -> 6837.073
D73: Closing Balance | G73: =G63+G69 -> 0 | I73: =I63+I69 -> 0 | K73: =K63+K69 -> 0 | M73: =M63+M69 -> 0 | O73: =O63+O69 -> 13115.97 | Q73: =Q63+Q69 -> 23599.43 | S73: =S63+S69 -> 18338.292 | U73: =U63+U69 -> 13030.207 | W73: =W63+W69 -> 6837.073 | Y73: =Y63+Y69 -> 643.939
D74: Average Net Book Value | G74: =AVERAGE(G72:G73) -> 0 | I74: =AVERAGE(I72:I73) -> 0 | K74: =AVERAGE(K72:K73) -> 0 | M74: =AVERAGE(M72:M73) -> 0 | O74: =AVERAGE(O72:O73) -> 6557.985 | Q74: =AVERAGE(Q72:Q73) -> 18357.7 | S74: =AVERAGE(S72:S73) -> 20968.861 | U74: =AVERAGE(U72:U73) -> 15684.2495 | W74: =AVERAGE(W72:W73) -> 9933.64 | Y74: =AVERAGE(Y72:Y73) -> 3740.506
B76: Net Fixed Assets - Tools and Equipment
C78: Gross Book Value
D79: Opening Balance | I79: =G82 -> 0 | K79: =I82 -> 0 | M79: =K82 -> 0 | O79: =M82 -> 0 | Q79: =O82 -> 0 | S79: =Q82 -> 0 | U79: =S82 -> 0 | W79: =U82 -> 0 | Y79: =W82 -> 0
D80: Capital Additions during year (from Smart Meter Costs) | G80: ='2. Smart_Meter_Costs'!G187 -> 0 | I80: ='2. Smart_Meter_Costs'!I187 -> 0 | K80: ='2. Smart_Meter_Costs'!K187 -> 0 | M80: ='2. Smart_Meter_Costs'!M187 -> 0 | O80: ='2. Smart_Meter_Costs'!O187 -> 0 | Q80: ='2. Smart_Meter_Costs'!Q187 -> 0 | S80: ='2. Smart_Meter_Costs'!S187 -> 0 | U80: ='2. Smart_Meter_Costs'!U187 -> 0 | W80: ='2. Smart_Meter_Costs'!W187 -> 0 | Y80: ='2. Smart_Meter_Costs'!Y187 -> 0
D81: Retirements/Removals (if applicable)
D82: Closing Balance | G82: =G79+G80-G81 -> 0 | I82: =I79+I80-I81 -> 0 | K82: =K79+K80-K81 -> 0 | M82: =M79+M80-M81 -> 0 | O82: =O79+O80-O81 -> 0 | Q82: =Q79+Q80-Q81 -> 0 | S82: =S79+S80-S81 -> 0 | U82: =U79+U80-U81 -> 0 | W82: =W79+W80-W81 -> 0 | Y82: =Y79+Y80-Y81 -> 0
C84: Accumulated Depreciation
D85: Opening Balance | G85: 0 | I85: =G88 -> 0 | K85: =I88 -> 0 | M85: =K88 -> 0 | O85: =M88 -> 0 | Q85: =O88 -> 0 | S85: =Q88 -> 0 | U85: =S88 -> 0 | W85: =U88 -> 0 | Y85: =W88 -> 0
D86: Amortization expense during year | G86: =IF(ISERROR(-G80/('3. Cost_of_Service_Parameters'!G51*2)), 0, -G80/('3. Cost_of_Service_Parameters'!G51*2)) -> 0 | I86: =IF(ISERROR(-(I80/('3. Cost_of_Service_Parameters'!I51*2)+MIN((I79/'3. Cost_of_Service_Parameters'!I51),(I79+I85)))), 0, -(I80/('3. Cost_of_Service_Parameters'!I51*2)+MIN((I79/'3. Cost_of_Service_Parameters'!I51),(I79+I85)))) -> 0 | K86: =IF(ISERROR(-(K80/('3. Cost_of_Service_Parameters'!K51*2)+MIN((K79/'3. Cost_of_Service_Parameters'!K51),(K79+K85)))), 0, -(K80/('3. Cost_of_Service_Parameters'!K51*2)+MIN((K79/'3. Cost_of_Service_Parameters'!K51),(K79+K85)))) -> 0 | M86: =IF(ISERROR(-(M80/('3. Cost_of_Service_Parameters'!M51*2)+MIN((M79/'3. Cost_of_Service_Parameters'!M51),(M79+M85)))), 0,-(M80/('3. Cost_of_Service_Parameters'!M51*2)+MIN((M79/'3. Cost_of_Service_Parameters'!M51),(M79+M85)))) -> 0 | O86: =IF(ISERROR(-(O80/('3. Cost_of_Service_Parameters'!O51*2)+MIN((O79/'3. Cost_of_Service_Parameters'!O51),(O79+O85)))), 0, -(O80/('3. Cost_of_Service_Parameters'!O51*2)+MIN((O79/'3. Cost_of_Service_Parameters'!O51),(O79+O85)))) -> 0 | Q86: =IF(ISERROR(-(Q80/('3. Cost_of_Service_Parameters'!Q51*2)+MIN((Q79/'3. Cost_of_Service_Parameters'!Q51),(Q79+Q85)))), 0, -(Q80/('3. Cost_of_Service_Parameters'!Q51*2)+MIN((Q79/'3. Cost_of_Service_Parameters'!Q51),(Q79+Q85)))) -> 0 | S86: =IF(ISERROR(-(S80/('3. Cost_of_Service_Parameters'!S51*2)+MIN((S79/'3. Cost_of_Service_Parameters'!S51),(S79+S85)))), 0, -(S80/('3. Cost_of_Service_Parameters'!S51*2)+MIN((S79/'3. Cost_of_Service_Parameters'!S51),(S79+S85)))) -> 0 | U86: =IF(ISERROR(-(U80/('3. Cost_of_Service_Parameters'!U51*2)+MIN((U79/'3. Cost_of_Service_Parameters'!U51),(U79+U85)))), 0, -(U80/('3. Cost_of_Service_Parameters'!U51*2)+MIN((U79/'3. Cost_of_Service_Parameters'!U51),(U79+U85)))) -> 0 | W86: =IF(ISERROR(-(W80/('3. Cost_of_Service_Parameters'!W51*2)+MIN((W79/'3. Cost_of_Service_Parameters'!W51),(W79+W85)))), 0, -(W80/('3. Cost_of_Service_Parameters'!W51*2)+MIN((W79/'3. Cost_of_Service_Parameters'!W51),(W79+W85)))) -> 0 | Y86: =IF(ISERROR(-(Y80/('3. Cost_of_Service_Parameters'!Y51*2)+MIN((Y79/'3. Cost_of_Service_Parameters'!Y51),(Y79+Y85)))), 0, -(Y80/('3. Cost_of_Service_Parameters'!Y51*2)+MIN((Y79/'3. Cost_of_Service_Parameters'!Y51),(Y79+Y85)))) -> 0
D87: Retirements/Removals (if applicable)
D88: Closing Balance | G88: =G85+G86-G87 -> 0 | I88: =I85+I86-I87 -> 0 | K88: =K85+K86-K87 -> 0 | M88: =M85+M86-M87 -> 0 | O88: =O85+O86-O87 -> 0 | Q88: =Q85+Q86-Q87 -> 0 | S88: =S85+S86-S87 -> 0 | U88: =U85+U86-U87 -> 0 | W88: =W85+W86-W87 -> 0 | Y88: =Y85+Y86-Y87 -> 0
C90: Net Book Value
D91: Opening Balance | G91: =G79+G85 -> 0 | I91: =G92 -> 0 | K91: =I92 -> 0 | M91: =K92 -> 0 | O91: =M92 -> 0 | Q91: =O92 -> 0 | S91: =Q92 -> 0 | U91: =S92 -> 0 | W91: =U92 -> 0 | Y91: =W92 -> 0
D92: Closing Balance | G92: =G82+G88 -> 0 | I92: =I82+I88 -> 0 | K92: =K82+K88 -> 0 | M92: =M82+M88 -> 0 | O92: =O82+O88 -> 0 | Q92: =Q82+Q88 -> 0 | S92: =S82+S88 -> 0 | U92: =U82+U88 -> 0 | W92: =W82+W88 -> 0 | Y92: =Y82+Y88 -> 0
D93: Average Net Book Value | G93: =AVERAGE(G91:G92) -> 0 | I93: =AVERAGE(I91:I92) -> 0 | K93: =AVERAGE(K91:K92) -> 0 | M93: =AVERAGE(M91:M92) -> 0 | O93: =AVERAGE(O91:O92) -> 0 | Q93: =AVERAGE(Q91:Q92) -> 0 | S93: =AVERAGE(S91:S92) -> 0 | U93: =AVERAGE(U91:U92) -> 0 | W93: =AVERAGE(W91:W92) -> 0 | Y93: =AVERAGE(Y91:Y92) -> 0
B95: Net Fixed Assets - Other Equipment
C97: Gross Book Value
D98: Opening Balance | I98: =G101 -> 0 | K98: =I101 -> 0 | M98: =K101 -> 0 | O98: =M101 -> 176185.72 | Q98: =O101 -> 176885.72 | S98: =Q101 -> 186889.46 | U98: =S101 -> 190680.3 | W98: =U101 -> 198772.1 | Y98: =W101 -> 198772.1
D99: Capital Additions during year (from Smart Meter Costs) | G99: ='2. Smart_Meter_Costs'!G189 -> 0 | I99: ='2. Smart_Meter_Costs'!I189 -> 0 | K99: ='2. Smart_Meter_Costs'!K189 -> 0 | M99: ='2. Smart_Meter_Costs'!M189 -> 176185.72 | O99: ='2. Smart_Meter_Costs'!O189 -> 700 | Q99: ='2. Smart_Meter_Costs'!Q189 -> 10003.74 | S99: ='2. Smart_Meter_Costs'!S189 -> 3790.84 | U99: ='2. Smart_Meter_Costs'!U189 -> 8091.8 | W99: ='2. Smart_Meter_Costs'!W189 -> 0 | Y99: ='2. Smart_Meter_Costs'!Y189 -> 0
D100: Retirements/Removals (if applicable)
D101: Closing Balance | G101: =G98+G99-G100 -> 0 | I101: =I98+I99-I100 -> 0 | K101: =K98+K99-K100 -> 0 | M101: =M98+M99-M100 -> 176185.72 | O101: =O98+O99-O100 -> 176885.72 | Q101: =Q98+Q99-Q100 -> 186889.46 | S101: =S98+S99-S100 -> 190680.3 | U101: =U98+U99-U100 -> 198772.1 | W101: =W98+W99-W100 -> 198772.1 | Y101: =Y98+Y99-Y100 -> 198772.1
C103: Accumulated Depreciation
D104: Opening Balance | G104: 0 | I104: =G107 -> 0 | K104: =I107 -> 0 | M104: =K107 -> 0 | O104: =M107 -> -8809.286 | Q104: =O107 -> -26462.858 | S104: =Q107 -> -44651.617 | U104: =S107 -> -63530.105 | W104: =U107 -> -83002.725 | Y104: =W107 -> -102879.935
D105: Amortization expense during year | G105: =IF(ISERROR(-G99/('3. Cost_of_Service_Parameters'!G53*2)), 0, -G99/('3. Cost_of_Service_Parameters'!G53*2)) -> 0 | I105: =IF(ISERROR(-(I99/('3. Cost_of_Service_Parameters'!I53*2)+MIN((I98/'3. Cost_of_Service_Parameters'!I53),(I98+I104)))), 0, -(I99/('3. Cost_of_Service_Parameters'!I53*2)+MIN((I98/'3. Cost_of_Service_Parameters'!I53),(I98+I104)))) -> 0 | K105: =IF(ISERROR(-(K99/('3. Cost_of_Service_Parameters'!K53*2)+MIN((K98/'3. Cost_of_Service_Parameters'!K53),(K98+K104)))), 0, -(K99/('3. Cost_of_Service_Parameters'!K53*2)+MIN((K98/'3. Cost_of_Service_Parameters'!K53),(K98+K104)))) -> 0 | M105: =IF(ISERROR(-(M99/('3. Cost_of_Service_Parameters'!M53*2)+MIN((M98/'3. Cost_of_Service_Parameters'!M53),(M98+M104)))), 0,-(M99/('3. Cost_of_Service_Parameters'!M53*2)+MIN((M98/'3. Cost_of_Service_Parameters'!M53),(M98+M104)))) -> -8809.286 | O105: =IF(ISERROR(-(O99/('3. Cost_of_Service_Parameters'!O53*2)+MIN((O98/'3. Cost_of_Service_Parameters'!O53),(O98+O104)))), 0, -(O99/('3. Cost_of_Service_Parameters'!O53*2)+MIN((O98/'3. Cost_of_Service_Parameters'!O53),(O98+O104)))) -> -17653.572 | Q105: =IF(ISERROR(-(Q99/('3. Cost_of_Service_Parameters'!Q53*2)+MIN((Q98/'3. Cost_of_Service_Parameters'!Q53),(Q98+Q104)))), 0, -(Q99/('3. Cost_of_Service_Parameters'!Q53*2)+MIN((Q98/'3. Cost_of_Service_Parameters'!Q53),(Q98+Q104)))) -> -18188.759 | S105: =IF(ISERROR(-(S99/('3. Cost_of_Service_Parameters'!S53*2)+MIN((S98/'3. Cost_of_Service_Parameters'!S53),(S98+S104)))), 0, -(S99/('3. Cost_of_Service_Parameters'!S53*2)+MIN((S98/'3. Cost_of_Service_Parameters'!S53),(S98+S104)))) -> -18878.488 | U105: =IF(ISERROR(-(U99/('3. Cost_of_Service_Parameters'!U53*2)+MIN((U98/'3. Cost_of_Service_Parameters'!U53),(U98+U104)))), 0, -(U99/('3. Cost_of_Service_Parameters'!U53*2)+MIN((U98/'3. Cost_of_Service_Parameters'!U53),(U98+U104)))) -> -19472.62 | W105: =IF(ISERROR(-(W99/('3. Cost_of_Service_Parameters'!W53*2)+MIN((W98/'3. Cost_of_Service_Parameters'!W53),(W98+W104)))), 0, -(W99/('3. Cost_of_Service_Parameters'!W53*2)+MIN((W98/'3. Cost_of_Service_Parameters'!W53),(W98+W104)))) -> -19877.21 | Y105: =IF(ISERROR(-(Y99/('3. Cost_of_Service_Parameters'!Y53*2)+MIN((Y98/'3. Cost_of_Service_Parameters'!Y53),(Y98+Y104)))), 0, -(Y99/('3. Cost_of_Service_Parameters'!Y53*2)+MIN((Y98/'3. Cost_of_Service_Parameters'!Y53),(Y98+Y104)))) -> -19877.21
D106: Retirements/Removals (if applicable)
D107: Closing Balance | G107: =G104+G105-G106 -> 0 | I107: =I104+I105-I106 -> 0 | K107: =K104+K105-K106 -> 0 | M107: =M104+M105-M106 -> -8809.286 | O107: =O104+O105-O106 -> -26462.858 | Q107: =Q104+Q105-Q106 -> -44651.617 | S107: =S104+S105-S106 -> -63530.105 | U107: =U104+U105-U106 -> -83002.725 | W107: =W104+W105-W106 -> -102879.935 | Y107: =Y104+Y105-Y106 -> -122757.145
C109: Net Book Value
D110: Opening Balance | G110: =G98+G104 -> 0 | I110: =G111 -> 0 | K110: =I111 -> 0 | M110: =K111 -> 0 | O110: =M111 -> 167376.434 | Q110: =O111 -> 150422.862 | S110: =Q111 -> 142237.843 | U110: =S111 -> 127150.195 | W110: =U111 -> 115769.375 | Y110: =W111 -> 95892.165
D111: Closing Balance | G111: =G101+G107 -> 0 | I111: =I101+I107 -> 0 | K111: =K101+K107 -> 0 | M111: =M101+M107 -> 167376.434 | O111: =O101+O107 -> 150422.862 | Q111: =Q101+Q107 -> 142237.843 | S111: =S101+S107 -> 127150.195 | U111: =U101+U107 -> 115769.375 | W111: =W101+W107 -> 95892.165 | Y111: =Y101+Y107 -> 76014.955
D112: Average Net Book Value | G112: =AVERAGE(G110:G111) -> 0 | I112: =AVERAGE(I110:I111) -> 0 | K112: =AVERAGE(K110:K111) -> 0 | M112: =AVERAGE(M110:M111) -> 83688.217 | O112: =AVERAGE(O110:O111) -> 158899.648 | Q112: =AVERAGE(Q110:Q111) -> 146330.3525 | S112: =AVERAGE(S110:S111) -> 134694.019 | U112: =AVERAGE(U110:U111) -> 121459.785 | W112: =AVERAGE(W110:W111) -> 105830.77 | Y112: =AVERAGE(Y110:Y111) -> 85953.56

Sheet 5. SM_Rev_Reqt
G18: 2006 | I18: 2007 | K18: 2008 | M18: 2009 | O18: 2010 | Q18: 2011 | S18: 2012 | U18: 2013 | W18: 2014 | Y18: 2015
B19: Average Net Fixed Asset Values (from Sheet 4)
C20: Smart Meters | G20: ='4. SM_Assets_and_Rate_Base'!G36 -> 0 | I20: ='4. SM_Assets_and_Rate_Base'!I36 -> 0 | K20: ='4. SM_Assets_and_Rate_Base'!K36 -> 0 | M20: ='4. SM_Assets_and_Rate_Base'!M36 -> 132454.0925 | O20: ='4. SM_Assets_and_Rate_Base'!O36 -> 274697.109 | Q20: ='4. SM_Assets_and_Rate_Base'!Q36 -> 319483.1008 | S20: ='4. SM_Assets_and_Rate_Base'!S36 -> 349016.63 | U20: ='4. SM_Assets_and_Rate_Base'!U36 -> 329420.3613 | W20: ='4. SM_Assets_and_Rate_Base'!W36 -> 302380.6347 | Y20: ='4. SM_Assets_and_Rate_Base'!Y36 -> 276525.1247
C21: Computer Hardware | G21: ='4. SM_Assets_and_Rate_Base'!G55 -> 0 | I21: ='4. SM_Assets_and_Rate_Base'!I55 -> 0 | K21: ='4. SM_Assets_and_Rate_Base'!K55 -> 0 | M21: ='4. SM_Assets_and_Rate_Base'!M55 -> 1918.0485 | O21: ='4. SM_Assets_and_Rate_Base'!O55 -> 3740.1415 | Q21: ='4. SM_Assets_and_Rate_Base'!Q55 -> 3144.558 | S21: ='4. SM_Assets_and_Rate_Base'!S55 -> 2145.302 | U21: ='4. SM_Assets_and_Rate_Base'!U55 -> 1146.046 | W21: ='4. SM_Assets_and_Rate_Base'!W55 -> 323.209 | Y21: ='4. SM_Assets_and_Rate_Base'!Y55 -> 0
C22: Computer Software | G22: ='4. SM_Assets_and_Rate_Base'!G74 -> 0 | I22: ='4. SM_Assets_and_Rate_Base'!I74 -> 0 | K22: ='4. SM_Assets_and_Rate_Base'!K74 -> 0 | M22: ='4. SM_Assets_and_Rate_Base'!M74 -> 0 | O22: ='4. SM_Assets_and_Rate_Base'!O74 -> 6557.985 | Q22: ='4. SM_Assets_and_Rate_Base'!Q74 -> 18357.7 | S22: ='4. SM_Assets_and_Rate_Base'!S74 -> 20968.861 | U22: ='4. SM_Assets_and_Rate_Base'!U74 -> 15684.2495 | W22: ='4. SM_Assets_and_Rate_Base'!W74 -> 9933.64 | Y22: ='4. SM_Assets_and_Rate_Base'!Y74 -> 3740.506
C23: Tools & Equipment | G23: ='4. SM_Assets_and_Rate_Base'!G93 -> 0 | I23: ='4. SM_Assets_and_Rate_Base'!I93 -> 0 | K23: ='4. SM_Assets_and_Rate_Base'!K93 -> 0 | M23: ='4. SM_Assets_and_Rate_Base'!M93 -> 0 | O23: ='4. SM_Assets_and_Rate_Base'!O93 -> 0 | Q23: ='4. SM_Assets_and_Rate_Base'!Q93 -> 0 | S23: ='4. SM_Assets_and_Rate_Base'!S93 -> 0 | U23: ='4. SM_Assets_and_Rate_Base'!U93 -> 0 | W23: ='4. SM_Assets_and_Rate_Base'!W93 -> 0 | Y23: ='4. SM_Assets_and_Rate_Base'!Y93 -> 0
C24: Other Equipment | G24: ='4. SM_Assets_and_Rate_Base'!G112 -> 0 | I24: ='4. SM_Assets_and_Rate_Base'!I112 -> 0 | K24: ='4. SM_Assets_and_Rate_Base'!K112 -> 0 | M24: ='4. SM_Assets_and_Rate_Base'!M112 -> 83688.217 | O24: ='4. SM_Assets_and_Rate_Base'!O112 -> 158899.648 | Q24: ='4. SM_Assets_and_Rate_Base'!Q112 -> 146330.3525 | S24: ='4. SM_Assets_and_Rate_Base'!S112 -> 134694.019 | U24: ='4. SM_Assets_and_Rate_Base'!U112 -> 121459.785 | W24: ='4. SM_Assets_and_Rate_Base'!W112 -> 105830.77 | Y24: ='4. SM_Assets_and_Rate_Base'!Y112 -> 85953.56
C25: Total Net Fixed Assets | G25: =SUM(G20:G24) -> 0 | I25: =SUM(I20:I24) -> 0 | K25: =SUM(K20:K24) -> 0 | M25: =SUM(M20:M24) -> 218060.358 | O25: =SUM(O20:O24) -> 443894.8835 | Q25: =SUM(Q20:Q24) -> 487315.7113 | S25: =SUM(S20:S24) -> 506824.812 | U25: =SUM(U20:U24) -> 467710.4418 | W25: =SUM(W20:W24) -> 418468.2537 | Y25: =SUM(Y20:Y24) -> 366219.1907
B27: Working Capital
C28: Operating Expenses (from Sheet 2) | G28: ='2. Smart_Meter_Costs'!G174 -> 0 | I28: ='2. Smart_Meter_Costs'!I174 -> 9788.11 | K28: ='2. Smart_Meter_Costs'!K174 -> 9537.66 | M28: ='2. Smart_Meter_Costs'!M174 -> 18418.17 | O28: ='2. Smart_Meter_Costs'!O174 -> 61848.2 | Q28: ='2. Smart_Meter_Costs'!Q174 -> 38097.89 | S28: ='2. Smart_Meter_Costs'!S174 -> 21343.14 | U28: ='2. Smart_Meter_Costs'!U174 -> 25667.54 | W28: ='2. Smart_Meter_Costs'!W174 -> 32601.99 | Y28: ='2. Smart_Meter_Costs'!Y174 -> 33254.0298
C29: Working Capital Factor (from Sheet 3) | G29: ='3. Cost_of_Service_Parameters'!G36 -> 0.15 | I29: ='3. Cost_of_Service_Parameters'!I36 -> 0.15 | K29: ='3. Cost_of_Service_Parameters'!K36 -> 0.15 | M29: ='3. Cost_of_Service_Parameters'!M36 -> 0.15 | O29: ='3. Cost_of_Service_Parameters'!O36 -> 0.15 | Q29: ='3. Cost_of_Service_Parameters'!Q36 -> 0.15 | S29: ='3. Cost_of_Service_Parameters'!S36 -> 0.15 | U29: ='3. Cost_of_Service_Parameters'!U36 -> 0.15 | W29: ='3. Cost_of_Service_Parameters'!W36 -> 0.15 | Y29: ='3. Cost_of_Service_Parameters'!Y36 -> 0.13
C30: Working Capital Allowance | G30: =G28*G29 -> 0 | I30: =I28*I29 -> 1468.2165 | K30: =K28*K29 -> 1430.649 | M30: =M28*M29 -> 2762.7255 | O30: =O28*O29 -> 9277.23 | Q30: =Q28*Q29 -> 5714.6835 | S30: =S28*S29 -> 3201.471 | U30: =U28*U29 -> 3850.131 | W30: =W28*W29 -> 4890.2985 | Y30: =Y28*Y29 -> 4323.023874
B32: Incremental Smart Meter Rate Base | G32: =G25+G30 -> 0 | I32: =I25+I30 -> 1468.2165 | K32: =K25+K30 -> 1430.649 | M32: =M25+M30 -> 220823.0835 | O32: =O25+O30 -> 453172.1135 | Q32: =Q25+Q30 -> 493030.3948 | S32: =S25+S30 -> 510026.283 | U32: =U25+U30 -> 471560.5728 | W32: =W25+W30 -> 423358.5522 | Y32: =Y25+Y30 -> 370542.2145
B34: Return on Rate Base
C35: Capital Structure
C36: Deemed Short Term Debt | G36: =G$32*'3. Cost_of_Service_Parameters'!G22 -> 0 | I36: =I$32*'3. Cost_of_Service_Parameters'!I22 -> 0 | K36: =K$32*'3. Cost_of_Service_Parameters'!K22 -> 0 | M36: =M$32*'3. Cost_of_Service_Parameters'!M22 -> 0 | O36: =O$32*'3. Cost_of_Service_Parameters'!O22 -> 18126.88454 | Q36: =Q$32*'3. Cost_of_Service_Parameters'!Q22 -> 19721.21579 | S36: =S$32*'3. Cost_of_Service_Parameters'!S22 -> 20401.05132 | U36: =U$32*'3. Cost_of_Service_Parameters'!U22 -> 18862.42291 | W36: =W$32*'3. Cost_of_Service_Parameters'!W22 -> 16934.34209 | Y36: =Y$32*'3. Cost_of_Service_Parameters'!Y22 -> 14821.68858
C37: Deemed Long Term Debt | G37: =G$32*'3. Cost_of_Service_Parameters'!G23 -> 0 | I37: =I$32*'3. Cost_of_Service_Parameters'!I23 -> 734.10825 | K37: =K$32*'3. Cost_of_Service_Parameters'!K23 -> 762.535917 | M37: =M$32*'3. Cost_of_Service_Parameters'!M23 -> 125206.6883 | O37: =O$32*'3. Cost_of_Service_Parameters'!O23 -> 253776.3836 | Q37: =Q$32*'3. Cost_of_Service_Parameters'!Q23 -> 276097.0211 | S37: =S$32*'3. Cost_of_Service_Parameters'!S23 -> 285614.7185 | U37: =U$32*'3. Cost_of_Service_Parameters'!U23 -> 264073.9208 | W37: =W$32*'3. Cost_of_Service_Parameters'!W23 -> 237080.7892 | Y37: =Y$32*'3. Cost_of_Service_Parameters'!Y23 -> 207503.6401
C38: Equity | G38: =G$32*'3. Cost_of_Service_Parameters'!G24 -> 0 | I38: =I$32*'3. Cost_of_Service_Parameters'!I24 -> 734.10825 | K38: =K$32*'3. Cost_of_Service_Parameters'!K24 -> 668.113083 | M38: =M$32*'3. Cost_of_Service_Parameters'!M24 -> 95616.39516 | O38: =O$32*'3. Cost_of_Service_Parameters'!O24 -> 181268.8454 | Q38: =Q$32*'3. Cost_of_Service_Parameters'!Q24 -> 197212.1579 | S38: =S$32*'3. Cost_of_Service_Parameters'!S24 -> 204010.5132 | U38: =U$32*'3. Cost_of_Service_Parameters'!U24 -> 188624.2291 | W38: =W$32*'3. Cost_of_Service_Parameters'!W24 -> 169343.4209 | Y38: =Y$32*'3. Cost_of_Service_Parameters'!Y24 -> 148216.8858
C39: Preferred Shares | G39: =G$32*'3. Cost_of_Service_Parameters'!G25 -> 0 | I39: =I$32*'3. Cost_of_Service_Parameters'!I25 -> 0 | K39: =K$32*'3. Cost_of_Service_Parameters'!K25 -> 0 | M39: =M$32*'3. Cost_of_Service_Parameters'!M25 -> 0 | O39: =O$32*'3. Cost_of_Service_Parameters'!O25 -> 0 | Q39: =Q$32*'3. Cost_of_Service_Parameters'!Q25 -> 0 | S39: =S$32*'3. Cost_of_Service_Parameters'!S25 -> 0 | U39: =U$32*'3. Cost_of_Service_Parameters'!U25 -> 0 | W39: =W$32*'3. Cost_of_Service_Parameters'!W25 -> 0 | Y39: =Y$32*'3. Cost_of_Service_Parameters'!Y25 -> 0
C40: Total Capitalization | G40: =SUM(G36:G39) -> 0 | I40: =SUM(I36:I39) -> 1468.2165 | K40: =SUM(K36:K39) -> 1430.649 | M40: =SUM(M36:M39) -> 220823.0835 | O40: =SUM(O36:O39) -> 453172.1135 | Q40: =SUM(Q36:Q39) -> 493030.3948 | S40: =SUM(S36:S39) -> 510026.283 | U40: =SUM(U36:U39) -> 471560.5728 | W40: =SUM(W36:W39) -> 423358.5522 | Y40: =SUM(Y36:Y39) -> 370542.2145
G41: =IF(G40=G32,"","Error") ->  | I41: =IF(I40=I32,"","Error") ->  | K41: =IF(K40=K32,"","Error") ->  | M41: =IF(M40=M32,"","Error") ->  | O41: =IF(O40=O32,"","Error") ->  | Q41: =IF(Q40=Q32,"","Error") ->  | S41: =IF(S40=S32,"","Error") ->  | U41: =IF(U40=U32,"","Error") ->  | W41: =IF(W40=W32,"","Error") ->  | Y41: =IF(Y40=Y32,"","Error") -> 
C42: Return on
C43: Deemed Short Term Debt | G43: =G36*'3. Cost_of_Service_Parameters'!G29 -> 0 | I43: =I36*'3. Cost_of_Service_Parameters'!I29 -> 0 | K43: =K36*'3. Cost_of_Service_Parameters'!K29 -> 0 | M43: =M36*'3. Cost_of_Service_Parameters'!M29 -> 0 | O43: =O36*'3. Cost_of_Service_Parameters'!O29 -> 375.22651 | Q43: =Q36*'3. Cost_of_Service_Parameters'!Q29 -> 408.2291669 | S43: =S36*'3. Cost_of_Service_Parameters'!S29 -> 422.3017623 | U43: =U36*'3. Cost_of_Service_Parameters'!U29 -> 390.4521543 | W43: =W36*'3. Cost_of_Service_Parameters'!W29 -> 350.5408812 | Y43: =Y36*'3. Cost_of_Service_Parameters'!Y29 -> 320.1484734
C44: Deemed Long Term Debt | G44: =G37*'3. Cost_of_Service_Parameters'!G30 -> 0 | I44: =I37*'3. Cost_of_Service_Parameters'!I30 -> 45.88176562 | K44: =K37*'3. Cost_of_Service_Parameters'!K30 -> 47.65849481 | M44: =M37*'3. Cost_of_Service_Parameters'!M30 -> 7825.418022 | O44: =O37*'3. Cost_of_Service_Parameters'!O30 -> 14896.67371 | Q44: =Q37*'3. Cost_of_Service_Parameters'!Q30 -> 16206.89514 | S44: =S37*'3. Cost_of_Service_Parameters'!S30 -> 16765.58397 | U44: =U37*'3. Cost_of_Service_Parameters'!U30 -> 15501.13915 | W44: =W37*'3. Cost_of_Service_Parameters'!W30 -> 13916.64233 | Y44: =Y37*'3. Cost_of_Service_Parameters'!Y30 -> 9897.923635
C45: Equity | G45: =G38*'3. Cost_of_Service_Parameters'!G31 -> 0 | I45: =I38*'3. Cost_of_Service_Parameters'!I31 -> 66.0697425 | K45: =K38*'3. Cost_of_Service_Parameters'!K31 -> 60.13017747 | M45: =M38*'3. Cost_of_Service_Parameters'!M31 -> 8605.475564 | O45: =O38*'3. Cost_of_Service_Parameters'!O31 -> 13250.7526 | Q45: =Q38*'3. Cost_of_Service_Parameters'!Q31 -> 14416.20874 | S45: =S38*'3. Cost_of_Service_Parameters'!S31 -> 14913.16851 | U45: =U38*'3. Cost_of_Service_Parameters'!U31 -> 13788.43115 | W45: =W38*'3. Cost_of_Service_Parameters'!W31 -> 12379.00407 | Y45: =Y38*'3. Cost_of_Service_Parameters'!Y31 -> 9604.454201
C46: Preferred Shares | G46: =G39*'3. Cost_of_Service_Parameters'!G32 -> 0 | I46: =I39*'3. Cost_of_Service_Parameters'!I32 -> 0 | K46: =K39*'3. Cost_of_Service_Parameters'!K32 -> 0 | M46: =M39*'3. Cost_of_Service_Parameters'!M32 -> 0 | O46: =O39*'3. Cost_of_Service_Parameters'!O32 -> 0 | Q46: =Q39*'3. Cost_of_Service_Parameters'!Q32 -> 0 | S46: =S39*'3. Cost_of_Service_Parameters'!S32 -> 0 | U46: =U39*'3. Cost_of_Service_Parameters'!U32 -> 0 | W46: =W39*'3. Cost_of_Service_Parameters'!W32 -> 0 | Y46: =Y39*'3. Cost_of_Service_Parameters'!Y32 -> 0
C47: Total Return on Capital | G47: =SUM(G43:G46) -> 0 | I47: =SUM(I43:I46) -> 111.9515081 | K47: =SUM(K43:K46) -> 107.7886723 | M47: =SUM(M43:M46) -> 16430.89359 | O47: =SUM(O43:O46) -> 28522.65282 | Q47: =SUM(Q43:Q46) -> 31031.33305 | S47: =SUM(S43:S46) -> 32101.05425 | U47: =SUM(U43:U46) -> 29680.02245 | W47: =SUM(W43:W46) -> 26646.18727 | Y47: =SUM(Y43:Y46) -> 19822.52631
B50: Operating Expenses | G50: =G28 -> 0 | I50: =I28 -> 9788.11 | K50: =K28 -> 9537.66 | M50: =M28 -> 18418.17 | O50: =O28 -> 61848.2 | Q50: =Q28 -> 38097.89 | S50: =S28 -> 21343.14 | U50: =U28 -> 25667.54 | W50: =W28 -> 32601.99 | Y50: =Y28 -> 33254.0298
B52: Amortization Expenses (from Sheet 4)
C53: Smart Meters | G53: =-'4. SM_Assets_and_Rate_Base'!G29 -> 0 | I53: =-'4. SM_Assets_and_Rate_Base'!I29 -> 0 | K53: =-'4. SM_Assets_and_Rate_Base'!K29 -> 0 | M53: =-'4. SM_Assets_and_Rate_Base'!M29 -> 9134.765 | O53: =-'4. SM_Assets_and_Rate_Base'!O29 -> 19574.612 | Q53: =-'4. SM_Assets_and_Rate_Base'!Q29 -> 24013.27433 | S53: =-'4. SM_Assets_and_Rate_Base'!S29 -> 27706.15733 | U53: =-'4. SM_Assets_and_Rate_Base'!U29 -> 28265.46 | W53: =-'4. SM_Assets_and_Rate_Base'!W29 -> 28349.99333 | Y53: =-'4. SM_Assets_and_Rate_Base'!Y29 -> 28522.02667
C54: Computer Hardware | G54: =-'4. SM_Assets_and_Rate_Base'!G48 -> 0 | I54: =-'4. SM_Assets_and_Rate_Base'!I48 -> 0 | K54: =-'4. SM_Assets_and_Rate_Base'!K48 -> 0 | M54: =-'4. SM_Assets_and_Rate_Base'!M48 -> 426.233 | O54: =-'4. SM_Assets_and_Rate_Base'!O48 -> 925.861 | Q54: =-'4. SM_Assets_and_Rate_Base'!Q48 -> 999.256 | S54: =-'4. SM_Assets_and_Rate_Base'!S48 -> 999.256 | U54: =-'4. SM_Assets_and_Rate_Base'!U48 -> 999.256 | W54: =-'4. SM_Assets_and_Rate_Base'!W48 -> 646.418 | Y54: =-'4. SM_Assets_and_Rate_Base'!Y48 -> 0
C55: Computer Software | G55: =-'4. SM_Assets_and_Rate_Base'!G67 -> 0 | I55: =-'4. SM_Assets_and_Rate_Base'!I67 -> 0 | K55: =-'4. SM_Assets_and_Rate_Base'!K67 -> 0 | M55: =-'4. SM_Assets_and_Rate_Base'!M67 -> 0 | O55: =-'4. SM_Assets_and_Rate_Base'!O67 -> 1457.33 | Q55: =-'4. SM_Assets_and_Rate_Base'!Q67 -> 4403.34 | S55: =-'4. SM_Assets_and_Rate_Base'!S67 -> 5962.118 | U55: =-'4. SM_Assets_and_Rate_Base'!U67 -> 6112.675 | W55: =-'4. SM_Assets_and_Rate_Base'!W67 -> 6193.134 | Y55: =-'4. SM_Assets_and_Rate_Base'!Y67 -> 6193.134
C56: Tools & Equipment | G56: =-'4. SM_Assets_and_Rate_Base'!G86 -> 0 | I56: =-'4. SM_Assets_and_Rate_Base'!I86 -> 0 | K56: =-'4. SM_Assets_and_Rate_Base'!K86 -> 0 | M56: =-'4. SM_Assets_and_Rate_Base'!M86 -> 0 | O56: =-'4. SM_Assets_and_Rate_Base'!O86 -> 0 | Q56: =-'4. SM_Assets_and_Rate_Base'!Q86 -> 0 | S56: =-'4. SM_Assets_and_Rate_Base'!S86 -> 0 | U56: =-'4. SM_Assets_and_Rate_Base'!U86 -> 0 | W56: =-'4. SM_Assets_and_Rate_Base'!W86 -> 0 | Y56: =-'4. SM_Assets_and_Rate_Base'!Y86 -> 0
C57: Other Equipment | G57: =-'4. SM_Assets_and_Rate_Base'!G105 -> 0 | I57: =-'4. SM_Assets_and_Rate_Base'!I105 -> 0 | K57: =-'4. SM_Assets_and_Rate_Base'!K105 -> 0 | M57: =-'4. SM_Assets_and_Rate_Base'!M105 -> 8809.286 | O57: =-'4. SM_Assets_and_Rate_Base'!O105 -> 17653.572 | Q57: =-'4. SM_Assets_and_Rate_Base'!Q105 -> 18188.759 | S57: =-'4. SM_Assets_and_Rate_Base'!S105 -> 18878.488 | U57: =-'4. SM_Assets_and_Rate_Base'!U105 -> 19472.62 | W57: =-'4. SM_Assets_and_Rate_Base'!W105 -> 19877.21 | Y57: =-'4. SM_Assets_and_Rate_Base'!Y105 -> 19877.21
C58: Total Amortization Expense in Year | G58: =SUM(G53:G57) -> 0 | I58: =SUM(I53:I57) -> 0 | K58: =SUM(K53:K57) -> 0 | M58: =SUM(M53:M57) -> 18370.284 | O58: =SUM(O53:O57) -> 39611.375 | Q58: =SUM(Q53:Q57) -> 47604.62933 | S58: =SUM(S53:S57) -> 53546.01933 | U58: =SUM(U53:U57) -> 54850.011 | W58: =SUM(W53:W57) -> 55066.75533 | Y58: =SUM(Y53:Y57) -> 54592.37067
B60: Incremental Revenue Requirement before Taxes/PILs | G60: =G47+G50+G58 -> 0 | I60: =I47+I50+I58 -> 9900.061508 | K60: =K47+K50+K58 -> 9645.448672 | M60: =M47+M50+M58 -> 53219.34759 | O60: =O47+O50+O58 -> 129982.2278 | Q60: =Q47+Q50+Q58 -> 116733.8524 | S60: =S47+S50+S58 -> 106990.2136 | U60: =U47+U50+U58 -> 110197.5735 | W60: =W47+W50+W58 -> 114314.9326 | Y60: =Y47+Y50+Y58 -> 107668.9268
B62: Calculation of Taxable Income
C63: Incremental Operating Expenses | G63: =G50 -> 0 | I63: =I50 -> 9788.11 | K63: =K50 -> 9537.66 | M63: =M50 -> 18418.17 | O63: =O50 -> 61848.2 | Q63: =Q50 -> 38097.89 | S63: =S50 -> 21343.14 | U63: =U50 -> 25667.54 | W63: =W50 -> 32601.99 | Y63: =Y50 -> 33254.0298
C64: Amortization Expense | G64: =G58 -> 0 | I64: =I58 -> 0 | K64: =K58 -> 0 | M64: =M58 -> 18370.284 | O64: =O58 -> 39611.375 | Q64: =Q58 -> 47604.62933 | S64: =S58 -> 53546.01933 | U64: =U58 -> 54850.011 | W64: =W58 -> 55066.75533 | Y64: =Y58 -> 54592.37067
C65: Interest Expense | G65: =G43+G44 -> 0 | I65: =I43+I44 -> 45.88176562 | K65: =K43+K44 -> 47.65849481 | M65: =M43+M44 -> 7825.418022 | O65: =O43+O44 -> 15271.90022 | Q65: =Q43+Q44 -> 16615.12431 | S65: =S43+S44 -> 17187.88574 | U65: =U43+U44 -> 15891.5913 | W65: =W43+W44 -> 14267.18321 | Y65: =Y43+Y44 -> 10218.07211
C66: Net Income for Taxes/PILs | G66: =G60-SUM(G63:G65) -> 0 | I66: =I60-SUM(I63:I65) -> 66.0697425 | K66: =K60-SUM(K63:K65) -> 60.13017747 | M66: =M60-SUM(M63:M65) -> 8605.475564 | O66: =O60-SUM(O63:O65) -> 13250.7526 | Q66: =Q60-SUM(Q63:Q65) -> 14416.20874 | S66: =S60-SUM(S63:S65) -> 14913.16851 | U66: =U60-SUM(U63:U65) -> 13788.43115 | W66: =W60-SUM(W63:W65) -> 12379.00407 | Y66: =Y60-SUM(Y63:Y65) -> 9604.454201
B68: Grossed-up Taxes/PILs (from Sheet 7) | G68: ='7_Taxes_PILs'!C59 -> 0 | I68: ='7_Taxes_PILs'!E59 -> 15.11696492 | K68: ='7_Taxes_PILs'!G59 -> 12.8610552 | M68: ='7_Taxes_PILs'!I59 -> 3939.683599 | O68: ='7_Taxes_PILs'!K59 -> 5148.537911 | Q68: ='7_Taxes_PILs'!M59 -> 4089.019967 | S68: ='7_Taxes_PILs'!O59 -> 3650.815024 | U68: ='7_Taxes_PILs'!Q59 -> 6876.833264 | W68: ='7_Taxes_PILs'!S59 -> 7582.213858 | Y68: ='7_Taxes_PILs'!U59 -> 7443.077741
B70: Revenue Requirement, including Grossed-up Taxes/PILs | G70: =G60+G68 -> 0 | I70: =I60+I68 -> 9915.178473 | K70: =K60+K68 -> 9658.309727 | M70: =M60+M68 -> 57159.03118 | O70: =O60+O68 -> 135130.7657 | Q70: =Q60+Q68 -> 120822.8724 | S70: =S60+S68 -> 110641.0286 | U70: =U60+U68 -> 117074.4067 | W70: =W60+W68 -> 121897.1465 | Y70: =Y60+Y68 -> 115112.0045

Sheet 6. UCC_Calculation
A18: For PILs Calculation
A20: UCC - Smart Meters | B20: ='2. Smart_Meter_Costs'!G18 -> 2006 | D20: ='2. Smart_Meter_Costs'!I18 -> 2007 | F20: ='2. Smart_Meter_Costs'!K18 -> 2008 | H20: ='2. Smart_Meter_Costs'!M18 -> 2009 | J20: ='2. Smart_Meter_Costs'!O18 -> 2010 | L20: ='2. Smart_Meter_Costs'!Q18 -> 2011 | N20: ='2. Smart_Meter_Costs'!S18 -> 2012 | P20: ='2. Smart_Meter_Costs'!U18 -> 2013 | R20: ='2. Smart_Meter_Costs'!W18 -> 2014 | T20: ='2. Smart_Meter_Costs'!Y18 -> 2015
B21: ='2. Smart_Meter_Costs'!G19 -> Audited Actual | D21: ='2. Smart_Meter_Costs'!I19 -> Audited Actual | F21: ='2. Smart_Meter_Costs'!K19 -> Audited Actual | H21: ='2. Smart_Meter_Costs'!M19 -> Audited Actual | J21: ='2. Smart_Meter_Costs'!O19 -> Audited Actual | L21: ='2. Smart_Meter_Costs'!Q19 -> Audited Actual | N21: ='2. Smart_Meter_Costs'!S19 -> Audited Actual | P21: ='2. Smart_Meter_Costs'!U19 -> Audited Actual | R21: ='2. Smart_Meter_Costs'!W19 -> Forecast | T21: ='2. Smart_Meter_Costs'!Y19 -> Forecast
A23: Opening UCC | B23: 0 | D23: =B26-B31 -> 0 | F23: =D26-D31 -> 0 | H23: =F26-F31 -> 0 | J23: =H26-H31 -> 263081.232 | L23: =J26-J31 -> 279621.095 | N23: =L26-L31 -> 347498.521 | P23: =N26-N31 -> 335806.5562 | R23: =P26-P31 -> 308942.0317 | T23: =R26-R31 -> 286661.2291
A24: Capital Additions | B24: ='4. SM_Assets_and_Rate_Base'!G23 -> 0 | D24: ='4. SM_Assets_and_Rate_Base'!I23 -> 0 | F24: ='4. SM_Assets_and_Rate_Base'!K23 -> 0 | H24: ='4. SM_Assets_and_Rate_Base'!M23 -> 274042.95 | J24: ='4. SM_Assets_and_Rate_Base'!O23 -> 39152.46 | L24: ='4. SM_Assets_and_Rate_Base'!Q23 -> 94007.41 | N24: ='4. SM_Assets_and_Rate_Base'!S23 -> 16779.08 | P24: ='4. SM_Assets_and_Rate_Base'!U23 -> 0 | R24: ='4. SM_Assets_and_Rate_Base'!W23 -> 2536 | T24: ='4. SM_Assets_and_Rate_Base'!Y23 -> 2625
A25: Retirements/Removals (if applicable)
A26: UCC Before Half Year Rule | B26: =SUM(B23:B24)-B25 -> 0 | D26: =SUM(D23:D24)-D25 -> 0 | F26: =SUM(F23:F24)-F25 -> 0 | H26: =SUM(H23:H24)-H25 -> 274042.95 | J26: =SUM(J23:J24)-J25 -> 302233.692 | L26: =SUM(L23:L24)-L25 -> 373628.505 | N26: =SUM(N23:N24)-N25 -> 364277.601 | P26: =SUM(P23:P24)-P25 -> 335806.5562 | R26: =SUM(R23:R24)-R25 -> 311478.0317 | T26: =SUM(T23:T24)-T25 -> 289286.2291
A27: Half Year Rule (1/2 Additions - Disposals) | B27: =IF(((B24-B25)/2)<0, 0, (B24-B25)/2) -> 0 | D27: =IF(((D24-D25)/2)<0, 0, (D24-D25)/2) -> 0 | F27: =IF(((F24-F25)/2)<0, 0, (F24-F25)/2) -> 0 | H27: =IF(((H24-H25)/2)<0, 0, (H24-H25)/2) -> 137021.475 | J27: =IF(((J24-J25)/2)<0, 0, (J24-J25)/2) -> 19576.23 | L27: =IF(((L24-L25)/2)<0, 0, (L24-L25)/2) -> 47003.705 | N27: =IF(((N24-N25)/2)<0, 0, (N24-N25)/2) -> 8389.54 | P27: =IF(((P24-P25)/2)<0, 0, (P24-P25)/2) -> 0 | R27: =IF(((R24-R25)/2)<0, 0, (R24-R25)/2) -> 1268 | T27: =IF(((T24-T25)/2)<0, 0, (T24-T25)/2) -> 1312.5
A28: Reduced UCC | B28: =B27+B23 -> 0 | D28: =D27+D23 -> 0 | F28: =F27+F23 -> 0 | H28: =H27+H23 -> 137021.475 | J28: =J27+J23 -> 282657.462 | L28: =L27+L23 -> 326624.8 | N28: =N27+N23 -> 355888.061 | P28: =P27+P23 -> 335806.5562 | R28: =R27+R23 -> 310210.0317 | T28: =T27+T23 -> 287973.7291
A29: CCA Rate Class | B29: ='3. Cost_of_Service_Parameters'!G57 -> 47 | D29: ='3. Cost_of_Service_Parameters'!I57 -> 47 | F29: ='3. Cost_of_Service_Parameters'!K57 -> 47 | H29: ='3. Cost_of_Service_Parameters'!M57 -> 47 | J29: ='3. Cost_of_Service_Parameters'!O57 -> 47 | L29: ='3. Cost_of_Service_Parameters'!Q57 -> 47 | N29: ='3. Cost_of_Service_Parameters'!S57 -> 47 | P29: ='3. Cost_of_Service_Parameters'!U57 -> 47 | R29: ='3. Cost_of_Service_Parameters'!W57 -> 47 | T29: ='3. Cost_of_Service_Parameters'!Y57 -> 47
A30: CCA Rate | B30: ='3. Cost_of_Service_Parameters'!G58 -> 0.08 | D30: ='3. Cost_of_Service_Parameters'!I58 -> 0.08 | F30: ='3. Cost_of_Service_Parameters'!K58 -> 0.08 | H30: ='3. Cost_of_Service_Parameters'!M58 -> 0.08 | J30: ='3. Cost_of_Service_Parameters'!O58 -> 0.08 | L30: ='3. Cost_of_Service_Parameters'!Q58 -> 0.08 | N30: ='3. Cost_of_Service_Parameters'!S58 -> 0.08 | P30: ='3. Cost_of_Service_Parameters'!U58 -> 0.08 | R30: ='3. Cost_of_Service_Parameters'!W58 -> 0.08 | T30: ='3. Cost_of_Service_Parameters'!Y58 -> 0.08
A31: CCA | B31: =B28*B30 -> 0 | D31: =D28*D30 -> 0 | F31: =F28*F30 -> 0 | H31: =H28*H30 -> 10961.718 | J31: =J28*J30 -> 22612.59696 | L31: =L28*L30 -> 26129.984 | N31: =N28*N30 -> 28471.04488 | P31: =P28*P30 -> 26864.52449 | R31: =R28*R30 -> 24816.80253 | T31: =T28*T30 -> 23037.89833
A32: Closing UCC | B32: =IF((B26-B31)<0, 0, B26-B31) -> 0 | D32: =IF((D26-D31)<0, 0, D26-D31) -> 0 | F32: =IF((F26-F31)<0, 0, F26-F31) -> 0 | H32: =IF((H26-H31)<0, 0, H26-H31) -> 263081.232 | J32: =IF((J26-J31)<0, 0, J26-J31) -> 279621.095 | L32: =IF((L26-L31)<0, 0, L26-L31) -> 347498.521 | N32: =IF((N26-N31)<0, 0, N26-N31) -> 335806.5562 | P32: =IF((P26-P31)<0, 0, P26-P31) -> 308942.0317 | R32: =IF((R26-R31)<0, 0, R26-R31) -> 286661.2291 | T32: =IF((T26-T31)<0, 0, T26-T31) -> 266248.3308
A34: UCC - Computer Equipment | B34: =B20 -> 2006 | D34: 2007 | F34: 2008 | H34: 2009 | J34: 2010 | L34: 2011 | N34: =N20 -> 2012 | P34: =P20 -> 2013 | R34: =R20 -> 2014 | T34: =T20 -> 2015
B35: Audited Actual | D35: Audited Actual | F35: Audited Actual | H35: Audited Actual | J35: Audited Actual | L35: Audited Actual | N35: =N21 -> Audited Actual | P35: =P21 -> Audited Actual | R35: =R21 -> Forecast | T35: =T21 -> Forecast
A37: Opening UCC | B37: 0 | D37: =B41-B46 -> 0 | F37: =D41-D46 -> 0 | H37: =F41-F46 -> 0 | J37: =H41-H46 -> 3090.18925 | L37: =J41-J46 -> 12488.34141 | N37: =L41-L46 -> 7605.383636 | P37: =N41-N46 -> 3930.633136 | R37: =P41-P46 -> 2352.112661 | T37: =R41-R46 -> 1058.450698
A38: Capital Additions Computer Hardware | B38: ='2. Smart_Meter_Costs'!G183 -> 0 | D38: ='2. Smart_Meter_Costs'!I183 -> 0 | F38: ='2. Smart_Meter_Costs'!K183 -> 0 | H38: ='2. Smart_Meter_Costs'!M183 -> 4262.33 | J38: ='2. Smart_Meter_Costs'!O183 -> 733.95 | L38: ='2. Smart_Meter_Costs'!Q183 -> 0 | N38: ='2. Smart_Meter_Costs'!S183 -> 0 | P38: ='2. Smart_Meter_Costs'!U183 -> 0 | R38: ='2. Smart_Meter_Costs'!W183 -> 0 | T38: ='2. Smart_Meter_Costs'!Y183 -> 0
A39: Capital Additions Computer Software | B39: ='2. Smart_Meter_Costs'!G185 -> 0 | D39: ='2. Smart_Meter_Costs'!I185 -> 0 | F39: ='2. Smart_Meter_Costs'!K185 -> 0 | H39: ='2. Smart_Meter_Costs'!M185 -> 0 | J39: ='2. Smart_Meter_Costs'!O185 -> 14573.3 | L39: ='2. Smart_Meter_Costs'!Q185 -> 2738.8 | N39: ='2. Smart_Meter_Costs'!S185 -> 700.98 | P39: ='2. Smart_Meter_Costs'!U185 -> 804.59 | R39: ='2. Smart_Meter_Costs'!W185 -> 0 | T39: ='2. Smart_Meter_Costs'!Y185 -> 0
A40: Retirements/Removals (if applicable)
A41: UCC Before Half Year Rule | B41: =SUM(B37:B39)-B40 -> 0 | D41: =SUM(D37:D39)-D40 -> 0 | F41: =SUM(F37:F39)-F40 -> 0 | H41: =SUM(H37:H39)-H40 -> 4262.33 | J41: =SUM(J37:J39)-J40 -> 18397.43925 | L41: =SUM(L37:L39)-L40 -> 15227.14141 | N41: =SUM(N37:N39)-N40 -> 8306.363636 | P41: =SUM(P37:P39)-P40 -> 4735.223136 | R41: =SUM(R37:R39)-R40 -> 2352.112661 | T41: =SUM(T37:T39)-T40 -> 1058.450698
A42: Half Year Rule (1/2 Additions - Disposals) | B42: =IF((SUM(B38:B39)/2)<0, 0, SUM(B38:B39)/2) -> 0 | D42: =IF((SUM(D38:D39)/2)<0, 0, SUM(D38:D39)/2) -> 0 | F42: =IF((SUM(F38:F39)/2)<0, 0, SUM(F38:F39)/2) -> 0 | H42: =IF((SUM(H38:H39)/2)<0, 0, SUM(H38:H39)/2) -> 2131.165 | J42: =IF((SUM(J38:J39)/2)<0, 0, SUM(J38:J39)/2) -> 7653.625 | L42: =IF((SUM(L38:L39)/2)<0, 0, SUM(L38:L39)/2) -> 1369.4 | N42: =IF((SUM(N38:N39)/2)<0, 0, SUM(N38:N39)/2) -> 350.49 | P42: =IF((SUM(P38:P39)/2)<0, 0, SUM(P38:P39)/2) -> 402.295 | R42: =IF((SUM(R38:R39)/2)<0, 0, SUM(R38:R39)/2) -> 0 | T42: =IF((SUM(T38:T39)/2)<0, 0, SUM(T38:T39)/2) -> 0
A43: Reduced UCC | B43: =B42+B37 -> 0 | D43: =D42+D37 -> 0 | F43: =F42+F37 -> 0 | H43: =H42+H37 -> 2131.165 | J43: =J42+J37 -> 10743.81425 | L43: =L42+L37 -> 13857.74141 | N43: =N42+N37 -> 7955.873636 | P43: =P42+P37 -> 4332.928136 | R43: =R42+R37 -> 2352.112661 | T43: =T42+T37 -> 1058.450698
A44: CCA Rate Class | B44: ='3. Cost_of_Service_Parameters'!G60 -> 45 | D44: ='3. Cost_of_Service_Parameters'!I60 -> 50 | F44: ='3. Cost_of_Service_Parameters'!K60 -> 50 | H44: ='3. Cost_of_Service_Parameters'!M60 -> 50 | J44: ='3. Cost_of_Service_Parameters'!O60 -> 50 | L44: ='3. Cost_of_Service_Parameters'!Q60 -> 50 | N44: ='3. Cost_of_Service_Parameters'!S60 -> 50 | P44: ='3. Cost_of_Service_Parameters'!U60 -> 50 | R44: ='3. Cost_of_Service_Parameters'!W60 -> 50 | T44: ='3. Cost_of_Service_Parameters'!Y60 -> 50
A45: CCA Rate | B45: ='3. Cost_of_Service_Parameters'!G61 -> 0.45 | D45: ='3. Cost_of_Service_Parameters'!I61 -> 0.55 | F45: ='3. Cost_of_Service_Parameters'!K61 -> 0.55 | H45: ='3. Cost_of_Service_Parameters'!M61 -> 0.55 | J45: ='3. Cost_of_Service_Parameters'!O61 -> 0.55 | L45: ='3. Cost_of_Service_Parameters'!Q61 -> 0.55 | N45: ='3. Cost_of_Service_Parameters'!S61 -> 0.55 | P45: ='3. Cost_of_Service_Parameters'!U61 -> 0.55 | R45: ='3. Cost_of_Service_Parameters'!W61 -> 0.55 | T45: ='3. Cost_of_Service_Parameters'!Y61 -> 0.55
A46: CCA | B46: =B45*B43 -> 0 | D46: =D45*D43 -> 0 | F46: =F45*F43 -> 0 | H46: =H45*H43 -> 1172.14075 | J46: =J45*J43 -> 5909.097838 | L46: =L45*L43 -> 7621.757777 | N46: =N45*N43 -> 4375.7305 | P46: =P45*P43 -> 2383.110475 | R46: =R45*R43 -> 1293.661964 | T46: =T45*T43 -> 582.1478837
A47: Closing UCC | B47: =IF((B41-B46)<0, 0, B41-B46) -> 0 | D47: =IF((D41-D46)<0, 0, D41-D46) -> 0 | F47: =IF((F41-F46)<0, 0, F41-F46) -> 0 | H47: =IF((H41-H46)<0, 0, H41-H46) -> 3090.18925 | J47: =IF((J41-J46)<0, 0, J41-J46) -> 12488.34141 | L47: =IF((L41-L46)<0, 0, L41-L46) -> 7605.383636 | N47: =IF((N41-N46)<0, 0, N41-N46) -> 3930.633136 | P47: =IF((P41-P46)<0, 0, P41-P46) -> 2352.112661 | R47: =IF((R41-R46)<0, 0, R41-R46) -> 1058.450698 | T47: =IF((T41-T46)<0, 0, T41-T46) -> 476.3028139
A49: UCC - General Equipment | B49: =B34 -> 2006 | D49: 2007 | F49: 2008 | H49: 2009 | J49: 2010 | L49: 2011 | N49: =N34 -> 2012 | P49: =P34 -> 2013 | R49: =R34 -> 2014 | T49: =T34 -> 2015
B50: Audited Actual | D50: Audited Actual | F50: Audited Actual | H50: Audited Actual | J50: Audited Actual | L50: Audited Actual | N50: =N35 -> Audited Actual | P50: =P35 -> Audited Actual | R50: =R35 -> Forecast | T50: =T35 -> Forecast
A52: Opening UCC | B52: 0 | D52: =B56-B61 -> 0 | F52: =D56-D61 -> 0 | H52: =F56-F61 -> 0 | J52: =H56-H61 -> 176185.72 | L52: =J56-J61 -> 176885.72 | N52: =L56-L61 -> 186889.46 | P52: =N56-N61 -> 190680.3 | R52: =P56-P61 -> 198772.1 | T52: =R56-R61 -> 198772.1
A53: Capital Additions Tools & Equipment | B53: ='2. Smart_Meter_Costs'!G187 -> 0 | D53: ='2. Smart_Meter_Costs'!I187 -> 0 | F53: ='2. Smart_Meter_Costs'!K187 -> 0 | H53: ='2. Smart_Meter_Costs'!M187 -> 0 | J53: ='2. Smart_Meter_Costs'!O187 -> 0 | L53: ='2. Smart_Meter_Costs'!Q187 -> 0 | N53: ='2. Smart_Meter_Costs'!S187 -> 0 | P53: ='2. Smart_Meter_Costs'!U187 -> 0 | R53: ='2. Smart_Meter_Costs'!W187 -> 0 | T53: ='2. Smart_Meter_Costs'!Y187 -> 0
A54: Capital Additions Other Equipment | B54: ='2. Smart_Meter_Costs'!G189 -> 0 | D54: ='2. Smart_Meter_Costs'!I189 -> 0 | F54: ='2. Smart_Meter_Costs'!K189 -> 0 | H54: ='2. Smart_Meter_Costs'!M189 -> 176185.72 | J54: ='2. Smart_Meter_Costs'!O189 -> 700 | L54: ='2. Smart_Meter_Costs'!Q189 -> 10003.74 | N54: ='2. Smart_Meter_Costs'!S189 -> 3790.84 | P54: ='2. Smart_Meter_Costs'!U189 -> 8091.8 | R54: ='2. Smart_Meter_Costs'!W189 -> 0 | T54: ='2. Smart_Meter_Costs'!Y189 -> 0
A55: Retirements/Removals (if applicable)
A56: UCC Before Half Year Rule | B56: =SUM(B52:B54)-B55 -> 0 | D56: =SUM(D52:D54)-D55 -> 0 | F56: =SUM(F52:F54)-F55 -> 0 | H56: =SUM(H52:H54)-H55 -> 176185.72 | J56: =SUM(J52:J54)-J55 -> 176885.72 | L56: =SUM(L52:L54)-L55 -> 186889.46 | N56: =SUM(N52:N54)-N55 -> 190680.3 | P56: =SUM(P52:P54)-P55 -> 198772.1 | R56: =SUM(R52:R54)-R55 -> 198772.1 | T56: =SUM(T52:T54)-T55 -> 198772.1
A57: Half Year Rule (1/2 Additions - Disposals) | B57: =IF(((SUM(B53:B54)-B55)/2)<0, 0, (SUM(B53:B54)-B55)/2) -> 0 | D57: =IF(((SUM(D53:D54)-D55)/2)<0, 0, (SUM(D53:D54)-D55)/2) -> 0 | F57: =IF(((SUM(F53:F54)-F55)/2)<0, 0, (SUM(F53:F54)-F55)/2) -> 0 | H57: =IF(((SUM(H53:H54)-H55)/2)<0, 0, (SUM(H53:H54)-H55)/2) -> 88092.86 | J57: =IF(((SUM(J53:J54)-J55)/2)<0, 0, (SUM(J53:J54)-J55)/2) -> 350 | L57: =IF(((SUM(L53:L54)-L55)/2)<0, 0, (SUM(L53:L54)-L55)/2) -> 5001.87 | N57: =IF(((SUM(N53:N54)-N55)/2)<0, 0, (SUM(N53:N54)-N55)/2) -> 1895.42 | P57: =IF(((SUM(P53:P54)-P55)/2)<0, 0, (SUM(P53:P54)-P55)/2) -> 4045.9 | R57: =IF(((SUM(R53:R54)-R55)/2)<0, 0, (SUM(R53:R54)-R55)/2) -> 0 | T57: =IF(((SUM(T53:T54)-T55)/2)<0, 0, (SUM(T53:T54)-T55)/2) -> 0
A58: Reduced UCC | B58: =B57+B52 -> 0 | D58: =D57+D52 -> 0 | F58: =F57+F52 -> 0 | H58: =H57+H52 -> 88092.86 | J58: =J57+J52 -> 176535.72 | L58: =L57+L52 -> 181887.59 | N58: =N57+N52 -> 188784.88 | P58: =P57+P52 -> 194726.2 | R58: =R57+R52 -> 198772.1 | T58: =T57+T52 -> 198772.1
A59: CCA Rate Class | B59: ='3. Cost_of_Service_Parameters'!G63 -> 0 | D59: ='3. Cost_of_Service_Parameters'!I63 -> 0 | F59: ='3. Cost_of_Service_Parameters'!K63 -> 0 | H59: ='3. Cost_of_Service_Parameters'!M63 -> 0 | J59: ='3. Cost_of_Service_Parameters'!O63 -> 0 | L59: ='3. Cost_of_Service_Parameters'!Q63 -> 0 | N59: ='3. Cost_of_Service_Parameters'!S63 -> 0 | P59: ='3. Cost_of_Service_Parameters'!U63 -> 0 | R59: ='3. Cost_of_Service_Parameters'!W63 -> 0 | T59: ='3. Cost_of_Service_Parameters'!Y63 -> 0
A60: CCA Rate | B60: ='3. Cost_of_Service_Parameters'!G64 -> 0 | D60: ='3. Cost_of_Service_Parameters'!I64 -> 0 | F60: ='3. Cost_of_Service_Parameters'!K64 -> 0 | H60: ='3. Cost_of_Service_Parameters'!M64 -> 0 | J60: ='3. Cost_of_Service_Parameters'!O64 -> 0 | L60: ='3. Cost_of_Service_Parameters'!Q64 -> 0 | N60: ='3. Cost_of_Service_Parameters'!S64 -> 0 | P60: ='3. Cost_of_Service_Parameters'!U64 -> 0 | R60: ='3. Cost_of_Service_Parameters'!W64 -> 0 | T60: ='3. Cost_of_Service_Parameters'!Y64 -> 0
A61: CCA | B61: =B60*B58 -> 0 | D61: =D60*D58 -> 0 | F61: =F60*F58 -> 0 | H61: =H60*H58 -> 0 | J61: =J60*J58 -> 0 | L61: =L60*L58 -> 0 | N61: =N60*N58 -> 0 | P61: =P60*P58 -> 0 | R61: =R60*R58 -> 0 | T61: =T60*T58 -> 0
A62: Closing UCC | B62: =IF((B56-B61)<0, 0, B56-B61) -> 0 | D62: =IF((D56-D61)<0, 0, D56-D61) -> 0 | F62: =IF((F56-F61)<0, 0, F56-F61) -> 0 | H62: =IF((H56-H61)<0, 0, H56-H61) -> 176185.72 | J62: =IF((J56-J61)<0, 0, J56-J61) -> 176885.72 | L62: =IF((L56-L61)<0, 0, L56-L61) -> 186889.46 | N62: =IF((N56-N61)<0, 0, N56-N61) -> 190680.3 | P62: =IF((P56-P61)<0, 0, P56-P61) -> 198772.1 | R62: =IF((R56-R61)<0, 0, R56-R61) -> 198772.1 | T62: =IF((T56-T61)<0, 0, T56-T61) -> 198772.1
A64: UCC - Applications Software | B64: =B49 -> 2006 | D64: =D49 -> 2007 | F64: =F49 -> 2008 | H64: =H49 -> 2009 | J64: =J49 -> 2010 | L64: =L49 -> 2011 | N64: =N49 -> 2012 | P64: =P49 -> 2013 | R64: =R49 -> 2014 | T64: =T49 -> 2015
B65: =B50 -> Audited Actual | D65: =D50 -> Audited Actual | F65: =F50 -> Audited Actual | H65: =H50 -> Audited Actual | J65: =J50 -> Audited Actual | L65: =L50 -> Audited Actual | N65: =N50 -> Audited Actual | P65: =P50 -> Audited Actual | R65: =R50 -> Forecast | T65: =T50 -> Forecast
A67: Opening UCC | B67: 0 | D67: =B70-B75 -> 0 | F67: =D70-D75 -> 0 | H67: =F70-F75 -> 0 | J67: =H70-H75 -> 0 | L67: =J70-J75 -> 0 | N67: =L70-L75 -> 6074 | P67: =N70-N75 -> 0 | R67: =P70-P75 -> 0 | T67: =R70-R75 -> 0
A68: Capital Additions Applications Software | B68: ='2. Smart_Meter_Costs'!G191 -> 0 | D68: ='2. Smart_Meter_Costs'!I191 -> 0 | F68: ='2. Smart_Meter_Costs'!K191 -> 0 | H68: ='2. Smart_Meter_Costs'!M191 -> 0 | J68: ='2. Smart_Meter_Costs'!O191 -> 0 | L68: ='2. Smart_Meter_Costs'!Q191 -> 12148 | N68: ='2. Smart_Meter_Costs'!S191 -> 0 | P68: ='2. Smart_Meter_Costs'!U191 -> 0 | R68: ='2. Smart_Meter_Costs'!W191 -> 0 | T68: ='2. Smart_Meter_Costs'!Y191 -> 0
A69: Retirements/Removals (if applicable)
A70: UCC Before Half Year Rule | B70: =SUM(B67:B68)-B69 -> 0 | D70: =SUM(D67:D68)-D69 -> 0 | F70: =SUM(F67:F68)-F69 -> 0 | H70: =SUM(H67:H68)-H69 -> 0 | J70: =SUM(J67:J68)-J69 -> 0 | L70: =SUM(L67:L68)-L69 -> 12148 | N70: =SUM(N67:N68)-N69 -> 6074 | P70: =SUM(P67:P68)-P69 -> 0 | R70: =SUM(R67:R68)-R69 -> 0 | T70: =SUM(T67:T68)-T69 -> 0
A71: Half Year Rule (1/2 Additions - Disposals) | B71: =IF(((SUM(B68:B68)-B69)/2)<0, 0, (SUM(B68:B68)-B69)/2) -> 0 | D71: =IF(((SUM(D68:D68)-D69)/2)<0, 0, (SUM(D68:D68)-D69)/2) -> 0 | F71: =IF(((SUM(F68:F68)-F69)/2)<0, 0, (SUM(F68:F68)-F69)/2) -> 0 | H71: =IF(((SUM(H68:H68)-H69)/2)<0, 0, (SUM(H68:H68)-H69)/2) -> 0 | J71: =IF(((SUM(J68:J68)-J69)/2)<0, 0, (SUM(J68:J68)-J69)/2) -> 0 | L71: =IF(((SUM(L68:L68)-L69)/2)<0, 0, (SUM(L68:L68)-L69)/2) -> 6074 | N71: =IF(((SUM(N68:N68)-N69)/2)<0, 0, (SUM(N68:N68)-N69)/2) -> 0 | P71: =IF(((SUM(P68:P68)-P69)/2)<0, 0, (SUM(P68:P68)-P69)/2) -> 0 | R71: =IF(((SUM(R68:R68)-R69)/2)<0, 0, (SUM(R68:R68)-R69)/2) -> 0 | T71: =IF(((SUM(T68:T68)-T69)/2)<0, 0, (SUM(T68:T68)-T69)/2) -> 0
A72: Reduced UCC | B72: =B71+B67 -> 0 | D72: =D71+D67 -> 0 | F72: =F71+F67 -> 0 | H72: =H71+H67 -> 0 | J72: =J71+J67 -> 0 | L72: =L71+L67 -> 6074 | N72: =N71+N67 -> 6074 | P72: =P71+P67 -> 0 | R72: =R71+R67 -> 0 | T72: =T71+T67 -> 0
A73: CCA Rate Class | B73: ='3. Cost_of_Service_Parameters'!G66 -> 12 | D73: ='3. Cost_of_Service_Parameters'!I66 -> 12 | F73: ='3. Cost_of_Service_Parameters'!K66 -> 12 | H73: ='3. Cost_of_Service_Parameters'!M66 -> 12 | J73: ='3. Cost_of_Service_Parameters'!O66 -> 12 | L73: ='3. Cost_of_Service_Parameters'!Q66 -> 12 | N73: ='3. Cost_of_Service_Parameters'!S66 -> 12 | P73: ='3. Cost_of_Service_Parameters'!U66 -> 12 | R73: ='3. Cost_of_Service_Parameters'!W66 -> 12 | T73: ='3. Cost_of_Service_Parameters'!Y66 -> 12
A74: CCA Rate | B74: ='3. Cost_of_Service_Parameters'!G67 -> 1 | D74: ='3. Cost_of_Service_Parameters'!I67 -> 1 | F74: ='3. Cost_of_Service_Parameters'!K67 -> 1 | H74: ='3. Cost_of_Service_Parameters'!M67 -> 1 | J74: ='3. Cost_of_Service_Parameters'!O67 -> 1 | L74: ='3. Cost_of_Service_Parameters'!Q67 -> 1 | N74: ='3. Cost_of_Service_Parameters'!S67 -> 1 | P74: ='3. Cost_of_Service_Parameters'!U67 -> 1 | R74: ='3. Cost_of_Service_Parameters'!W67 -> 1 | T74: ='3. Cost_of_Service_Parameters'!Y67 -> 1
A75: CCA | B75: =B74*B72 -> 0 | D75: =D74*D72 -> 0 | F75: =F74*F72 -> 0 | H75: =H74*H72 -> 0 | J75: =J74*J72 -> 0 | L75: =L74*L72 -> 6074 | N75: =N74*N72 -> 6074 | P75: =P74*P72 -> 0 | R75: =R74*R72 -> 0 | T75: =T74*T72 -> 0
A76: Closing UCC | B76: =IF((B70-B75)<0, 0, B70-B75) -> 0 | D76: =IF((D70-D75)<0, 0, D70-D75) -> 0 | F76: =IF((F70-F75)<0, 0, F70-F75) -> 0 | H76: =IF((H70-H75)<0, 0, H70-H75) -> 0 | J76: =IF((J70-J75)<0, 0, J70-J75) -> 0 | L76: =IF((L70-L75)<0, 0, L70-L75) -> 6074 | N76: =IF((N70-N75)<0, 0, N70-N75) -> 0 | P76: =IF((P70-P75)<0, 0, P70-P75) -> 0 | R76: =IF((R70-R75)<0, 0, R70-R75) -> 0 | T76: =IF((T70-T75)<0, 0, T70-T75) -> 0

Sheet 7_Taxes_PILs
A18: PILs Calculation
C20: ='2. Smart_Meter_Costs'!G18& " " &'2. Smart_Meter_Costs'!G19 -> 2006 Audited Actual | E20: ='2. Smart_Meter_Costs'!I18& " " &'2. Smart_Meter_Costs'!I19 -> 2007 Audited Actual | G20: ='2. Smart_Meter_Costs'!K18& " " &'2. Smart_Meter_Costs'!K19 -> 2008 Audited Actual | I20: ='2. Smart_Meter_Costs'!M18& " " &'2. Smart_Meter_Costs'!M19 -> 2009 Audited Actual | K20: ='2. Smart_Meter_Costs'!O18& " " &'2. Smart_Meter_Costs'!O19 -> 2010 Audited Actual | M20: ='2. Smart_Meter_Costs'!Q18& " " &'2. Smart_Meter_Costs'!Q19 -> 2011 Audited Actual | O20: ='2. Smart_Meter_Costs'!S18& " " &'2. Smart_Meter_Costs'!S19 -> 2012 Audited Actual | Q20: ='2. Smart_Meter_Costs'!U18& " " &'2. Smart_Meter_Costs'!U19 -> 2013 Audited Actual | S20: ='2. Smart_Meter_Costs'!W18& " " &'2. Smart_Meter_Costs'!W19 -> 2014 Forecast | U20: ='2. Smart_Meter_Costs'!Y18& " " &'2. Smart_Meter_Costs'!Y19 -> 2015 Forecast
A22: INCOME TAX
B23: Net Income | C23: ='5. SM_Rev_Reqt'!G$66 -> 0 | E23: ='5. SM_Rev_Reqt'!I$66 -> 66.0697425 | G23: ='5. SM_Rev_Reqt'!K$66 -> 60.13017747 | I23: ='5. SM_Rev_Reqt'!M$66 -> 8605.475564 | K23: ='5. SM_Rev_Reqt'!O$66 -> 13250.7526 | M23: ='5. SM_Rev_Reqt'!Q$66 -> 14416.20874 | O23: ='5. SM_Rev_Reqt'!S$66 -> 14913.16851 | Q23: ='5. SM_Rev_Reqt'!U$66 -> 13788.43115 | S23: ='5. SM_Rev_Reqt'!W$66 -> 12379.00407 | U23: ='5. SM_Rev_Reqt'!Y$66 -> 9604.454201
B24: Amortization | C24: ='5. SM_Rev_Reqt'!G$64 -> 0 | E24: ='5. SM_Rev_Reqt'!I$64 -> 0 | G24: ='5. SM_Rev_Reqt'!K$64 -> 0 | I24: ='5. SM_Rev_Reqt'!M$64 -> 18370.284 | K24: ='5. SM_Rev_Reqt'!O$64 -> 39611.375 | M24: ='5. SM_Rev_Reqt'!Q$64 -> 47604.62933 | O24: ='5. SM_Rev_Reqt'!S$64 -> 53546.01933 | Q24: ='5. SM_Rev_Reqt'!U$64 -> 54850.011 | S24: ='5. SM_Rev_Reqt'!W$64 -> 55066.75533 | U24: ='5. SM_Rev_Reqt'!Y$64 -> 54592.37067
B25: CCA - Smart Meters | C25: =-'6. UCC_Calculation'!B31 -> 0 | E25: =-'6. UCC_Calculation'!D31 -> 0 | G25: =-'6. UCC_Calculation'!F31 -> 0 | I25: =-'6. UCC_Calculation'!H31 -> -10961.718 | K25: =-'6. UCC_Calculation'!J31 -> -22612.59696 | M25: =-'6. UCC_Calculation'!L31 -> -26129.984 | O25: =-'6. UCC_Calculation'!N31 -> -28471.04488 | Q25: =-'6. UCC_Calculation'!P31 -> -26864.52449 | S25: =-'6. UCC_Calculation'!R31 -> -24816.80253 | U25: =-'6. UCC_Calculation'!T31 -> -23037.89833
B26: CCA - Computers | C26: =-'6. UCC_Calculation'!B46 -> 0 | E26: =-'6. UCC_Calculation'!D46 -> 0 | G26: =-'6. UCC_Calculation'!F46 -> 0 | I26: =-'6. UCC_Calculation'!H46 -> -1172.14075 | K26: =-'6. UCC_Calculation'!J46 -> -5909.097838 | M26: =-'6. UCC_Calculation'!L46 -> -7621.757777 | O26: =-'6. UCC_Calculation'!N46 -> -4375.7305 | Q26: =-'6. UCC_Calculation'!P46 -> -2383.110475 | S26: =-'6. UCC_Calculation'!R46 -> -1293.661964 | U26: =-'6. UCC_Calculation'!T46 -> -582.1478837
B27: CCA - Applications Software | C27: =-'6. UCC_Calculation'!B75 -> 0 | E27: =-'6. UCC_Calculation'!D75 -> 0 | G27: =-'6. UCC_Calculation'!F75 -> 0 | I27: =-'6. UCC_Calculation'!H75 -> 0 | K27: =-'6. UCC_Calculation'!J75 -> 0 | M27: =-'6. UCC_Calculation'!L75 -> -6074 | O27: =-'6. UCC_Calculation'!N75 -> -6074 | Q27: =-'6. UCC_Calculation'!P75 -> 0 | S27: =-'6. UCC_Calculation'!R75 -> 0 | U27: =-'6. UCC_Calculation'!T75 -> 0
B28: CCA - Other Equipment | C28: =-'6. UCC_Calculation'!B61 -> 0 | E28: =-'6. UCC_Calculation'!D61 -> 0 | G28: =-'6. UCC_Calculation'!F61 -> 0 | I28: =-'6. UCC_Calculation'!H61 -> 0 | K28: =-'6. UCC_Calculation'!J61 -> 0 | M28: =-'6. UCC_Calculation'!L61 -> 0 | O28: =-'6. UCC_Calculation'!N61 -> 0 | Q28: =-'6. UCC_Calculation'!P61 -> 0 | S28: =-'6. UCC_Calculation'!R61 -> 0 | U28: =-'6. UCC_Calculation'!T61 -> 0
B29: Change in taxable income | C29: =SUM(C23:C28) -> 0 | E29: 66.0697425 | G29: 60.13017747 | I29: 14841.90081 | K29: 24340.4328 | M29: 22195.0963 | O29: 29538.41247 | Q29: 39390.80718 | S29: =SUM(S23:S28) -> 41335.2949 | U29: 40576.77865
B31: Tax Rate (from Sheet 3) | C31: ='3. Cost_of_Service_Parameters'!G40 -> 0.1862 | E31: ='3. Cost_of_Service_Parameters'!I40 -> 0.1862 | G31: ='3. Cost_of_Service_Parameters'!K40 -> 0.1762 | I31: ='3. Cost_of_Service_Parameters'!M40 -> 0.1662 | K31: ='3. Cost_of_Service_Parameters'!O40 -> 0.165 | M31: ='3. Cost_of_Service_Parameters'!Q40 -> 0.15557 | O31: ='3. Cost_of_Service_Parameters'!S40 -> 0.11 | Q31: ='3. Cost_of_Service_Parameters'!U40 -> 0.1486315965 | S31: ='3. Cost_of_Service_Parameters'!W40 -> 0.155 | U31: ='3. Cost_of_Service_Parameters'!Y40 -> 0.155
B33: Income Taxes Payable | C33: =C29*C31 -> 0 | E33: 12.30218605 | G33: 10.59493727 | I33: 2466.723915 | K33: 4016.171412 | M33: 3452.891131 | O33: 3249.225371 | Q33: =Q29*Q31 -> 5854.718557 | S33: =S29*S31 -> 6406.97071 | U33: =U29*U31 -> 6289.400691
A35: ONTARIO CAPITAL TAX
B36: Smart Meters | C36: ='4. SM_Assets_and_Rate_Base'!G35 -> 0 | E36: ='4. SM_Assets_and_Rate_Base'!I35 -> 0 | G36: ='4. SM_Assets_and_Rate_Base'!K35 -> 0 | I36: ='4. SM_Assets_and_Rate_Base'!M35 -> 264908.185 | K36: ='4. SM_Assets_and_Rate_Base'!O35 -> 284486.033 | M36: ='4. SM_Assets_and_Rate_Base'!Q35 -> 354480.1687 | O36: ='4. SM_Assets_and_Rate_Base'!S35 -> 343553.0913 | Q36: ='4. SM_Assets_and_Rate_Base'!U35 -> 315287.6313 | S36: ='4. SM_Assets_and_Rate_Base'!W35 -> 289473.638 | U36: ='4. SM_Assets_and_Rate_Base'!Y35 -> 263576.6113
B37: Computer Hardware | C37: ='4. SM_Assets_and_Rate_Base'!G54 -> 0 | E37: ='4. SM_Assets_and_Rate_Base'!I54 -> 0 | G37: ='4. SM_Assets_and_Rate_Base'!K54 -> 0 | I37: ='4. SM_Assets_and_Rate_Base'!M54 -> 3836.097 | K37: ='4. SM_Assets_and_Rate_Base'!O54 -> 3644.186 | M37: ='4. SM_Assets_and_Rate_Base'!Q54 -> 2644.93 | O37: ='4. SM_Assets_and_Rate_Base'!S54 -> 1645.674 | Q37: ='4. SM_Assets_and_Rate_Base'!U54 -> 646.418 | S37: ='4. SM_Assets_and_Rate_Base'!W54 -> 0 | U37: ='4. SM_Assets_and_Rate_Base'!Y54 -> 0
B38: Computer Software (Including Application Software) | C38: ='4. SM_Assets_and_Rate_Base'!G73 -> 0 | E38: ='4. SM_Assets_and_Rate_Base'!I73 -> 0 | G38: ='4. SM_Assets_and_Rate_Base'!K73 -> 0 | I38: ='4. SM_Assets_and_Rate_Base'!M73 -> 0 | K38: ='4. SM_Assets_and_Rate_Base'!O73 -> 13115.97 | M38: ='4. SM_Assets_and_Rate_Base'!Q73 -> 23599.43 | O38: ='4. SM_Assets_and_Rate_Base'!S73 -> 18338.292 | Q38: ='4. SM_Assets_and_Rate_Base'!U73 -> 13030.207 | S38: ='4. SM_Assets_and_Rate_Base'!W73 -> 6837.073 | U38: ='4. SM_Assets_and_Rate_Base'!Y73 -> 643.939
B39: Tools & Equipment | C39: ='4. SM_Assets_and_Rate_Base'!G92 -> 0 | E39: ='4. SM_Assets_and_Rate_Base'!I92 -> 0 | G39: ='4. SM_Assets_and_Rate_Base'!K92 -> 0 | I39: ='4. SM_Assets_and_Rate_Base'!M92 -> 0 | K39: ='4. SM_Assets_and_Rate_Base'!O92 -> 0 | M39: ='4. SM_Assets_and_Rate_Base'!Q92 -> 0 | O39: ='4. SM_Assets_and_Rate_Base'!S92 -> 0 | Q39: ='4. SM_Assets_and_Rate_Base'!U92 -> 0 | S39: ='4. SM_Assets_and_Rate_Base'!W92 -> 0 | U39: ='4. SM_Assets_and_Rate_Base'!Y92 -> 0
B40: Other Equipment | C40: ='4. SM_Assets_and_Rate_Base'!G111 -> 0 | E40: ='4. SM_Assets_and_Rate_Base'!I111 -> 0 | G40: ='4. SM_Assets_and_Rate_Base'!K111 -> 0 | I40: ='4. SM_Assets_and_Rate_Base'!M111 -> 167376.434 | K40: ='4. SM_Assets_and_Rate_Base'!O111 -> 150422.862 | M40: ='4. SM_Assets_and_Rate_Base'!Q111 -> 142237.843 | O40: ='4. SM_Assets_and_Rate_Base'!S111 -> 127150.195 | Q40: ='4. SM_Assets_and_Rate_Base'!U111 -> 115769.375 | S40: ='4. SM_Assets_and_Rate_Base'!W111 -> 95892.165 | U40: ='4. SM_Assets_and_Rate_Base'!Y111 -> 76014.955
B41: Rate Base | C41: =SUM(C36:C40) -> 0 | E41: =SUM(E36:E40) -> 0 | G41: =SUM(G36:G40) -> 0 | I41: =SUM(I36:I40) -> 436120.716 | K41: =SUM(K36:K40) -> 451669.051 | M41: =SUM(M36:M40) -> 522962.3717 | O41: =SUM(O36:O40) -> 490687.2523 | Q41: =SUM(Q36:Q40) -> 444733.6313 | S41: =SUM(S36:S40) -> 392202.876 | U41: =SUM(U36:U40) -> 340235.5053
B42: Less: Exemption
B43: Deemed Taxable Capital | C43: =C41-C42 -> 0 | E43: 0 | G43: 0 | I43: 436120.716 | K43: 451669.051 | M43: 522962.3717 | O43: 490687.2523 | Q43: 444733.6313 | S43: =S41-S42 -> 392202.876 | U43: 340235.5053
B45: Ontario Capital Tax Rate (from Sheet 3) | C45: ='3. Cost_of_Service_Parameters'!G41 -> 0.003 | E45: ='3. Cost_of_Service_Parameters'!I41 -> 0.00225 | G45: ='3. Cost_of_Service_Parameters'!K41 -> 0.00225 | I45: ='3. Cost_of_Service_Parameters'!M41 -> 0.00225 | K45: ='3. Cost_of_Service_Parameters'!O41 -> 0.00075 | M45: ='3. Cost_of_Service_Parameters'!Q41 -> 0 | O45: ='3. Cost_of_Service_Parameters'!S41 -> 0 | Q45: ='3. Cost_of_Service_Parameters'!U41 -> 0 | S45: ='3. Cost_of_Service_Parameters'!W41 -> 0 | U45: ='3. Cost_of_Service_Parameters'!Y41 -> 0
B47: Net Amount (Taxable Capital x Rate) | C47: =C43*C45 -> 0 | E47: 0 | G47: 0 | I47: 981.271611 | K47: 338.7517883 | M47: 0 | O47: 0 | Q47: =Q43*Q45 -> 0 | S47: =S43*S45 -> 0 | U47: =U43*U45 -> 0
B50: Change in Income Taxes Payable | C50: =C33 -> 0 | E50: 12.30218605 | G50: 10.59493727 | I50: 2466.723915 | K50: 4016.171412 | M50: 3452.891131 | O50: 3249.225371 | Q50: =Q33 -> 5854.718557 | S50: =S33 -> 6406.97071 | U50: =U33 -> 6289.400691
B51: Change in OCT | C51: =C47 -> 0 | E51: 0 | G51: 0 | I51: 981.271611 | K51: 338.7517883 | M51: 0 | O51: 0 | Q51: =Q47 -> 0 | S51: =S47 -> 0 | U51: =U47 -> 0
B52: PILs | C52: =SUM(C50:C51) -> 0 | E52: 12.30218605 | G52: 10.59493727 | I52: 3447.995526 | K52: 4354.9232 | M52: 3452.891131 | O52: 3249.225371 | Q52: 5854.718557 | S52: =SUM(S50:S51) -> 6406.97071 | U52: 6289.400691
A55: Gross Up PILs
B56: Tax Rate | C56: =C31 -> 0.1862 | E56: =E31 -> 0.1862 | G56: 0.1762 | I56: 0.1662 | K56: 0.165 | M56: 0.15557 | O56: 0.11 | Q56: =Q31 -> 0.1486315965 | S56: =S31 -> 0.155 | U56: =U31 -> 0.155
B57: Change in Income Taxes Payable | C57: =C50/(1-C56) -> 0 | E57: 15.11696492 | G57: 12.8610552 | I57: 2958.411988 | K57: 4809.786122 | M57: 4089.019967 | O57: 3650.815024 | Q57: 6876.833264 | S57: =S50/(1-S56) -> 7582.213858 | U57: 7443.077741
B58: Change in OCT | C58: =C51 -> 0 | E58: 0 | G58: 0 | I58: 981.271611 | K58: 338.7517883 | M58: 0 | O58: 0 | Q58: =Q51 -> 0 | S58: =S51 -> 0 | U58: =U51 -> 0
B59: PILs | C59: =SUM(C57:C58) -> 0 | E59: 15.11696492 | G59: 12.8610552 | I59: 3939.683599 | K59: 5148.537911 | M59: 4089.019967 | O59: 3650.815024 | Q59: 6876.833264 | S59: =SUM(S57:S58) -> 7582.213858 | U59: 7443.077741

Sheet 8. Funding_Adder_Revs
B13: This worksheet calculates the funding adder revenues.
J20: Account 1555 - Sub-account Funding Adder Revenues
B22: Prescribed Interest Rates | C22: Approved Deferral and Variance Accounts | D22: CWIP | F22: Date | G22: Year | H22: Quarter | J22: Opening Balance (Principal) | K22: Funding Adder Revenues | L22: Interest Rate | M22: Interest | N22: Closing Balance | O22: Annual amounts | P22: Board Approved Smart Meter Funding Adder (from Tariff)
B24: 2006 Q1 | F24: 2006-01-01 | G24: =YEAR(F24) -> 2006 | H24: =IF(MONTH(F24)=0,"",IF(MONTH(F24)<4,"Q1",IF(MONTH(F24)<7,"Q2",IF(MONTH(F24)<10,"Q3","Q4")))) -> Q1 | I24: =CONCATENATE(G24," ",H24) -> 2006 Q1 | J24: 0 | L24: =VLOOKUP(I24,$B$22:$D$59,2) -> 0 | M24: =ROUND(J24*L24/12,2) -> 0 | N24: =J24+K24+M24 -> 0
B25: 2006 Q2 | C25: 0.0414 | D25: 0.0468 | F25: 2006-02-01 | G25: =YEAR(F25) -> 2006 | H25: =IF(MONTH(F25)=0,"",IF(MONTH(F25)<4,"Q1",IF(MONTH(F25)<7,"Q2",IF(MONTH(F25)<10,"Q3","Q4")))) -> Q1 | I25: =CONCATENATE(G25," ",H25) -> 2006 Q1 | J25: =J24+K24 -> 0 | L25: 0 | M25: =ROUND(J25*L25/12,2) -> 0 | N25: =J25+K25+M25 -> 0
B26: 2006 Q3 | C26: 0.0459 | D26: 0.0505 | F26: 2006-03-01 | G26: 2006 | H26: Q1 | I26: 2006 Q1 | J26: =J25+K25 -> 0 | L26: 0 | M26: 0 | N26: 0
B27: 2006 Q4 | C27: 0.0459 | D27: 0.0472 | F27: 2006-04-01 | G27: 2006 | H27: Q2 | I27: 2006 Q2 | J27: 0 | L27: 0.0414 | M27: 0 | N27: 0
B28: 2007 Q1 | C28: 0.0459 | D28: 0.0472 | F28: 2006-05-01 | G28: 2006 | H28: Q2 | I28: 2006 Q2 | J28: 0 | L28: 0.0414 | M28: 0 | N28: 0
B29: 2007 Q2 | C29: 0.0459 | D29: 0.0472 | F29: 2006-06-01 | G29: 2006 | H29: Q2 | I29: 2006 Q2 | J29: 0 | L29: 0.0414 | M29: 0 | N29: 0
B30: 2007 Q3 | C30: 0.0459 | D30: 0.0518 | F30: 2006-07-01 | G30: 2006 | H30: Q3 | I30: 2006 Q3 | J30: 0 | K30: 697 | L30: 0.0459 | M30: 0 | N30: 697
B31: 2007 Q4 | C31: 0.0514 | D31: 0.0518 | F31: 2006-08-01 | G31: 2006 | H31: Q3 | I31: 2006 Q3 | J31: 697 | K31: 701.5 | L31: 0.0459 | M31: 2.67 | N31: 1401.17
B32: 2008 Q1 | C32: 0.0514 | D32: 0.0518 | F32: 2006-09-01 | G32: 2006 | H32: Q3 | I32: 2006 Q3 | J32: 1398.5 | K32: 688.75 | L32: 0.0459 | M32: 5.35 | N32: 2092.6
B33: 2008 Q2 | C33: 0.0408 | D33: 0.0518 | F33: 2006-10-01 | G33: 2006 | H33: Q4 | I33: 2006 Q4 | J33: 2087.25 | K33: 690.5 | L33: 0.0459 | M33: 7.98 | N33: 2785.73
B34: 2008 Q3 | C34: 0.0335 | D34: 0.0543 | F34: 2006-11-01 | G34: 2006 | H34: Q4 | I34: 2006 Q4 | J34: 2777.75 | K34: 693 | L34: 0.0459 | M34: 10.62 | N34: 3481.37
B35: 2008 Q4 | C35: 0.0335 | D35: 0.0543 | F35: 2006-12-01 | G35: 2006 | H35: Q4 | I35: 2006 Q4 | J35: 3470.75 | K35: 689.25 | L35: 0.0459 | M35: 13.28 | N35: 4173.28 | O35: =SUM(K24:K35)+SUM(M24:M35) -> 4199.9
B36: 2009 Q1 | C36: 0.0245 | D36: 0.0661 | F36: 2007-01-01 | G36: 2007 | H36: Q1 | I36: 2007 Q1 | J36: 4160 | K36: 692.25 | L36: 0.0459 | M36: 15.91 | N36: 4868.16
B37: 2009 Q2 | C37: 0.01 | D37: 0.0661 | F37: 2007-02-01 | G37: 2007 | H37: Q1 | I37: 2007 Q1 | J37: 4852.25 | K37: 692 | L37: 0.0459 | M37: 18.56 | N37: 5562.81
B38: 2009 Q3 | C38: 0.0055 | D38: 0.0567 | F38: 2007-03-01 | G38: 2007 | H38: Q1 | I38: 2007 Q1 | J38: 5544.25 | K38: 688 | L38: 0.0459 | M38: 21.21 | N38: 6253.46
B39: 2009 Q4 | C39: 0.0055 | D39: 0.0466 | F39: 2007-04-01 | G39: 2007 | H39: Q2 | I39: 2007 Q2 | J39: 6232.25 | K39: 680.75 | L39: 0.0459 | M39: 23.84 | N39: 6936.84
B40: 2010 Q1 | C40: 0.0055 | D40: 0.0434 | F40: 2007-05-01 | G40: 2007 | H40: Q2 | I40: 2007 Q2 | J40: 6913 | K40: 693.5 | L40: 0.0459 | M40: 26.44 | N40: 7632.94
B41: 2010 Q2 | C41: 0.0055 | D41: 0.0434 | F41: 2007-06-01 | G41: 2007 | H41: Q2 | I41: 2007 Q2 | J41: 7606.5 | K41: 693.5 | L41: 0.0459 | M41: 29.09 | N41: 8329.09
B42: 2010 Q3 | C42: 0.0089 | D42: 0.0466 | F42: 2007-07-01 | G42: 2007 | H42: Q3 | I42: 2007 Q3 | J42: 8300 | K42: 695 | L42: 0.0459 | M42: 31.75 | N42: 9026.75
B43: 2010 Q4 | C43: 0.012 | D43: 0.0401 | F43: 2007-08-01 | G43: 2007 | H43: Q3 | I43: 2007 Q3 | J43: 8995 | K43: 694.5 | L43: 0.0459 | M43: 34.41 | N43: 9723.91
B44: 2011 Q1 | C44: 0.0147 | D44: 0.0429 | F44: 2007-09-01 | G44: 2007 | H44: Q3 | I44: 2007 Q3 | J44: 9689.5 | K44: 687.25 | L44: 0.0459 | M44: 37.06 | N44: 10413.81
B45: 2011 Q2 | C45: 0.0147 | D45: 0.0429 | F45: 2007-10-01 | G45: 2007 | H45: Q4 | I45: 2007 Q4 | J45: 10376.75 | K45: 695.5 | L45: 0.0514 | M45: 44.45 | N45: 11116.7
B46: 2011 Q3 | C46: 0.0147 | D46: 0.0429 | F46: 2007-11-01 | G46: 2007 | H46: Q4 | I46: 2007 Q4 | J46: 11072.25 | K46: 688.75 | L46: 0.0514 | M46: 47.43 | N46: 11808.43
B47: 2011 Q4 | C47: =C46 -> 0.0147 | D47: 0.0392 | F47: 2007-12-01 | G47: 2007 | H47: Q4 | I47: 2007 Q4 | J47: 11761 | K47: =585.5+98+10.25+0.75 -> 694.5 | L47: 0.0514 | M47: 50.38 | N47: 12505.88 | O47: =SUM(K36:K47)+SUM(M36:M47) -> 8676.03
B48: 2012 Q1 | C48: 0.0147 | D48: 0.0392 | F48: 2008-01-01 | G48: 2008 | H48: Q1 | I48: 2008 Q1 | J48: 12455.5 | K48: 686.25 | L48: 0.0514 | M48: 53.35 | N48: 13195.1
B49: 2012 Q2 | C49: 0.0147 | D49: 0.0351 | F49: 2008-02-01 | G49: 2008 | H49: Q1 | I49: 2008 Q1 | J49: 13141.75 | K49: 691.25 | L49: 0.0514 | M49: 56.29 | N49: 13889.29
B50: 2012 Q3 | C50: 0.0147 | D50: 0.0351 | F50: 2008-03-01 | G50: 2008 | H50: Q1 | I50: 2008 Q1 | J50: 13833 | K50: 690.75 | L50: 0.0514 | M50: 59.25 | N50: 14583
B51: 2012 Q4 | C51: 0.0147 | D51: 0.0323 | F51: 2008-04-01 | G51: 2008 | H51: Q2 | I51: 2008 Q2 | J51: 14523.75 | K51: 691.5 | L51: 0.0408 | M51: 49.38 | N51: 15264.63
B52: 2013 Q1 | C52: 0.0147 | D52: 0.0323 | F52: 2008-05-01 | G52: 2008 | H52: Q2 | I52: 2008 Q2 | J52: 15215.25 | K52: =578.5+97+10+0.75 -> 686.25 | L52: 0.0408 | M52: 51.73 | N52: 15953.23
B53: 2013 Q2 | C53: 0.0147 | D53: 0.0323 | F53: 2008-06-01 | G53: 2008 | H53: Q2 | I53: 2008 Q2 | J53: 15901.5 | K53: =568+97.25+10.25+0.75 -> 676.25 | L53: 0.0408 | M53: 54.07 | N53: 16631.82
B54: 2013 Q3 | C54: 0.0147 | D54: 0.0323 | F54: 2008-07-01 | G54: 2008 | H54: Q3 | I54: 2008 Q3 | J54: 16577.75 | K54: =583+98+10.25+0.75 -> 692 | L54: 0.0335 | M54: 46.28 | N54: 17316.03
B55: 2013 Q4 | C55: 0.0147 | D55: 0.037 | F55: 2008-08-01 | G55: 2008 | H55: Q3 | I55: 2008 Q3 | J55: 17269.75 | K55: =579.75+97.25+10+0.75 -> 687.75 | L55: 0.0335 | M55: 48.21 | N55: 18005.71
B56: 2014 Q1 | C56: 0.0147 | D56: 0.037 | F56: 2008-09-01 | G56: 2008 | H56: Q3 | I56: 2008 Q3 | J56: 17957.5 | K56: =579.25+97.75+10.5+0.75 -> 688.25 | L56: =VLOOKUP(I56,$B$22:$D$59,2) -> 0.0335 | M56: 50.13 | N56: 18695.88
B57: 2014 Q2 | C57: 0.0147 | D57: 0.0317 | F57: 2008-10-01 | G57: 2008 | H57: Q4 | I57: 2008 Q4 | J57: 18645.75 | K57: =581.5+98+10.25+0.75 -> 690.5 | L57: 0.0335 | M57: 52.05 | N57: 19388.3
B58: 2014 Q3 | C58: 0.0147 | D58: 0.0317 | F58: 2008-11-01 | G58: 2008 | H58: Q4 | I58: 2008 Q4 | J58: 19336.25 | K58: =584+98.75+10.25+0.75 -> 693.75 | L58: 0.0335 | M58: 53.98 | N58: 20083.98
B59: 2014 Q4 | C59: 0.0147 | D59: 0.0317 | F59: 2008-12-01 | G59: 2008 | H59: Q4 | I59: 2008 Q4 | J59: 20030 | K59: =96.89+576.07+10+0.75 -> 683.71 | L59: 0.0335 | M59: 55.92 | N59: 20769.63 | O59: =SUM(K48:K59)+SUM(M48:M59) -> 8888.85
B60: 2015 Q1 | C60: 0.0147 | D60: 0.0289 | F60: 2009-01-01 | G60: 2009 | H60: Q1 | I60: 2009 Q1 | J60: 20713.71 | K60: =584.03+99.19+10+0.75 -> 693.97 | L60: 0.0245 | M60: 42.29 | N60: 21449.97
B61: 2015 Q2 | C61: 0.011 | D61: 0.0228 | F61: 2009-02-01 | G61: 2009 | H61: Q1 | I61: 2009 Q1 | J61: 21407.68 | K61: =569.88+96.03+9.92+0.75 -> 676.58 | L61: 0.0245 | M61: 43.71 | N61: 22127.97
B62: 2015 Q3 | C62: 0.011 | D62: 0.0255 | F62: 2009-03-01 | G62: 2009 | H62: Q1 | I62: 2009 Q1 | J62: 22084.26 | K62: =581.99+96.57+10+0.75 -> 689.31 | L62: 0.0245 | M62: 45.09 | N62: 22818.66
B63: 2015 Q4 | C63: 0.011 | D63: 0.0255 | F63: 2009-04-01 | G63: 2009 | H63: Q2 | I63: 2009 Q2 | J63: 22773.57 | K63: =579.15+97.46+10+0.75 -> 687.36 | L63: 0.01 | M63: 18.98 | N63: 23479.91
F64: 2009-05-01 | G64: 2009 | H64: Q2 | I64: 2009 Q2 | J64: 23460.93 | K64: =586.09+98.07+9.75+0.75 -> 694.66 | L64: 0.01 | M64: 19.55 | N64: 24175.14
F65: 2009-06-01 | G65: 2009 | H65: Q2 | I65: 2009 Q2 | J65: 24155.59 | K65: =2083.65+349.85+33.75+4+3 -> 2474.25 | L65: 0.01 | M65: 20.13 | N65: 26649.97
F66: 2009-07-01 | G66: 2009 | H66: Q3 | I66: 2009 Q3 | J66: 26629.84 | K66: =2323.14+392.89+40+3 -> 2759.03 | L66: 0.0055 | M66: 12.21 | N66: 29401.08
F67: 2009-08-01 | G67: 2009 | H67: Q3 | I67: 2009 Q3 | J67: 29388.87 | K67: =2316.81+393.94+36.17+4+3 -> 2753.92 | L67: 0.0055 | M67: 13.47 | N67: 32156.26
F68: 2009-09-01 | G68: 2009 | H68: Q3 | I68: 2009 Q3 | J68: 32142.79 | K68: =2320.25+394.37+38+3 -> 2755.62 | L68: 0.0055 | M68: 14.73 | N68: 34913.14
F69: 2009-10-01 | G69: 2009 | H69: Q4 | I69: 2009 Q4 | J69: 34898.41 | K69: =2322.54+392.17+38+3 -> 2755.71 | L69: 0.0055 | M69: 16 | N69: 37670.12
F70: 2009-11-01 | G70: 2009 | H70: Q4 | I70: 2009 Q4 | J70: 37654.12 | K70: =2322.54+0.4+388.33+2+38+3 -> 2754.27 | L70: 0.0055 | M70: 17.26 | N70: 40425.65
F71: 2009-12-01 | G71: 2009 | H71: Q4 | I71: 2009 Q4 | J71: 40408.39 | K71: =2315.52+388.36+44+3 -> 2750.88 | L71: 0.0055 | M71: 18.52 | N71: 43177.79 | O71: =SUM(K60:K71)+SUM(M60:M71) -> 22727.5
F72: 2010-01-01 | G72: 2010 | H72: Q1 | I72: 2010 Q1 | J72: 43159.27 | K72: =2298.55+398.34+39+3 -> 2738.89 | L72: 0.0055 | M72: 19.78 | N72: 45917.94
F73: 2010-02-01 | G73: 2010 | H73: Q1 | I73: 2010 Q1 | J73: 45898.16 | K73: =2296.92+391.5+39+3 -> 2730.42 | L73: 0.0055 | M73: 21.04 | N73: 48649.62
F74: 2010-03-01 | G74: 2010 | H74: Q1 | I74: 2010 Q1 | J74: 48628.58 | K74: =2298.62+389.5+39+3 -> 2730.12 | L74: 0.0055 | M74: 22.29 | N74: 51380.99
F75: 2010-04-01 | G75: 2010 | H75: Q2 | I75: 2010 Q2 | J75: 51358.7 | K75: =2288.25+389+39+3 -> 2719.25 | L75: 0.0055 | M75: 23.54 | N75: 54101.49
F76: 2010-05-01 | G76: 2010 | H76: Q2 | I76: 2010 Q2 | J76: 54077.95 | K76: =2297.59+388.57+38.97+3 -> 2728.13 | L76: 0.0055 | M76: 24.79 | N76: 56830.87
F77: 2010-06-01 | G77: 2010 | H77: Q2 | I77: 2010 Q2 | J77: 56806.08 | K77: =2285.01+390.01+35.07+4+3 -> 2717.09 | L77: 0.0055 | M77: 26.04 | N77: 59549.21
F78: 2010-07-01 | G78: 2010 | H78: Q3 | I78: 2010 Q3 | J78: 59523.17 | K78: =2278.23+390.84+39+3 -> 2711.07 | L78: 0.0089 | M78: 44.15 | N78: 62278.39
F79: 2010-08-01 | G79: 2010 | H79: Q3 | I79: 2010 Q3 | J79: 62234.24 | K79: =2273.81+355.94+39+3 -> 2671.75 | L79: 0.0089 | M79: 46.16 | N79: 64952.15
F80: 2010-09-01 | G80: 2010 | H80: Q3 | I80: 2010 Q3 | J80: 64905.99 | K80: =2288.26+396.11+38.73+3 -> 2726.1 | L80: 0.0089 | M80: 48.14 | N80: 67680.23
F81: 2010-10-01 | G81: 2010 | H81: Q4 | I81: 2010 Q4 | J81: 67632.09 | K81: =2257.96+66.71+398.6+39.5+3 -> 2765.77 | L81: 0.012 | M81: 67.63 | N81: 70465.49
F82: 2010-11-01 | G82: 2010 | H82: Q4 | I82: 2010 Q4 | J82: 70397.86 | K82: =2277.59+442.48+38.3+3 -> 2761.37 | L82: 0.012 | M82: 70.4 | N82: 73229.63
F83: 2010-12-01 | G83: 2010 | H83: Q4 | I83: 2010 Q4 | J83: 73159.23 | K83: =2280.18+409.82+38+3 -> 2731 | L83: 0.012 | M83: 73.16 | N83: 75963.39 | O83: =SUM(K72:K83)+SUM(M72:M83) -> 33218.08
F84: 2011-01-01 | G84: 2011 | H84: Q1 | I84: 2011 Q1 | J84: 75890.23 | K84: =2296.19+410.56+39+3 -> 2748.75 | L84: 0.0147 | M84: 92.97 | N84: 78731.95
F85: 2011-02-01 | G85: 2011 | H85: Q1 | I85: 2011 Q1 | J85: 78638.98 | K85: =2287.06+0.02+413.16+38+3 -> 2741.24 | L85: 0.0147 | M85: 96.33 | N85: 81476.55
F86: 2011-03-01 | G86: 2011 | H86: Q1 | I86: 2011 Q1 | J86: 81380.22 | K86: =2287.52+420.7+39+3 -> 2750.22 | L86: 0.0147 | M86: 99.69 | N86: 84230.13
F87: 2011-04-01 | G87: 2011 | H87: Q2 | I87: 2011 Q2 | J87: 84130.44 | K87: =2294.3+417.96+38+3 -> 2753.26 | L87: 0.0147 | M87: 103.06 | N87: 86986.76
F88: 2011-05-01 | G88: 2011 | H88: Q2 | I88: 2011 Q2 | J88: 86883.7 | K88: =2291.83+420.77+38+3 -> 2753.6 | L88: =VLOOKUP(I88,$B$22:$D$59,2) -> 0.0147 | M88: 106.43 | N88: 89743.73
F89: 2011-06-01 | G89: =YEAR(F89) -> 2011 | H89: =IF(MONTH(F89)=0,"",IF(MONTH(F89)<4,"Q1",IF(MONTH(F89)<7,"Q2",IF(MONTH(F89)<10,"Q3","Q4")))) -> Q2 | I89: =CONCATENATE(G89," ",H89) -> 2011 Q2 | J89: 89637.3 | K89: =5747.53+1015.93+82.5+12.5+5 -> 6863.46 | L89: 0.0147 | M89: =ROUND(J89*L89/12,2) -> 109.81 | N89: =J89+K89+M89 -> 96610.57
F90: 2011-07-01 | G90: 2011 | H90: Q3 | I90: 2011 Q3 | J90: =J89+K89 -> 96500.76 | K90: =5705.07+1021.17+82.5+12.5+5 -> 6826.24 | L90: 0.0147 | M90: 118.21 | N90: 103445.21
F91: 2011-08-01 | G91: 2011 | H91: Q3 | I91: 2011 Q3 | J91: 103327 | K91: =5692.61+1023.58+83.33+12.5+5 -> 6817.02 | L91: 0.0147 | M91: 126.58 | N91: 110270.6
F92: 2011-09-01 | G92: 2011 | H92: Q3 | I92: 2011 Q3 | J92: 110144.02 | K92: =5709.69+1019.67+82.5+12.5+5 -> 6829.36 | L92: 0.0147 | M92: 134.93 | N92: 117108.31
F93: 2011-10-01 | G93: 2011 | H93: Q4 | I93: 2011 Q4 | J93: 116973.38 | K93: =5699.59+1008.91+82.5+12.5+5 -> 6808.5 | L93: 0.0147 | M93: 143.29 | N93: 123925.17
F94: 2011-11-01 | G94: 2011 | H94: Q4 | I94: 2011 Q4 | J94: 123781.88 | K94: =5713.01+1015.65+82.5+12.5+5 -> 6828.66 | L94: 0.0147 | M94: 151.63 | N94: 130762.17
F95: 2011-12-01 | G95: 2011 | H95: Q4 | I95: 2011 Q4 | J95: 130610.54 | K95: =2733.24+3000+1012.5+82.5+12.5+5 -> 6845.74 | L95: 0.0147 | M95: 160 | N95: 137616.28 | O95: =SUM(K84:K95)+SUM(M84:M95) -> 63008.98
F96: 2012-01-01 | G96: 2012 | H96: Q1 | I96: 2012 Q1 | J96: 137456.28 | K96: =5723.99+1010.4+82.5+12.5+5 -> 6834.39 | L96: 0.0147 | M96: 168.38 | N96: 144459.05
F97: 2012-02-01 | G97: 2012 | H97: Q1 | I97: 2012 Q1 | J97: 144290.67 | K97: =5720.73+1000.09+90+12.5+5 -> 6828.32 | L97: 0.0147 | M97: 176.76 | N97: 151295.75
F98: 2012-03-01 | G98: 2012 | H98: Q1 | I98: 2012 Q1 | J98: 151118.99 | K98: =5708.56+1002+90+12.5+5 -> 6818.06 | L98: 0.0147 | M98: 185.12 | N98: 158122.17
F99: 2012-04-01 | G99: 2012 | H99: Q2 | I99: 2012 Q2 | J99: 157937.05 | K99: =5715.29+1000+90+12.5+5 -> 6822.79 | L99: =VLOOKUP(I99,$B$22:$D$63,2) -> 0.0147 | M99: 193.47 | N99: 164953.31
F100: 2012-05-01 | G100: 2012 | H100: Q2 | I100: 2012 Q2 | J100: 164759.84 | K100: =5715.29+1006.75+90+12.5+5+26.33+0.17+2.33 -> 6858.37 | L100: =VLOOKUP(I100,$B$22:$D$63,2) -> 0.0147 | M100: 201.83 | N100: 171820.04
F101: 2012-06-01 | G101: 2012 | H101: Q2 | I101: 2012 Q2 | J101: 171618.21 | L101: 0.0147 | M101: 210.23 | N101: 171828.44
F102: 2012-07-01 | G102: 2012 | H102: Q3 | I102: 2012 Q3 | J102: 171618.21 | L102: 0.0147 | M102: 210.23 | N102: 171828.44
F103: 2012-08-01 | G103: 2012 | H103: Q3 | I103: 2012 Q3 | J103: 171618.21 | L103: 0.0147 | M103: 210.23 | N103: 171828.44
F104: 2012-09-01 | G104: 2012 | H104: Q3 | I104: 2012 Q3 | J104: 171618.21 | L104: 0.0147 | M104: 210.23 | N104: 171828.44
F105: 2012-10-01 | G105: 2012 | H105: Q4 | I105: 2012 Q4 | J105: 171618.21 | L105: 0.0147 | M105: 210.23 | N105: 171828.44
F106: 2012-11-01 | G106: 2012 | H106: Q4 | I106: 2012 Q4 | J106: 171618.21 | L106: 0.0147 | M106: 210.23 | N106: 171828.44
F107: 2012-12-01 | G107: 2012 | H107: Q4 | I107: 2012 Q4 | J107: 171618.21 | L107: 0.0147 | M107: 210.23 | N107: 171828.44 | O107: =SUM(K96:K107)+SUM(M96:M107) -> 36559.1
F108: 2013-01-01 | G108: 2013 | H108: Q1 | I108: 2013 Q1 | J108: 171618.21 | L108: 0.0147 | M108: =ROUND(J108*L108/12,2) -> 210.23 | N108: =J108+K108+M108 -> 171828.44
F109: 2013-02-01 | G109: 2013 | H109: Q1 | I109: 2013 Q1 | J109: 171618.21 | L109: 0.0147 | M109: 210.23 | N109: 171828.44
F110: 2013-03-01 | G110: 2013 | H110: Q1 | I110: 2013 Q1 | J110: 171618.21 | L110: 0.0147 | M110: 210.23 | N110: 171828.44
F111: 2013-04-01 | G111: 2013 | H111: Q2 | I111: 2013 Q2 | J111: 171618.21 | L111: 0.0147 | M111: 210.23 | N111: 171828.44
F112: 2013-05-01 | G112: 2013 | H112: Q2 | I112: 2013 Q2 | J112: 171618.21 | L112: 0.0147 | M112: 210.23 | N112: 171828.44
F113: 2013-06-01 | G113: 2013 | H113: Q2 | I113: 2013 Q2 | J113: 171618.21 | L113: 0.0147 | M113: 210.23 | N113: 171828.44
F114: 2013-07-01 | G114: 2013 | H114: Q3 | I114: 2013 Q3 | J114: 171618.21 | L114: 0.0147 | M114: 210.23 | N114: 171828.44
F115: 2013-08-01 | G115: 2013 | H115: Q3 | I115: 2013 Q3 | J115: 171618.21 | L115: 0.0147 | M115: 210.23 | N115: 171828.44
F116: 2013-09-01 | G116: 2013 | H116: Q3 | I116: 2013 Q3 | J116: 171618.21 | L116: 0.0147 | M116: 210.23 | N116: 171828.44
F117: 2013-10-01 | G117: 2013 | H117: Q4 | I117: 2013 Q4 | J117: 171618.21 | L117: 0.0147 | M117: 210.23 | N117: 171828.44
F118: 2013-11-01 | G118: 2013 | H118: Q4 | I118: 2013 Q4 | J118: 171618.21 | L118: 0.0147 | M118: 210.23 | N118: 171828.44
F119: 2013-12-01 | G119: 2013 | H119: Q4 | I119: 2013 Q4 | J119: 171618.21 | L119: 0.0147 | M119: 210.23 | N119: 171828.44 | O119: =SUM(K108:K119)+SUM(M108:M119) -> 2522.76
F120: 2014-01-01 | G120: =YEAR(F120) -> 2014 | H120: =IF(MONTH(F120)=0,"",IF(MONTH(F120)<4,"Q1",IF(MONTH(F120)<7,"Q2",IF(MONTH(F120)<10,"Q3","Q4")))) -> Q1 | I120: =CONCATENATE(G120," ",H120) -> 2014 Q1 | J120: =J119+K119 -> 171618.21 | L120: 0.0147 | M120: =ROUND(J120*L120/12,2) -> 210.23 | N120: =J120+K120+M120 -> 171828.44
F121: 2014-02-01 | G121: 2014 | H121: Q1 | I121: 2014 Q1 | J121: 171618.21 | L121: 0.0147 | M121: 210.23 | N121: 171828.44
F122: 2014-03-01 | G122: 2014 | H122: Q1 | I122: 2014 Q1 | J122: 171618.21 | L122: 0.0147 | M122: 210.23 | N122: 171828.44
F123: 2014-04-01 | G123: 2014 | H123: Q2 | I123: 2014 Q2 | J123: 171618.21 | L123: 0.0147 | M123: 210.23 | N123: 171828.44
F124: 2014-05-01 | G124: 2014 | H124: Q2 | I124: 2014 Q2 | J124: 171618.21 | L124: 0.0147 | M124: 210.23 | N124: 171828.44
F125: 2014-06-01 | G125: 2014 | H125: Q2 | I125: 2014 Q2 | J125: 171618.21 | L125: 0.0147 | M125: 210.23 | N125: 171828.44
F126: 2014-07-01 | G126: 2014 | H126: Q3 | I126: 2014 Q3 | J126: 171618.21 | L126: 0.0147 | M126: 210.23 | N126: 171828.44
F127: 2014-08-01 | G127: 2014 | H127: Q3 | I127: 2014 Q3 | J127: 171618.21 | L127: 0.0147 | M127: 210.23 | N127: 171828.44
F128: 2014-09-01 | G128: 2014 | H128: Q3 | I128: 2014 Q3 | J128: 171618.21 | L128: 0.0147 | M128: 210.23 | N128: 171828.44
F129: 2014-10-01 | G129: 2014 | H129: Q4 | I129: 2014 Q4 | J129: 171618.21 | L129: 0.0147 | M129: 210.23 | N129: 171828.44
F130: 2014-11-01 | G130: 2014 | H130: Q4 | I130: 2014 Q4 | J130: 171618.21 | L130: 0.0147 | M130: 210.23 | N130: 171828.44
F131: 2014-12-01 | G131: 2014 | H131: Q4 | I131: 2014 Q4 | J131: 171618.21 | L131: 0.0147 | M131: 210.23 | N131: 171828.44 | O131: =SUM(K120:K131)+SUM(M120:M131) -> 2522.76
F132: 2015-01-01 | G132: =YEAR(F132) -> 2015 | H132: =IF(MONTH(F132)=0,"",IF(MONTH(F132)<4,"Q1",IF(MONTH(F132)<7,"Q2",IF(MONTH(F132)<10,"Q3","Q4")))) -> Q1 | I132: =CONCATENATE(G132," ",H132) -> 2015 Q1 | J132: =J131+K131 -> 171618.21 | L132: 0.0147 | M132: =ROUND(J132*L132/12,2) -> 210.23 | N132: =J132+K132+M132 -> 171828.44
F133: 2015-02-01 | G133: 2015 | H133: Q1 | I133: 2015 Q1 | J133: 171618.21 | L133: 0.0147 | M133: 210.23 | N133: 171828.44
F134: 2015-03-01 | G134: 2015 | H134: Q1 | I134: 2015 Q1 | J134: 171618.21 | L134: 0.0147 | M134: 210.23 | N134: 171828.44
F135: 2015-04-01 | G135: 2015 | H135: Q2 | I135: 2015 Q2 | J135: 171618.21 | L135: 0.011 | M135: 157.32 | N135: 171775.53
F136: 2015-05-01 | G136: 2015 | H136: Q2 | I136: 2015 Q2 | J136: 171618.21 | L136: 0.011 | M136: 157.32 | N136: 171775.53
F137: 2015-06-01 | G137: 2015 | H137: Q2 | I137: 2015 Q2 | J137: 171618.21 | L137: 0.011 | M137: 157.32 | N137: 171775.53
F138: 2015-07-01 | G138: 2015 | H138: Q3 | I138: 2015 Q3 | J138: 171618.21 | L138: 0.011 | M138: 157.32 | N138: 171775.53
F139: 2015-08-01 | G139: 2015 | H139: Q3 | I139: 2015 Q3 | J139: 171618.21 | L139: 0.011 | M139: 157.32 | N139: 171775.53
F140: 2015-09-01 | G140: 2015 | H140: Q3 | I140: 2015 Q3 | J140: 171618.21 | L140: 0.011 | M140: 157.32 | N140: 171775.53
F141: 2015-10-01 | G141: 2015 | H141: Q4 | I141: 2015 Q4 | J141: 171618.21 | L141: 0.011 | M141: 157.32 | N141: 171775.53
F142: 2015-11-01 | G142: 2015 | H142: Q4 | I142: 2015 Q4 | J142: 171618.21 | L142: 0.011 | M142: 157.32 | N142: 171775.53
F143: 2015-12-01 | G143: 2015 | H143: Q4 | I143: 2015 Q4 | J143: 171618.21 | L143: 0.011 | M143: 157.32 | N143: 171775.53 | O143: =SUM(K132:K143)+SUM(M132:M143) -> 2046.57
F145: Total Funding Adder Revenues Collected | K145: =SUM(K24:K143) -> 171618.21 | M145: =SUM(M24:M143) -> 12752.32 | N145: =K145+M145 -> 184370.53 | O145: =SUM(O24:O143) -> 184370.53

Sheet 8A. Opex_Interest_monthly
B13: This worksheet calculates the interest on OM&A and amortization/depreciation expense, based on monthly data.
J21: Account 1556 - Sub-accounts Operating Expenses, Amortization Expenses, Carrying Charges
B23: Prescribed Interest Rates | C23: Approved Deferral and Variance Accounts | D23: CWIP | F23: Date | G23: Year | H23: Quarter | J23: Opening Balance (Principal) | K23: OM&A Expenses | L23: Amortization / Depreciation Expense | M23: Closing Balance (Principal) | N23: (Annual) Interest Rate | O23: Interest (on opening balance) | P23: Cumulative Interest
B25: ='8. Funding_Adder_Revs'!B24 -> 2006 Q1 | C25: ='8. Funding_Adder_Revs'!C24 -> 0 | D25: ='8. Funding_Adder_Revs'!D24 -> 0 | F25: ='8. Funding_Adder_Revs'!F24 -> 2006-01-01 | G25: ='8. Funding_Adder_Revs'!G24 -> 2006 | H25: ='8. Funding_Adder_Revs'!H24 -> Q1 | J25: 0 | M25: =J25+K25+L25 -> 0 | N25: ='8. Funding_Adder_Revs'!L24 -> 0 | O25: =J25*N25/12 -> 0 | P25: =O25 -> 0
B26: ='8. Funding_Adder_Revs'!B25 -> 2006 Q2 | C26: ='8. Funding_Adder_Revs'!C25 -> 0.0414 | D26: ='8. Funding_Adder_Revs'!D25 -> 0.0468 | F26: ='8. Funding_Adder_Revs'!F25 -> 2006-02-01 | G26: ='8. Funding_Adder_Revs'!G25 -> 2006 | H26: ='8. Funding_Adder_Revs'!H25 -> Q1 | J26: =M25 -> 0 | M26: =J26+K26+L26 -> 0 | N26: ='8. Funding_Adder_Revs'!L25 -> 0 | O26: =J26*N26/12 -> 0 | P26: =O26+P25 -> 0
B27: ='8. Funding_Adder_Revs'!B26 -> 2006 Q3 | C27: ='8. Funding_Adder_Revs'!C26 -> 0.0459 | D27: ='8. Funding_Adder_Revs'!D26 -> 0.0505 | F27: ='8. Funding_Adder_Revs'!F26 -> 2006-03-01 | G27: ='8. Funding_Adder_Revs'!G26 -> 2006 | H27: ='8. Funding_Adder_Revs'!H26 -> Q1 | J27: =M26 -> 0 | M27: 0 | N27: ='8. Funding_Adder_Revs'!L26 -> 0 | O27: 0 | P27: =O27+P26 -> 0
B28: ='8. Funding_Adder_Revs'!B27 -> 2006 Q4 | C28: ='8. Funding_Adder_Revs'!C27 -> 0.0459 | D28: ='8. Funding_Adder_Revs'!D27 -> 0.0472 | F28: ='8. Funding_Adder_Revs'!F27 -> 2006-04-01 | G28: ='8. Funding_Adder_Revs'!G27 -> 2006 | H28: ='8. Funding_Adder_Revs'!H27 -> Q2 | J28: 0 | M28: 0 | N28: ='8. Funding_Adder_Revs'!L27 -> 0.0414 | O28: 0 | P28: 0
B29: ='8. Funding_Adder_Revs'!B28 -> 2007 Q1 | C29: ='8. Funding_Adder_Revs'!C28 -> 0.0459 | D29: ='8. Funding_Adder_Revs'!D28 -> 0.0472 | F29: ='8. Funding_Adder_Revs'!F28 -> 2006-05-01 | G29: ='8. Funding_Adder_Revs'!G28 -> 2006 | H29: ='8. Funding_Adder_Revs'!H28 -> Q2 | J29: 0 | M29: 0 | N29: ='8. Funding_Adder_Revs'!L28 -> 0.0414 | O29: 0 | P29: 0
B30: ='8. Funding_Adder_Revs'!B29 -> 2007 Q2 | C30: ='8. Funding_Adder_Revs'!C29 -> 0.0459 | D30: ='8. Funding_Adder_Revs'!D29 -> 0.0472 | F30: ='8. Funding_Adder_Revs'!F29 -> 2006-06-01 | G30: ='8. Funding_Adder_Revs'!G29 -> 2006 | H30: ='8. Funding_Adder_Revs'!H29 -> Q2 | J30: 0 | M30: 0 | N30: ='8. Funding_Adder_Revs'!L29 -> 0.0414 | O30: 0 | P30: 0
B31: ='8. Funding_Adder_Revs'!B30 -> 2007 Q3 | C31: ='8. Funding_Adder_Revs'!C30 -> 0.0459 | D31: ='8. Funding_Adder_Revs'!D30 -> 0.0518 | F31: ='8. Funding_Adder_Revs'!F30 -> 2006-07-01 | G31: ='8. Funding_Adder_Revs'!G30 -> 2006 | H31: ='8. Funding_Adder_Revs'!H30 -> Q3 | J31: 0 | M31: 0 | N31: ='8. Funding_Adder_Revs'!L30 -> 0.0459 | O31: 0 | P31: 0
B32: ='8. Funding_Adder_Revs'!B31 -> 2007 Q4 | C32: ='8. Funding_Adder_Revs'!C31 -> 0.0514 | D32: ='8. Funding_Adder_Revs'!D31 -> 0.0518 | F32: ='8. Funding_Adder_Revs'!F31 -> 2006-08-01 | G32: ='8. Funding_Adder_Revs'!G31 -> 2006 | H32: ='8. Funding_Adder_Revs'!H31 -> Q3 | J32: 0 | M32: 0 | N32: ='8. Funding_Adder_Revs'!L31 -> 0.0459 | O32: 0 | P32: 0
B33: ='8. Funding_Adder_Revs'!B32 -> 2008 Q1 | C33: ='8. Funding_Adder_Revs'!C32 -> 0.0514 | D33: ='8. Funding_Adder_Revs'!D32 -> 0.0518 | F33: ='8. Funding_Adder_Revs'!F32 -> 2006-09-01 | G33: ='8. Funding_Adder_Revs'!G32 -> 2006 | H33: ='8. Funding_Adder_Revs'!H32 -> Q3 | J33: 0 | M33: 0 | N33: ='8. Funding_Adder_Revs'!L32 -> 0.0459 | O33: 0 | P33: 0
B34: ='8. Funding_Adder_Revs'!B33 -> 2008 Q2 | C34: ='8. Funding_Adder_Revs'!C33 -> 0.0408 | D34: ='8. Funding_Adder_Revs'!D33 -> 0.0518 | F34: ='8. Funding_Adder_Revs'!F33 -> 2006-10-01 | G34: ='8. Funding_Adder_Revs'!G33 -> 2006 | H34: ='8. Funding_Adder_Revs'!H33 -> Q4 | J34: 0 | M34: 0 | N34: ='8. Funding_Adder_Revs'!L33 -> 0.0459 | O34: 0 | P34: 0
B35: ='8. Funding_Adder_Revs'!B34 -> 2008 Q3 | C35: ='8. Funding_Adder_Revs'!C34 -> 0.0335 | D35: ='8. Funding_Adder_Revs'!D34 -> 0.0543 | F35: ='8. Funding_Adder_Revs'!F34 -> 2006-11-01 | G35: ='8. Funding_Adder_Revs'!G34 -> 2006 | H35: ='8. Funding_Adder_Revs'!H34 -> Q4 | J35: 0 | M35: 0 | N35: ='8. Funding_Adder_Revs'!L34 -> 0.0459 | O35: 0 | P35: 0
B36: ='8. Funding_Adder_Revs'!B35 -> 2008 Q4 | C36: ='8. Funding_Adder_Revs'!C35 -> 0.0335 | D36: ='8. Funding_Adder_Revs'!D35 -> 0.0543 | F36: ='8. Funding_Adder_Revs'!F35 -> 2006-12-01 | G36: ='8. Funding_Adder_Revs'!G35 -> 2006 | H36: ='8. Funding_Adder_Revs'!H35 -> Q4 | J36: 0 | M36: 0 | N36: ='8. Funding_Adder_Revs'!L35 -> 0.0459 | O36: 0 | P36: 0
B37: ='8. Funding_Adder_Revs'!B36 -> 2009 Q1 | C37: ='8. Funding_Adder_Revs'!C36 -> 0.0245 | D37: ='8. Funding_Adder_Revs'!D36 -> 0.0661 | F37: ='8. Funding_Adder_Revs'!F36 -> 2007-01-01 | G37: ='8. Funding_Adder_Revs'!G36 -> 2007 | H37: ='8. Funding_Adder_Revs'!H36 -> Q1 | J37: 0 | M37: 0 | N37: ='8. Funding_Adder_Revs'!L36 -> 0.0459 | O37: 0 | P37: 0
B38: ='8. Funding_Adder_Revs'!B37 -> 2009 Q2 | C38: ='8. Funding_Adder_Revs'!C37 -> 0.01 | D38: ='8. Funding_Adder_Revs'!D37 -> 0.0661 | F38: ='8. Funding_Adder_Revs'!F37 -> 2007-02-01 | G38: ='8. Funding_Adder_Revs'!G37 -> 2007 | H38: ='8. Funding_Adder_Revs'!H37 -> Q1 | J38: 0 | M38: 0 | N38: ='8. Funding_Adder_Revs'!L37 -> 0.0459 | O38: 0 | P38: 0
B39: ='8. Funding_Adder_Revs'!B38 -> 2009 Q3 | C39: ='8. Funding_Adder_Revs'!C38 -> 0.0055 | D39: ='8. Funding_Adder_Revs'!D38 -> 0.0567 | F39: ='8. Funding_Adder_Revs'!F38 -> 2007-03-01 | G39: ='8. Funding_Adder_Revs'!G38 -> 2007 | H39: ='8. Funding_Adder_Revs'!H38 -> Q1 | J39: 0 | M39: 0 | N39: ='8. Funding_Adder_Revs'!L38 -> 0.0459 | O39: 0 | P39: 0
B40: ='8. Funding_Adder_Revs'!B39 -> 2009 Q4 | C40: ='8. Funding_Adder_Revs'!C39 -> 0.0055 | D40: ='8. Funding_Adder_Revs'!D39 -> 0.0466 | F40: ='8. Funding_Adder_Revs'!F39 -> 2007-04-01 | G40: ='8. Funding_Adder_Revs'!G39 -> 2007 | H40: ='8. Funding_Adder_Revs'!H39 -> Q2 | J40: 0 | M40: 0 | N40: ='8. Funding_Adder_Revs'!L39 -> 0.0459 | O40: 0 | P40: 0
B41: ='8. Funding_Adder_Revs'!B40 -> 2010 Q1 | C41: ='8. Funding_Adder_Revs'!C40 -> 0.0055 | D41: ='8. Funding_Adder_Revs'!D40 -> 0.0434 | F41: ='8. Funding_Adder_Revs'!F40 -> 2007-05-01 | G41: ='8. Funding_Adder_Revs'!G40 -> 2007 | H41: ='8. Funding_Adder_Revs'!H40 -> Q2 | J41: 0 | M41: 0 | N41: ='8. Funding_Adder_Revs'!L40 -> 0.0459 | O41: 0 | P41: 0
B42: ='8. Funding_Adder_Revs'!B41 -> 2010 Q2 | C42: ='8. Funding_Adder_Revs'!C41 -> 0.0055 | D42: ='8. Funding_Adder_Revs'!D41 -> 0.0434 | F42: ='8. Funding_Adder_Revs'!F41 -> 2007-06-01 | G42: ='8. Funding_Adder_Revs'!G41 -> 2007 | H42: ='8. Funding_Adder_Revs'!H41 -> Q2 | J42: 0 | M42: 0 | N42: ='8. Funding_Adder_Revs'!L41 -> 0.0459 | O42: 0 | P42: 0
B43: ='8. Funding_Adder_Revs'!B42 -> 2010 Q3 | C43: ='8. Funding_Adder_Revs'!C42 -> 0.0089 | D43: ='8. Funding_Adder_Revs'!D42 -> 0.0466 | F43: ='8. Funding_Adder_Revs'!F42 -> 2007-07-01 | G43: ='8. Funding_Adder_Revs'!G42 -> 2007 | H43: ='8. Funding_Adder_Revs'!H42 -> Q3 | J43: 0 | M43: 0 | N43: ='8. Funding_Adder_Revs'!L42 -> 0.0459 | O43: 0 | P43: 0
B44: ='8. Funding_Adder_Revs'!B43 -> 2010 Q4 | C44: ='8. Funding_Adder_Revs'!C43 -> 0.012 | D44: ='8. Funding_Adder_Revs'!D43 -> 0.0401 | F44: ='8. Funding_Adder_Revs'!F43 -> 2007-08-01 | G44: ='8. Funding_Adder_Revs'!G43 -> 2007 | H44: ='8. Funding_Adder_Revs'!H43 -> Q3 | J44: 0 | M44: 0 | N44: ='8. Funding_Adder_Revs'!L43 -> 0.0459 | O44: 0 | P44: 0
B45: ='8. Funding_Adder_Revs'!B44 -> 2011 Q1 | C45: ='8. Funding_Adder_Revs'!C44 -> 0.0147 | D45: ='8. Funding_Adder_Revs'!D44 -> 0.0429 | F45: ='8. Funding_Adder_Revs'!F44 -> 2007-09-01 | G45: ='8. Funding_Adder_Revs'!G44 -> 2007 | H45: ='8. Funding_Adder_Revs'!H44 -> Q3 | J45: 0 | M45: 0 | N45: ='8. Funding_Adder_Revs'!L44 -> 0.0459 | O45: 0 | P45: 0
B46: ='8. Funding_Adder_Revs'!B45 -> 2011 Q2 | C46: ='8. Funding_Adder_Revs'!C45 -> 0.0147 | D46: ='8. Funding_Adder_Revs'!D45 -> 0.0429 | F46: ='8. Funding_Adder_Revs'!F45 -> 2007-10-01 | G46: ='8. Funding_Adder_Revs'!G45 -> 2007 | H46: ='8. Funding_Adder_Revs'!H45 -> Q4 | J46: 0 | M46: 0 | N46: ='8. Funding_Adder_Revs'!L45 -> 0.0514 | O46: 0 | P46: 0
B47: ='8. Funding_Adder_Revs'!B46 -> 2011 Q3 | C47: ='8. Funding_Adder_Revs'!C46 -> 0.0147 | D47: ='8. Funding_Adder_Revs'!D46 -> 0.0429 | F47: ='8. Funding_Adder_Revs'!F46 -> 2007-11-01 | G47: ='8. Funding_Adder_Revs'!G46 -> 2007 | H47: ='8. Funding_Adder_Revs'!H46 -> Q4 | J47: 0 | M47: 0 | N47: ='8. Funding_Adder_Revs'!L46 -> 0.0514 | O47: 0 | P47: 0
B48: ='8. Funding_Adder_Revs'!B47 -> 2011 Q4 | C48: ='8. Funding_Adder_Revs'!C47 -> 0.0147 | D48: ='8. Funding_Adder_Revs'!D47 -> 0.0392 | F48: ='8. Funding_Adder_Revs'!F47 -> 2007-12-01 | G48: ='8. Funding_Adder_Revs'!G47 -> 2007 | H48: ='8. Funding_Adder_Revs'!H47 -> Q4 | J48: 0 | K48: 9788.11 | M48: 9788.11 | N48: ='8. Funding_Adder_Revs'!L47 -> 0.0514 | O48: 0 | P48: 0
B49: ='8. Funding_Adder_Revs'!B48 -> 2012 Q1 | C49: ='8. Funding_Adder_Revs'!C48 -> 0.0147 | D49: ='8. Funding_Adder_Revs'!D48 -> 0.0392 | F49: ='8. Funding_Adder_Revs'!F48 -> 2008-01-01 | G49: ='8. Funding_Adder_Revs'!G48 -> 2008 | H49: ='8. Funding_Adder_Revs'!H48 -> Q1 | J49: 9788.11 | M49: 9788.11 | N49: ='8. Funding_Adder_Revs'!L48 -> 0.0514 | O49: 41.92573783 | P49: 41.92573783
B50: ='8. Funding_Adder_Revs'!B49 -> 2012 Q2 | C50: ='8. Funding_Adder_Revs'!C49 -> 0.0147 | D50: ='8. Funding_Adder_Revs'!D49 -> 0.0351 | F50: ='8. Funding_Adder_Revs'!F49 -> 2008-02-01 | G50: ='8. Funding_Adder_Revs'!G49 -> 2008 | H50: ='8. Funding_Adder_Revs'!H49 -> Q1 | J50: 9788.11 | M50: 9788.11 | N50: ='8. Funding_Adder_Revs'!L49 -> 0.0514 | O50: 41.92573783 | P50: 83.85147567
B51: ='8. Funding_Adder_Revs'!B50 -> 2012 Q3 | C51: ='8. Funding_Adder_Revs'!C50 -> 0.0147 | D51: ='8. Funding_Adder_Revs'!D50 -> 0.0351 | F51: ='8. Funding_Adder_Revs'!F50 -> 2008-03-01 | G51: ='8. Funding_Adder_Revs'!G50 -> 2008 | H51: ='8. Funding_Adder_Revs'!H50 -> Q1 | J51: 9788.11 | M51: 9788.11 | N51: ='8. Funding_Adder_Revs'!L50 -> 0.0514 | O51: 41.92573783 | P51: 125.7772135
B52: ='8. Funding_Adder_Revs'!B51 -> 2012 Q4 | C52: ='8. Funding_Adder_Revs'!C51 -> 0.0147 | D52: ='8. Funding_Adder_Revs'!D51 -> 0.0323 | F52: ='8. Funding_Adder_Revs'!F51 -> 2008-04-01 | G52: ='8. Funding_Adder_Revs'!G51 -> 2008 | H52: ='8. Funding_Adder_Revs'!H51 -> Q2 | J52: 9788.11 | K52: 2365.42 | M52: 12153.53 | N52: ='8. Funding_Adder_Revs'!L51 -> 0.0408 | O52: 33.279574 | P52: 159.0567875
B53: ='8. Funding_Adder_Revs'!B52 -> 2013 Q1 | C53: ='8. Funding_Adder_Revs'!C52 -> 0.0147 | D53: ='8. Funding_Adder_Revs'!D52 -> 0.0323 | F53: ='8. Funding_Adder_Revs'!F52 -> 2008-05-01 | G53: ='8. Funding_Adder_Revs'!G52 -> 2008 | H53: ='8. Funding_Adder_Revs'!H52 -> Q2 | J53: 12153.53 | M53: 12153.53 | N53: ='8. Funding_Adder_Revs'!L52 -> 0.0408 | O53: 41.322002 | P53: 200.3787895
B54: ='8. Funding_Adder_Revs'!B53 -> 2013 Q2 | C54: ='8. Funding_Adder_Revs'!C53 -> 0.0147 | D54: ='8. Funding_Adder_Revs'!D53 -> 0.0323 | F54: ='8. Funding_Adder_Revs'!F53 -> 2008-06-01 | G54: ='8. Funding_Adder_Revs'!G53 -> 2008 | H54: ='8. Funding_Adder_Revs'!H53 -> Q2 | J54: 12153.53 | M54: 12153.53 | N54: ='8. Funding_Adder_Revs'!L53 -> 0.0408 | O54: 41.322002 | P54: 241.7007915
B55: ='8. Funding_Adder_Revs'!B54 -> 2013 Q3 | C55: ='8. Funding_Adder_Revs'!C54 -> 0.0147 | D55: ='8. Funding_Adder_Revs'!D54 -> 0.0323 | F55: ='8. Funding_Adder_Revs'!F54 -> 2008-07-01 | G55: ='8. Funding_Adder_Revs'!G54 -> 2008 | H55: ='8. Funding_Adder_Revs'!H54 -> Q3 | J55: 12153.53 | M55: 12153.53 | N55: ='8. Funding_Adder_Revs'!L54 -> 0.0335 | O55: 33.92860458 | P55: 275.6293961
B56: ='8. Funding_Adder_Revs'!B55 -> 2013 Q4 | C56: ='8. Funding_Adder_Revs'!C55 -> 0.0147 | D56: ='8. Funding_Adder_Revs'!D55 -> 0.037 | F56: ='8. Funding_Adder_Revs'!F55 -> 2008-08-01 | G56: ='8. Funding_Adder_Revs'!G55 -> 2008 | H56: ='8. Funding_Adder_Revs'!H55 -> Q3 | J56: 12153.53 | K56: 2333.4 | M56: 14486.93 | N56: ='8. Funding_Adder_Revs'!L55 -> 0.0335 | O56: 33.92860458 | P56: 309.5580007
B57: ='8. Funding_Adder_Revs'!B56 -> 2014 Q1 | C57: ='8. Funding_Adder_Revs'!C56 -> 0.0147 | D57: ='8. Funding_Adder_Revs'!D56 -> 0.037 | F57: ='8. Funding_Adder_Revs'!F56 -> 2008-09-01 | G57: ='8. Funding_Adder_Revs'!G56 -> 2008 | H57: ='8. Funding_Adder_Revs'!H56 -> Q3 | J57: 14486.93 | M57: 14486.93 | N57: ='8. Funding_Adder_Revs'!L56 -> 0.0335 | O57: 40.44267958 | P57: 350.0006803
B58: ='8. Funding_Adder_Revs'!B57 -> 2014 Q2 | C58: ='8. Funding_Adder_Revs'!C57 -> 0.0147 | D58: ='8. Funding_Adder_Revs'!D57 -> 0.0317 | F58: ='8. Funding_Adder_Revs'!F57 -> 2008-10-01 | G58: ='8. Funding_Adder_Revs'!G57 -> 2008 | H58: ='8. Funding_Adder_Revs'!H57 -> Q4 | J58: 14486.93 | K58: =61.12+2387.25 -> 2448.37 | M58: 16935.3 | N58: ='8. Funding_Adder_Revs'!L57 -> 0.0335 | O58: 40.44267958 | P58: 390.4433598
B59: ='8. Funding_Adder_Revs'!B58 -> 2014 Q3 | C59: ='8. Funding_Adder_Revs'!C58 -> 0.0147 | D59: ='8. Funding_Adder_Revs'!D58 -> 0.0317 | F59: ='8. Funding_Adder_Revs'!F58 -> 2008-11-01 | G59: ='8. Funding_Adder_Revs'!G58 -> 2008 | H59: ='8. Funding_Adder_Revs'!H58 -> Q4 | J59: 16935.3 | M59: 16935.3 | N59: ='8. Funding_Adder_Revs'!L58 -> 0.0335 | O59: 47.2777125 | P59: 437.7210723
B60: ='8. Funding_Adder_Revs'!B59 -> 2014 Q4 | C60: ='8. Funding_Adder_Revs'!C59 -> 0.0147 | D60: ='8. Funding_Adder_Revs'!D59 -> 0.0317 | F60: ='8. Funding_Adder_Revs'!F59 -> 2008-12-01 | G60: ='8. Funding_Adder_Revs'!G59 -> 2008 | H60: ='8. Funding_Adder_Revs'!H59 -> Q4 | J60: 16935.3 | K60: 2390.47 | M60: 19325.77 | N60: ='8. Funding_Adder_Revs'!L59 -> 0.0335 | O60: 47.2777125 | P60: 484.9987848
B61: ='8. Funding_Adder_Revs'!B60 -> 2015 Q1 | C61: ='8. Funding_Adder_Revs'!C60 -> 0.0147 | D61: ='8. Funding_Adder_Revs'!D60 -> 0.0289 | F61: ='8. Funding_Adder_Revs'!F60 -> 2009-01-01 | G61: ='8. Funding_Adder_Revs'!G60 -> 2009 | H61: ='8. Funding_Adder_Revs'!H60 -> Q1 | J61: 19325.77 | M61: 19325.77 | N61: ='8. Funding_Adder_Revs'!L60 -> 0.0245 | O61: 39.45678042 | P61: 524.4555653
B62: ='8. Funding_Adder_Revs'!B61 -> 2015 Q2 | C62: ='8. Funding_Adder_Revs'!C61 -> 0.011 | D62: ='8. Funding_Adder_Revs'!D61 -> 0.0228 | F62: ='8. Funding_Adder_Revs'!F61 -> 2009-02-01 | G62: ='8. Funding_Adder_Revs'!G61 -> 2009 | H62: ='8. Funding_Adder_Revs'!H61 -> Q1 | J62: 19325.77 | M62: 19325.77 | N62: ='8. Funding_Adder_Revs'!L61 -> 0.0245 | O62: 39.45678042 | P62: 563.9123457
B63: ='8. Funding_Adder_Revs'!B62 -> 2015 Q3 | C63: ='8. Funding_Adder_Revs'!C62 -> 0.011 | D63: ='8. Funding_Adder_Revs'!D62 -> 0.0255 | F63: ='8. Funding_Adder_Revs'!F62 -> 2009-03-01 | G63: ='8. Funding_Adder_Revs'!G62 -> 2009 | H63: ='8. Funding_Adder_Revs'!H62 -> Q1 | J63: 19325.77 | K63: 571.18 | M63: 19896.95 | N63: ='8. Funding_Adder_Revs'!L62 -> 0.0245 | O63: 39.45678042 | P63: 603.3691261
B64: ='8. Funding_Adder_Revs'!B63 -> 2015 Q4 | C64: ='8. Funding_Adder_Revs'!C63 -> 0.011 | D64: ='8. Funding_Adder_Revs'!D63 -> 0.0255 | F64: ='8. Funding_Adder_Revs'!F63 -> 2009-04-01 | G64: ='8. Funding_Adder_Revs'!G63 -> 2009 | H64: ='8. Funding_Adder_Revs'!H63 -> Q2 | J64: 19896.95 | M64: 19896.95 | N64: ='8. Funding_Adder_Revs'!L63 -> 0.01 | O64: 16.58079167 | P64: 619.9499178
F65: ='8. Funding_Adder_Revs'!F64 -> 2009-05-01 | G65: ='8. Funding_Adder_Revs'!G64 -> 2009 | H65: ='8. Funding_Adder_Revs'!H64 -> Q2 | J65: 19896.95 | K65: 2772.8 | M65: 22669.75 | N65: ='8. Funding_Adder_Revs'!L64 -> 0.01 | O65: 16.58079167 | P65: 636.5307094
F66: ='8. Funding_Adder_Revs'!F65 -> 2009-06-01 | G66: ='8. Funding_Adder_Revs'!G65 -> 2009 | H66: ='8. Funding_Adder_Revs'!H65 -> Q2 | J66: 22669.75 | M66: 22669.75 | N66: ='8. Funding_Adder_Revs'!L65 -> 0.01 | O66: 18.89145833 | P66: 655.4221677
F67: ='8. Funding_Adder_Revs'!F66 -> 2009-07-01 | G67: ='8. Funding_Adder_Revs'!G66 -> 2009 | H67: ='8. Funding_Adder_Revs'!H66 -> Q3 | J67: 22669.75 | K67: =2447.24+966.6+1240.18 -> 4654.02 | M67: 27323.77 | N67: ='8. Funding_Adder_Revs'!L66 -> 0.0055 | O67: 10.39030208 | P67: 665.8124698
F68: ='8. Funding_Adder_Revs'!F67 -> 2009-08-01 | G68: ='8. Funding_Adder_Revs'!G67 -> 2009 | H68: ='8. Funding_Adder_Revs'!H67 -> Q3 | J68: 27323.77 | K68: =1381.37+90+77.72+998.56 -> 2547.65 | M68: 29871.42 | N68: ='8. Funding_Adder_Revs'!L67 -> 0.0055 | O68: 12.52339458 | P68: 678.3358644
F69: ='8. Funding_Adder_Revs'!F68 -> 2009-09-01 | G69: ='8. Funding_Adder_Revs'!G68 -> 2009 | H69: ='8. Funding_Adder_Revs'!H68 -> Q3 | J69: 29871.42 | K69: 375 | M69: 30246.42 | N69: ='8. Funding_Adder_Revs'!L68 -> 0.0055 | O69: 13.6910675 | P69: 692.0269319
F70: ='8. Funding_Adder_Revs'!F69 -> 2009-10-01 | G70: ='8. Funding_Adder_Revs'!G69 -> 2009 | H70: ='8. Funding_Adder_Revs'!H69 -> Q4 | J70: 30246.42 | K70: =19.97+43.19 -> 63.16 | M70: 30309.58 | N70: ='8. Funding_Adder_Revs'!L69 -> 0.0055 | O70: 13.8629425 | P70: 705.8898744
F71: ='8. Funding_Adder_Revs'!F70 -> 2009-11-01 | G71: ='8. Funding_Adder_Revs'!G70 -> 2009 | H71: ='8. Funding_Adder_Revs'!H70 -> Q4 | J71: 30309.58 | K71: 2615.28 | M71: 32924.86 | N71: ='8. Funding_Adder_Revs'!L70 -> 0.0055 | O71: 13.89189083 | P71: 719.7817653
F72: ='8. Funding_Adder_Revs'!F71 -> 2009-12-01 | G72: ='8. Funding_Adder_Revs'!G71 -> 2009 | H72: ='8. Funding_Adder_Revs'!H71 -> Q4 | J72: 32924.86 | K72: =2307.48+375.04+2136.56 -> 4819.08 | L72: 14427 | M72: =J72+K72+L72 -> 52170.94 | N72: ='8. Funding_Adder_Revs'!L71 -> 0.0055 | O72: 15.09056083 | P72: 734.8723261
F73: ='8. Funding_Adder_Revs'!F72 -> 2010-01-01 | G73: ='8. Funding_Adder_Revs'!G72 -> 2010 | H73: ='8. Funding_Adder_Revs'!H72 -> Q1 | J73: 52170.94 | K73: =5802.86+984.47 -> 6787.33 | M73: 58958.27 | N73: ='8. Funding_Adder_Revs'!L72 -> 0.0055 | O73: 23.91168083 | P73: 758.7840069
F74: ='8. Funding_Adder_Revs'!F73 -> 2010-02-01 | G74: ='8. Funding_Adder_Revs'!G73 -> 2010 | H74: ='8. Funding_Adder_Revs'!H73 -> Q1 | J74: 58958.27 | K74: =2351.91+985.67+32.75 -> 3370.33 | M74: 62328.6 | N74: ='8. Funding_Adder_Revs'!L73 -> 0.0055 | O74: 27.02254042 | P74: 785.8065473
F75: ='8. Funding_Adder_Revs'!F74 -> 2010-03-01 | G75: ='8. Funding_Adder_Revs'!G74 -> 2010 | H75: ='8. Funding_Adder_Revs'!H74 -> Q1 | J75: 62328.6 | K75: =3319.99+596.03 -> 3916.02 | M75: 66244.62 | N75: ='8. Funding_Adder_Revs'!L74 -> 0.0055 | O75: 28.567275 | P75: 814.3738223
F76: ='8. Funding_Adder_Revs'!F75 -> 2010-04-01 | G76: ='8. Funding_Adder_Revs'!G75 -> 2010 | H76: ='8. Funding_Adder_Revs'!H75 -> Q2 | J76: 66244.62 | K76: 3294.22 | M76: 69538.84 | N76: ='8. Funding_Adder_Revs'!L75 -> 0.0055 | O76: 30.3621175 | P76: 844.7359398
F77: ='8. Funding_Adder_Revs'!F76 -> 2010-05-01 | G77: ='8. Funding_Adder_Revs'!G76 -> 2010 | H77: ='8. Funding_Adder_Revs'!H76 -> Q2 | J77: 69538.84 | K77: =10771.12+1032.82+100-700 -> 11203.94 | M77: 80742.78 | N77: ='8. Funding_Adder_Revs'!L76 -> 0.0055 | O77: 31.87196833 | P77: 876.6079082
F78: ='8. Funding_Adder_Revs'!F77 -> 2010-06-01 | G78: ='8. Funding_Adder_Revs'!G77 -> 2010 | H78: ='8. Funding_Adder_Revs'!H77 -> Q2 | J78: 80742.78 | K78: 569.64 | M78: 81312.42 | N78: ='8. Funding_Adder_Revs'!L77 -> 0.0055 | O78: 37.0071075 | P78: 913.6150157
F79: ='8. Funding_Adder_Revs'!F78 -> 2010-07-01 | G79: ='8. Funding_Adder_Revs'!G78 -> 2010 | H79: ='8. Funding_Adder_Revs'!H78 -> Q3 | J79: 81312.42 | K79: 8512.27 | M79: 89824.69 | N79: ='8. Funding_Adder_Revs'!L78 -> 0.0089 | O79: 60.3067115 | P79: 973.9217272
F80: ='8. Funding_Adder_Revs'!F79 -> 2010-08-01 | G80: ='8. Funding_Adder_Revs'!G79 -> 2010 | H80: ='8. Funding_Adder_Revs'!H79 -> Q3 | J80: 89824.69 | K80: 4125.69 | M80: 93950.38 | N80: ='8. Funding_Adder_Revs'!L79 -> 0.0089 | O80: 66.61997842 | P80: 1040.541706
F81: ='8. Funding_Adder_Revs'!F80 -> 2010-09-01 | G81: ='8. Funding_Adder_Revs'!G80 -> 2010 | H81: ='8. Funding_Adder_Revs'!H80 -> Q3 | J81: 93950.38 | K81: =851.24+353.78 -> 1205.02 | M81: 95155.4 | N81: ='8. Funding_Adder_Revs'!L80 -> 0.0089 | O81: 69.67986517 | P81: 1110.221571
F82: ='8. Funding_Adder_Revs'!F81 -> 2010-10-01 | G82: ='8. Funding_Adder_Revs'!G81 -> 2010 | H82: ='8. Funding_Adder_Revs'!H81 -> Q4 | J82: 95155.4 | K82: 4121.96 | M82: 99277.36 | N82: ='8. Funding_Adder_Revs'!L81 -> 0.012 | O82: 95.1554 | P82: 1205.376971
F83: ='8. Funding_Adder_Revs'!F82 -> 2010-11-01 | G83: ='8. Funding_Adder_Revs'!G82 -> 2010 | H83: ='8. Funding_Adder_Revs'!H82 -> Q4 | J83: 99277.36 | K83: 4968.9 | M83: 104246.26 | N83: ='8. Funding_Adder_Revs'!L82 -> 0.012 | O83: 99.27736 | P83: 1304.654331
F84: ='8. Funding_Adder_Revs'!F83 -> 2010-12-01 | G84: ='8. Funding_Adder_Revs'!G83 -> 2010 | H84: ='8. Funding_Adder_Revs'!H83 -> Q4 | J84: 104246.26 | K84: =815.73+923.34+791.53+450.54+6791.88-0.2 -> 9772.82 | L84: 30662.47 | M84: 144681.55 | N84: ='8. Funding_Adder_Revs'!L83 -> 0.012 | O84: 104.24626 | P84: 1408.900591
F85: ='8. Funding_Adder_Revs'!F84 -> 2011-01-01 | G85: ='8. Funding_Adder_Revs'!G84 -> 2011 | H85: ='8. Funding_Adder_Revs'!H84 -> Q1 | J85: 144681.55 | M85: 144681.55 | N85: ='8. Funding_Adder_Revs'!L84 -> 0.0147 | O85: 177.2348988 | P85: 1586.13549
F86: ='8. Funding_Adder_Revs'!F85 -> 2011-02-01 | G86: ='8. Funding_Adder_Revs'!G85 -> 2011 | H86: ='8. Funding_Adder_Revs'!H85 -> Q1 | J86: 144681.55 | K86: 4546.82 | M86: 149228.37 | N86: ='8. Funding_Adder_Revs'!L85 -> 0.0147 | O86: 177.2348988 | P86: 1763.370388
F87: ='8. Funding_Adder_Revs'!F86 -> 2011-03-01 | G87: ='8. Funding_Adder_Revs'!G86 -> 2011 | H87: ='8. Funding_Adder_Revs'!H86 -> Q1 | J87: 149228.37 | K87: =3186.83+928.04 -> 4114.87 | M87: 153343.24 | N87: ='8. Funding_Adder_Revs'!L86 -> 0.0147 | O87: 182.8047533 | P87: 1946.175142
F88: ='8. Funding_Adder_Revs'!F87 -> 2011-04-01 | G88: ='8. Funding_Adder_Revs'!G87 -> 2011 | H88: ='8. Funding_Adder_Revs'!H87 -> Q2 | J88: 153343.24 | K88: =826.79+2982.55 -> 3809.34 | M88: 157152.58 | N88: ='8. Funding_Adder_Revs'!L87 -> 0.0147 | O88: 187.845469 | P88: 2134.020611
F89: ='8. Funding_Adder_Revs'!F88 -> 2011-05-01 | G89: ='8. Funding_Adder_Revs'!G88 -> 2011 | H89: ='8. Funding_Adder_Revs'!H88 -> Q2 | J89: 157152.58 | K89: =4215.73-22.66 -> 4193.07 | M89: 161345.65 | N89: ='8. Funding_Adder_Revs'!L88 -> 0.0147 | O89: 192.5119105 | P89: 2326.532521
F90: ='8. Funding_Adder_Revs'!F89 -> 2011-06-01 | G90: ='8. Funding_Adder_Revs'!G89 -> 2011 | H90: ='8. Funding_Adder_Revs'!H89 -> Q2 | J90: 161345.65 | K90: 6585.18 | M90: 167930.83 | N90: ='8. Funding_Adder_Revs'!L89 -> 0.0147 | O90: =J90*N90/12 -> 197.6484213 | P90: 2524.180942
F91: ='8. Funding_Adder_Revs'!F90 -> 2011-07-01 | G91: ='8. Funding_Adder_Revs'!G90 -> 2011 | H91: ='8. Funding_Adder_Revs'!H90 -> Q3 | J91: =M90 -> 167930.83 | K91: 549.77 | M91: 168480.6 | N91: ='8. Funding_Adder_Revs'!L90 -> 0.0147 | O91: 205.7152668 | P91: =O91+P90 -> 2729.896209
F92: ='8. Funding_Adder_Revs'!F91 -> 2011-08-01 | G92: ='8. Funding_Adder_Revs'!G91 -> 2011 | H92: ='8. Funding_Adder_Revs'!H91 -> Q3 | J92: 168480.6 | K92: 2009.84 | M92: 170490.44 | N92: ='8. Funding_Adder_Revs'!L91 -> 0.0147 | O92: 206.388735 | P92: 2936.284944
F93: ='8. Funding_Adder_Revs'!F92 -> 2011-09-01 | G93: ='8. Funding_Adder_Revs'!G92 -> 2011 | H93: ='8. Funding_Adder_Revs'!H92 -> Q3 | J93: 170490.44 | K93: 489.5 | M93: 170979.94 | N93: ='8. Funding_Adder_Revs'!L92 -> 0.0147 | O93: 208.850789 | P93: 3145.135733
F94: ='8. Funding_Adder_Revs'!F93 -> 2011-10-01 | G94: ='8. Funding_Adder_Revs'!G93 -> 2011 | H94: ='8. Funding_Adder_Revs'!H93 -> Q4 | J94: 170979.94 | K94: 4421.49 | M94: 175401.43 | N94: ='8. Funding_Adder_Revs'!L93 -> 0.0147 | O94: 209.4504265 | P94: 3354.58616
F95: ='8. Funding_Adder_Revs'!F94 -> 2011-11-01 | G95: ='8. Funding_Adder_Revs'!G94 -> 2011 | H95: ='8. Funding_Adder_Revs'!H94 -> Q4 | J95: 175401.43 | K95: =13152.71-6912.19-2368.89 -> 3871.63 | M95: 179273.06 | N95: ='8. Funding_Adder_Revs'!L94 -> 0.0147 | O95: 214.8667517 | P95: 3569.452911
F96: ='8. Funding_Adder_Revs'!F95 -> 2011-12-01 | G96: ='8. Funding_Adder_Revs'!G95 -> 2011 | H96: ='8. Funding_Adder_Revs'!H95 -> Q4 | J96: 179273.06 | K96: 3506.38 | L96: 37739.5 | M96: 220518.94 | N96: ='8. Funding_Adder_Revs'!L95 -> 0.0147 | O96: 219.6094985 | P96: 3789.06241
F97: ='8. Funding_Adder_Revs'!F96 -> 2012-01-01 | G97: ='8. Funding_Adder_Revs'!G96 -> 2012 | H97: ='8. Funding_Adder_Revs'!H96 -> Q1 | J97: 220518.94 | K97: 363.74 | M97: 220882.68 | N97: ='8. Funding_Adder_Revs'!L96 -> 0.0147 | O97: 270.1357015 | P97: 4059.198111
F98: ='8. Funding_Adder_Revs'!F97 -> 2012-02-01 | G98: ='8. Funding_Adder_Revs'!G97 -> 2012 | H98: ='8. Funding_Adder_Revs'!H97 -> Q1 | J98: 220882.68 | K98: =7.06+55.92+365.17 -> 428.15 | M98: 221310.83 | N98: ='8. Funding_Adder_Revs'!L97 -> 0.0147 | O98: 270.581283 | P98: 4329.779394
F99: ='8. Funding_Adder_Revs'!F98 -> 2012-03-01 | G99: ='8. Funding_Adder_Revs'!G98 -> 2012 | H99: ='8. Funding_Adder_Revs'!H98 -> Q1 | J99: 221310.83 | K99: 5279.31 | M99: 226590.14 | N99: ='8. Funding_Adder_Revs'!L98 -> 0.0147 | O99: 271.1057667 | P99: 4600.885161
F100: ='8. Funding_Adder_Revs'!F99 -> 2012-04-01 | G100: ='8. Funding_Adder_Revs'!G99 -> 2012 | H100: ='8. Funding_Adder_Revs'!H99 -> Q2 | J100: 226590.14 | K100: =3925.35-665-35.98 -> 3224.37 | M100: 229814.51 | N100: ='8. Funding_Adder_Revs'!L99 -> 0.0147 | O100: 277.5729215 | P100: 4878.458082
F101: ='8. Funding_Adder_Revs'!F100 -> 2012-05-01 | G101: ='8. Funding_Adder_Revs'!G100 -> 2012 | H101: ='8. Funding_Adder_Revs'!H100 -> Q2 | J101: 229814.51 | M101: 229814.51 | N101: ='8. Funding_Adder_Revs'!L100 -> 0.0147 | O101: 281.5227747 | P101: 5159.980857
F102: ='8. Funding_Adder_Revs'!F101 -> 2012-06-01 | G102: ='8. Funding_Adder_Revs'!G101 -> 2012 | H102: ='8. Funding_Adder_Revs'!H101 -> Q2 | J102: 229814.51 | K102: =365.43 -> 365.43 | M102: 230179.94 | N102: ='8. Funding_Adder_Revs'!L101 -> 0.0147 | O102: 281.5227747 | P102: 5441.503632
F103: ='8. Funding_Adder_Revs'!F102 -> 2012-07-01 | G103: ='8. Funding_Adder_Revs'!G102 -> 2012 | H103: ='8. Funding_Adder_Revs'!H102 -> Q3 | J103: 230179.94 | K103: =9148.33-2990.84 -> 6157.49 | M103: 236337.43 | N103: ='8. Funding_Adder_Revs'!L102 -> 0.0147 | O103: 281.9704265 | P103: 5723.474058
F104: ='8. Funding_Adder_Revs'!F103 -> 2012-08-01 | G104: ='8. Funding_Adder_Revs'!G103 -> 2012 | H104: ='8. Funding_Adder_Revs'!H103 -> Q3 | J104: 236337.43 | K104: =2360.29+10.44 -> 2370.73 | M104: =J104+K104+L104 -> 238708.16 | N104: ='8. Funding_Adder_Revs'!L103 -> 0.0147 | O104: 289.5133517 | P104: 6012.98741
F105: ='8. Funding_Adder_Revs'!F104 -> 2012-09-01 | G105: ='8. Funding_Adder_Revs'!G104 -> 2012 | H105: ='8. Funding_Adder_Revs'!H104 -> Q3 | J105: 238708.16 | K105: 3098.42 | M105: 241806.58 | N105: ='8. Funding_Adder_Revs'!L104 -> 0.0147 | O105: 292.417496 | P105: 6305.404906
F106: ='8. Funding_Adder_Revs'!F105 -> 2012-10-01 | G106: ='8. Funding_Adder_Revs'!G105 -> 2012 | H106: ='8. Funding_Adder_Revs'!H105 -> Q4 | J106: 241806.58 | K106: 2360.17 | M106: 244166.75 | N106: ='8. Funding_Adder_Revs'!L105 -> 0.0147 | O106: 296.2130605 | P106: 6601.617967
F107: ='8. Funding_Adder_Revs'!F106 -> 2012-11-01 | G107: ='8. Funding_Adder_Revs'!G106 -> 2012 | H107: ='8. Funding_Adder_Revs'!H106 -> Q4 | J107: 244166.75 | K107: 1602.21 | M107: 245768.96 | N107: ='8. Funding_Adder_Revs'!L106 -> 0.0147 | O107: 299.1042688 | P107: 6900.722236
F108: ='8. Funding_Adder_Revs'!F107 -> 2012-12-01 | G108: ='8. Funding_Adder_Revs'!G107 -> 2012 | H108: ='8. Funding_Adder_Revs'!H107 -> Q4 | J108: 245768.96 | K108: =2766.57-6673.45 -> -3906.88 | L108: 39841.95 | M108: 281704.03 | N108: ='8. Funding_Adder_Revs'!L107 -> 0.0147 | O108: 301.066976 | P108: 7201.789212
F109: ='8. Funding_Adder_Revs'!F108 -> 2013-01-01 | G109: ='8. Funding_Adder_Revs'!G108 -> 2013 | H109: ='8. Funding_Adder_Revs'!H108 -> Q1 | J109: =M108 -> 281704.03 | K109: 1600.28 | M109: 283304.31 | N109: ='8. Funding_Adder_Revs'!L108 -> 0.0147 | O109: =J109*N109/12 -> 345.0874367 | P109: =O109+P108 -> 7546.876648
F110: ='8. Funding_Adder_Revs'!F109 -> 2013-02-01 | G110: ='8. Funding_Adder_Revs'!G109 -> 2013 | H110: ='8. Funding_Adder_Revs'!H109 -> Q1 | J110: 283304.31 | K110: 2000.55 | M110: 285304.86 | N110: ='8. Funding_Adder_Revs'!L109 -> 0.0147 | O110: 347.0477798 | P110: 7893.924428
F111: ='8. Funding_Adder_Revs'!F110 -> 2013-03-01 | G111: ='8. Funding_Adder_Revs'!G110 -> 2013 | H111: ='8. Funding_Adder_Revs'!H110 -> Q1 | J111: 285304.86 | K111: 2000.55 | M111: 287305.41 | N111: ='8. Funding_Adder_Revs'!L110 -> 0.0147 | O111: 349.4984535 | P111: 8243.422882
F112: ='8. Funding_Adder_Revs'!F111 -> 2013-04-01 | G112: ='8. Funding_Adder_Revs'!G111 -> 2013 | H112: ='8. Funding_Adder_Revs'!H111 -> Q2 | J112: 287305.41 | K112: =3173.28-804.59 -> 2368.69 | M112: 289674.1 | N112: ='8. Funding_Adder_Revs'!L111 -> 0.0147 | O112: 351.9491272 | P112: 8595.372009
F113: ='8. Funding_Adder_Revs'!F112 -> 2013-05-01 | G113: ='8. Funding_Adder_Revs'!G112 -> 2013 | H113: ='8. Funding_Adder_Revs'!H112 -> Q2 | J113: 289674.1 | K113: 2001.84 | M113: 291675.94 | N113: ='8. Funding_Adder_Revs'!L112 -> 0.0147 | O113: 354.8507725 | P113: 8950.222781
F114: ='8. Funding_Adder_Revs'!F113 -> 2013-06-01 | G114: ='8. Funding_Adder_Revs'!G113 -> 2013 | H114: ='8. Funding_Adder_Revs'!H113 -> Q2 | J114: 291675.94 | K114: 2001.98 | M114: 293677.92 | N114: ='8. Funding_Adder_Revs'!L113 -> 0.0147 | O114: 357.3030265 | P114: 9307.525808
F115: ='8. Funding_Adder_Revs'!F114 -> 2013-07-01 | G115: ='8. Funding_Adder_Revs'!G114 -> 2013 | H115: ='8. Funding_Adder_Revs'!H114 -> Q3 | J115: 293677.92 | K115: =3065.87-1064.67 -> 2001.2 | M115: 295679.12 | N115: ='8. Funding_Adder_Revs'!L114 -> 0.0147 | O115: 359.755452 | P115: 9667.28126
F116: ='8. Funding_Adder_Revs'!F115 -> 2013-08-01 | G116: ='8. Funding_Adder_Revs'!G115 -> 2013 | H116: ='8. Funding_Adder_Revs'!H115 -> Q3 | J116: 295679.12 | K116: =2637.07-636 -> 2001.07 | M116: 297680.19 | N116: ='8. Funding_Adder_Revs'!L115 -> 0.0147 | O116: 362.206922 | P116: 10029.48818
F117: ='8. Funding_Adder_Revs'!F116 -> 2013-09-01 | G117: ='8. Funding_Adder_Revs'!G116 -> 2013 | H117: ='8. Funding_Adder_Revs'!H116 -> Q3 | J117: 297680.19 | K117: 2000.94 | M117: 299681.13 | N117: ='8. Funding_Adder_Revs'!L116 -> 0.0147 | O117: 364.6582328 | P117: 10394.14641
F118: ='8. Funding_Adder_Revs'!F117 -> 2013-10-01 | G118: ='8. Funding_Adder_Revs'!G117 -> 2013 | H118: ='8. Funding_Adder_Revs'!H117 -> Q4 | J118: 299681.13 | K118: 2000.42 | M118: 301681.55 | N118: ='8. Funding_Adder_Revs'!L117 -> 0.0147 | O118: 367.1093843 | P118: 10761.2558
F119: ='8. Funding_Adder_Revs'!F118 -> 2013-11-01 | G119: ='8. Funding_Adder_Revs'!G118 -> 2013 | H119: ='8. Funding_Adder_Revs'!H118 -> Q4 | J119: 301681.55 | K119: 2022.8 | M119: 303704.35 | N119: ='8. Funding_Adder_Revs'!L118 -> 0.0147 | O119: 369.5598988 | P119: 11130.8157
F120: ='8. Funding_Adder_Revs'!F119 -> 2013-12-01 | G120: ='8. Funding_Adder_Revs'!G119 -> 2013 | H120: ='8. Funding_Adder_Revs'!H119 -> Q4 | J120: 303704.35 | K120: =9782.38-6115.13 -> 3667.25 | L120: 39841.95 | M120: 347213.55 | N120: ='8. Funding_Adder_Revs'!L119 -> 0.0147 | O120: 372.0378287 | P120: 11502.85353
F121: ='8. Funding_Adder_Revs'!F120 -> 2014-01-01 | G121: ='8. Funding_Adder_Revs'!G120 -> 2014 | H121: ='8. Funding_Adder_Revs'!H120 -> Q1 | J121: =M120 -> 347213.55 | K121: =1718.27 -> 1718.27 | M121: =J121+K121+L121 -> 348931.82 | N121: ='8. Funding_Adder_Revs'!L120 -> 0.0147 | O121: =J121*N121/12 -> 425.3365987 | P121: =O121+P120 -> 11928.19012
F122: ='8. Funding_Adder_Revs'!F121 -> 2014-02-01 | G122: ='8. Funding_Adder_Revs'!G121 -> 2014 | H122: ='8. Funding_Adder_Revs'!H121 -> Q1 | J122: 348931.82 | K122: 2035.13 | M122: 350966.95 | N122: ='8. Funding_Adder_Revs'!L121 -> 0.0147 | O122: 427.4414795 | P122: 12355.6316
F123: ='8. Funding_Adder_Revs'!F122 -> 2014-03-01 | G123: ='8. Funding_Adder_Revs'!G122 -> 2014 | H123: ='8. Funding_Adder_Revs'!H122 -> Q1 | J123: 350966.95 | K123: 1666.45 | M123: 352633.4 | N123: ='8. Funding_Adder_Revs'!L122 -> 0.0147 | O123: 429.9345138 | P123: 12785.56612
F124: ='8. Funding_Adder_Revs'!F123 -> 2014-04-01 | G124: ='8. Funding_Adder_Revs'!G123 -> 2014 | H124: ='8. Funding_Adder_Revs'!H123 -> Q2 | J124: 352633.4 | K124: 3053.38 | M124: 355686.78 | N124: ='8. Funding_Adder_Revs'!L123 -> 0.0147 | O124: 431.975915 | P124: 13217.54203
F125: ='8. Funding_Adder_Revs'!F124 -> 2014-05-01 | G125: ='8. Funding_Adder_Revs'!G124 -> 2014 | H125: ='8. Funding_Adder_Revs'!H124 -> Q2 | J125: 355686.78 | K125: 3018.1 | M125: 358704.88 | N125: ='8. Funding_Adder_Revs'!L124 -> 0.0147 | O125: 435.7163055 | P125: 13653.25834
F126: ='8. Funding_Adder_Revs'!F125 -> 2014-06-01 | G126: ='8. Funding_Adder_Revs'!G125 -> 2014 | H126: ='8. Funding_Adder_Revs'!H125 -> Q2 | J126: 358704.88 | K126: 2035.13 | M126: 360740.01 | N126: ='8. Funding_Adder_Revs'!L125 -> 0.0147 | O126: 439.413478 | P126: 14092.67182
F127: ='8. Funding_Adder_Revs'!F126 -> 2014-07-01 | G127: ='8. Funding_Adder_Revs'!G126 -> 2014 | H127: ='8. Funding_Adder_Revs'!H126 -> Q3 | J127: 360740.01 | K127: 4701.3 | M127: 365441.31 | N127: ='8. Funding_Adder_Revs'!L126 -> 0.0147 | O127: 441.9065123 | P127: 14534.57833
F128: ='8. Funding_Adder_Revs'!F127 -> 2014-08-01 | G128: ='8. Funding_Adder_Revs'!G127 -> 2014 | H128: ='8. Funding_Adder_Revs'!H127 -> Q3 | J128: 365441.31 | K128: 1797.11 | M128: 367238.42 | N128: ='8. Funding_Adder_Revs'!L127 -> 0.0147 | O128: 447.6656047 | P128: 14982.24393
F129: ='8. Funding_Adder_Revs'!F128 -> 2014-09-01 | G129: ='8. Funding_Adder_Revs'!G128 -> 2014 | H129: ='8. Funding_Adder_Revs'!H128 -> Q3 | J129: 367238.42 | K129: 6369.22 | M129: 373607.64 | N129: ='8. Funding_Adder_Revs'!L128 -> 0.0147 | O129: 449.8670645 | P129: 15432.111
F130: ='8. Funding_Adder_Revs'!F129 -> 2014-10-01 | G130: ='8. Funding_Adder_Revs'!G129 -> 2014 | H130: ='8. Funding_Adder_Revs'!H129 -> Q4 | J130: 373607.64 | K130: 370.33 | M130: 373977.97 | N130: ='8. Funding_Adder_Revs'!L129 -> 0.0147 | O130: 457.669359 | P130: 15889.78036
F131: ='8. Funding_Adder_Revs'!F130 -> 2014-11-01 | G131: ='8. Funding_Adder_Revs'!G130 -> 2014 | H131: ='8. Funding_Adder_Revs'!H130 -> Q4 | J131: 373977.97 | K131: 2067.51 | M131: 376045.48 | N131: ='8. Funding_Adder_Revs'!L130 -> 0.0147 | O131: 458.1230132 | P131: 16347.90337
F132: ='8. Funding_Adder_Revs'!F131 -> 2014-12-01 | G132: ='8. Funding_Adder_Revs'!G131 -> 2014 | H132: ='8. Funding_Adder_Revs'!H131 -> Q4 | J132: 376045.48 | K132: 3771.05 | L132: =L120 -> 39841.95 | M132: 419658.48 | N132: ='8. Funding_Adder_Revs'!L131 -> 0.0147 | O132: 460.655713 | P132: 16808.55908
F133: ='8. Funding_Adder_Revs'!F132 -> 2015-01-01 | G133: ='8. Funding_Adder_Revs'!G132 -> 2015 | H133: ='8. Funding_Adder_Revs'!H132 -> Q1 | J133: =M132 -> 419658.48 | K133: =ROUND(K121*1.02,0) -> 1753 | M133: =J133+K133+L133 -> 421411.48 | N133: ='8. Funding_Adder_Revs'!L132 -> 0.0147 | O133: =J133*N133/12 -> 514.081638 | P133: =O133+P132 -> 17322.64072
F134: ='8. Funding_Adder_Revs'!F133 -> 2015-02-01 | G134: ='8. Funding_Adder_Revs'!G133 -> 2015 | H134: ='8. Funding_Adder_Revs'!H133 -> Q1 | J134: 421411.48 | K134: =ROUND(K122*1.02,0) -> 2076 | M134: 423487.48 | N134: ='8. Funding_Adder_Revs'!L133 -> 0.0147 | O134: 516.229063 | P134: 17838.86978
F135: ='8. Funding_Adder_Revs'!F134 -> 2015-03-01 | G135: ='8. Funding_Adder_Revs'!G134 -> 2015 | H135: ='8. Funding_Adder_Revs'!H134 -> Q1 | J135: 423487.48 | K135: 1700 | M135: 425187.48 | N135: ='8. Funding_Adder_Revs'!L134 -> 0.0147 | O135: 518.772163 | P135: 18357.64195
F136: ='8. Funding_Adder_Revs'!F135 -> 2015-04-01 | G136: ='8. Funding_Adder_Revs'!G135 -> 2015 | H136: ='8. Funding_Adder_Revs'!H135 -> Q2 | J136: 425187.48 | K136: 3114 | M136: 428301.48 | N136: ='8. Funding_Adder_Revs'!L135 -> 0.011 | O136: 389.75519 | P136: 18747.39714
F137: ='8. Funding_Adder_Revs'!F136 -> 2015-05-01 | G137: ='8. Funding_Adder_Revs'!G136 -> 2015 | H137: ='8. Funding_Adder_Revs'!H136 -> Q2 | J137: 428301.48 | K137: 3078 | M137: 431379.48 | N137: ='8. Funding_Adder_Revs'!L136 -> 0.011 | O137: 392.60969 | P137: 19140.00683
F138: ='8. Funding_Adder_Revs'!F137 -> 2015-06-01 | G138: ='8. Funding_Adder_Revs'!G137 -> 2015 | H138: ='8. Funding_Adder_Revs'!H137 -> Q2 | J138: 431379.48 | K138: 2076 | M138: 433455.48 | N138: ='8. Funding_Adder_Revs'!L137 -> 0.011 | O138: 395.43119 | P138: 19535.43802
F139: ='8. Funding_Adder_Revs'!F138 -> 2015-07-01 | G139: ='8. Funding_Adder_Revs'!G138 -> 2015 | H139: ='8. Funding_Adder_Revs'!H138 -> Q3 | J139: 433455.48 | K139: 4795 | M139: 438250.48 | N139: ='8. Funding_Adder_Revs'!L138 -> 0.011 | O139: 397.33419 | P139: 19932.77221
F140: ='8. Funding_Adder_Revs'!F139 -> 2015-08-01 | G140: ='8. Funding_Adder_Revs'!G139 -> 2015 | H140: ='8. Funding_Adder_Revs'!H139 -> Q3 | J140: 438250.48 | K140: 1833 | M140: 440083.48 | N140: ='8. Funding_Adder_Revs'!L139 -> 0.011 | O140: 401.7296067 | P140: 20334.50181
F141: ='8. Funding_Adder_Revs'!F140 -> 2015-09-01 | G141: ='8. Funding_Adder_Revs'!G140 -> 2015 | H141: ='8. Funding_Adder_Revs'!H140 -> Q3 | J141: 440083.48 | K141: 6497 | M141: 446580.48 | N141: ='8. Funding_Adder_Revs'!L140 -> 0.011 | O141: 403.4098567 | P141: 20737.91167
F142: ='8. Funding_Adder_Revs'!F141 -> 2015-10-01 | G142: ='8. Funding_Adder_Revs'!G141 -> 2015 | H142: ='8. Funding_Adder_Revs'!H141 -> Q4 | J142: 446580.48 | K142: 378 | M142: 446958.48 | N142: ='8. Funding_Adder_Revs'!L141 -> 0.011 | O142: 409.36544 | P142: 21147.27711
F143: ='8. Funding_Adder_Revs'!F142 -> 2015-11-01 | G143: ='8. Funding_Adder_Revs'!G142 -> 2015 | H143: ='8. Funding_Adder_Revs'!H142 -> Q4 | J143: 446958.48 | K143: 2109 | M143: 449067.48 | N143: ='8. Funding_Adder_Revs'!L142 -> 0.011 | O143: 409.71194 | P143: 21556.98905
F144: ='8. Funding_Adder_Revs'!F143 -> 2015-12-01 | G144: ='8. Funding_Adder_Revs'!G143 -> 2015 | H144: ='8. Funding_Adder_Revs'!H143 -> Q4 | J144: 449067.48 | K144: =K132*1.02 -> 3846.471 | L144: =L132 -> 39841.95 | M144: 492755.901 | N144: ='8. Funding_Adder_Revs'!L143 -> 0.011 | O144: 411.64519 | P144: 21968.63424
K146: =SUM(K25:K144) -> 250559.131 | L146: =SUM(L25:L144) -> 242196.77 | M146: =K146+L146 -> 492755.901 | O146: =SUM(O25:O144) -> 21968.63424 | P146: =P144 -> 21968.63424

Sheet 8B. Opex_Interest_annual
B13: This worksheet calculates the interest on OM&A and amortization/depreciation expense, in the absence of monthly data.
B21: Year | D21: OM&A | F21: Amortization Expense | H21: Cumulative OM&A and Amortization Expense | J21: Average Cumulative OM&A and Amortization Expense | L21: Average Annual Prescribed Interest Rate for Deferral and Variance Accounts (from Sheets 8A and 8B) | N21: Simple Interest on OM&A and Amortization Expenses
D22: (from Sheet 5) | F22: (from Sheet 5)
B23: 2006 | D23: ='5. SM_Rev_Reqt'!G50 -> 0 | F23: ='5. SM_Rev_Reqt'!G58 -> 0 | H23: =D23+F23 -> 0 | J23: =H23/2 -> 0 | L23: =AVERAGE('8A. Opex_Interest_monthly'!$C$26:$C$28,'8A. Opex_Interest_monthly'!$C$26) -> 0.04365 | N23: =J23*L23 -> 0
B24: 2007 | D24: ='5. SM_Rev_Reqt'!I50 -> 9788.11 | F24: ='5. SM_Rev_Reqt'!I58 -> 0 | H24: =H23+D24+F24 -> 9788.11 | J24: =(H24+H23)/2 -> 4894.055 | L24: =AVERAGE('8A. Opex_Interest_monthly'!$C$29:$C$32) -> 0.047275 | N24: 231.3664501
B25: 2008 | D25: ='5. SM_Rev_Reqt'!K50 -> 9537.66 | F25: ='5. SM_Rev_Reqt'!K58 -> 0 | H25: 19325.77 | J25: 14556.94 | L25: =AVERAGE('8A. Opex_Interest_monthly'!$C$33:$C$36) -> 0.0398 | N25: 579.366212
B26: 2009 | D26: ='5. SM_Rev_Reqt'!M50 -> 18418.17 | F26: ='5. SM_Rev_Reqt'!M58 -> 18370.284 | H26: 56114.224 | J26: 37719.997 | L26: =AVERAGE('8A. Opex_Interest_monthly'!$C$37:$C$40) -> 0.011375 | N26: 429.0649659
B27: 2010 | D27: ='5. SM_Rev_Reqt'!O50 -> 61848.2 | F27: ='5. SM_Rev_Reqt'!O58 -> 39611.375 | H27: 157573.799 | J27: 106844.0115 | L27: =AVERAGE('8A. Opex_Interest_monthly'!$C$41:$C$44) -> 0.007975 | N27: 852.0809917
B28: 2011 | D28: ='5. SM_Rev_Reqt'!Q50 -> 38097.89 | F28: ='5. SM_Rev_Reqt'!Q58 -> 47604.62933 | H28: 243276.3183 | J28: 200425.0587 | L28: =AVERAGE('8A. Opex_Interest_monthly'!$C$45:$C$48) -> 0.0147 | N28: 2946.248362
B29: 2012 | D29: ='5. SM_Rev_Reqt'!S50 -> 21343.14 | F29: ='5. SM_Rev_Reqt'!S58 -> 53546.01933 | H29: 318165.4777 | J29: 280720.898 | L29: =AVERAGE('8A. Opex_Interest_monthly'!N97:N108) -> 0.0147 | N29: 4126.597201
B30: 2013 | D30: ='5. SM_Rev_Reqt'!U50 -> 25667.54 | F30: ='5. SM_Rev_Reqt'!U58 -> 54850.011 | H30: 398683.0287 | J30: 358424.2532 | L30: =AVERAGE('8A. Opex_Interest_monthly'!N109:N120) -> 0.0147 | N30: 5268.836522
B31: 2014 | D31: ='5. SM_Rev_Reqt'!W50 -> 32601.99 | F31: ='5. SM_Rev_Reqt'!W58 -> 55066.75533 | H31: =H30+D31+F31 -> 486351.774 | J31: =(H31+H30)/2 -> 442517.4013 | L31: =AVERAGE('8A. Opex_Interest_monthly'!N121:N132) -> 0.0147 | N31: =J31*L31 -> 6505.0058
B32: 2015 | D32: ='5. SM_Rev_Reqt'!Y50 -> 33254.0298 | F32: ='5. SM_Rev_Reqt'!Y58 -> 54592.37067 | H32: =H31+D32+F32 -> 574198.1745 | J32: =(H32+H31)/2 -> 530274.9742 | L32: =AVERAGE('8A. Opex_Interest_monthly'!N133:N144) -> 0.011925 | N32: =J32*L32 -> 6323.529068
B34: Cumulative Interest to 2012 | N34: =SUM(N23:N29) -> 9164.724183
B35: Cumulative Interest to 2013 | N35: =SUM(N23:N30) -> 14433.5607
B36: Cumulative Interest to 2014 | N36: =SUM(N23:N31) -> 20938.5665
B37: Cumulative Interest to 2015 | N37: =SUM(N23:N32) -> 27262.09557

Sheet 9. SMFA_SMDR_SMIRR
B14: This worksheet calculates the Smart Meter Disposition Rider and the Smart Meter Incremental Revenue Requirement Rate Rider, if applicable. This worksheet also calculates any new Smart Meter Funding Adder that a distributor may wish to request. However, please note that in many 2011 IRM decisions, the Board noted that current funding adders will cease on April 30, 2011 and that the Board's expectation is that distributors will file for a final review of prudence at the earliest opportunity. The Board also noted that the SMFA is a tool designed to provide advance funding and to mitigate the anticipated rate impact of smart meter costs when recovery of those costs is approved by the Board. The Board observed that the SMFA was not intended to be compensatory (return on and of capital) on a cumulative basis over the term the SMFA was in effect. The SMFA was initially designed to fund future investment, and not fully fund prior capital investment. Distributors that seek a new SMFA should provide evidence to support its proposal. This would include documentation of where the distributor is with respect to its smart meter deployment program, and reasons as to why the distributor's circumstances are such that continuation of the SMFA is warranted. Press the "UPDATE WORKSHEET" button after choosing the applicable adders/riders.
B20: Check if applicable
E22: Smart Meter Funding Adder (SMFA)
C24: X | E24: Smart Meter Disposition Rider (SMDR) | G24: The SMDR is calculated based on costs to December 31, 2011
E26: Smart Meter Incremental Revenue Requirement Rate Rider (SMIRR) | G26: The SMIRR is calculated based on the incremental revenue requirement associated with the recovery of capital related costs to December 31, 2012 and associated OM&A.
G28: 2006 | I28: 2007 | K28: 2008 | M28: 2009 | O28: 2010 | Q28: 2011 | S28: 2012 | U28: 2013 | W28: 2014 | Y28: 2015 | AA28: Total
C30: Deferred and forecasted Smart Meter Incremental Revenue Requirement (from Sheet 5) | G30: ='5. SM_Rev_Reqt'!G70 -> 0 | I30: ='5. SM_Rev_Reqt'!I70 -> 9915.178473 | K30: ='5. SM_Rev_Reqt'!K70 -> 9658.309727 | M30: ='5. SM_Rev_Reqt'!M70 -> 57159.03118 | O30: ='5. SM_Rev_Reqt'!O70 -> 135130.7657 | Q30: ='5. SM_Rev_Reqt'!Q70 -> 120822.8724 | S30: ='5. SM_Rev_Reqt'!S70 -> 110641.0286 | U30: ='5. SM_Rev_Reqt'!U70 -> 117074.4067 | W30: ='5. SM_Rev_Reqt'!W70 -> 121897.1465 | Y30: ='5. SM_Rev_Reqt'!Y70 -> 115112.0045 | AA30: =SUM(G30:W30) -> 682298.7393
C32: Interest on Deferred and forecasted OM&A and Amortization Expense (Sheet 8A/8B) | G32: =IF($C35="X",G35,IF($C37="X",G37,0)) -> 0 | I32: =IF($C35="X",I35,IF($C37="X",I37,0)) -> 0 | K32: =IF($C35="X",K35,IF($C37="X",K37,0)) -> 484.9987848 | M32: =IF($C35="X",M35,IF($C37="X",M37,0)) -> 249.8735412 | O32: =IF($C35="X",O35,IF($C37="X",O37,0)) -> 674.0282647 | Q32: =IF($C35="X",Q35,IF($C37="X",Q37,0)) -> 2380.161819 | S32: =IF($C35="X",S35,IF($C37="X",S37,0)) -> 3412.726802 | U32: =IF($C35="X",U35,IF($C37="X",U37,0)) -> 4301.064315 | W32: =IF($C35="X",W35,IF($C37="X",W37,0)) -> 5305.705557 | AA32: =SUM(G32:W32) -> 16808.55908
C33: (Check one of the boxes below)
C35: X | E35: Sheet 8A (Interest calculated on monthly balances) | G35: =IF($C35="X",SUM('8A. Opex_Interest_monthly'!O25:O36),"") -> 0 | I35: =IF($C35="X",SUM('8A. Opex_Interest_monthly'!O37:O48),"") -> 0 | K35: =IF($C35="X",SUM('8A. Opex_Interest_monthly'!O49:O60),"") -> 484.9987848 | M35: =IF($C35="X",SUM('8A. Opex_Interest_monthly'!O61:O72),"") -> 249.8735412 | O35: =IF($C35="X",SUM('8A. Opex_Interest_monthly'!O73:O84),"") -> 674.0282647 | Q35: =IF($C35="X",SUM('8A. Opex_Interest_monthly'!O85:O96),"") -> 2380.161819 | S35: =IF($C35="X",SUM('8A. Opex_Interest_monthly'!O97:O108),"") -> 3412.726802 | U35: =IF($C35="X",SUM('8A. Opex_Interest_monthly'!O109:O120),"") -> 4301.064315 | W35: =IF($C35="X",SUM('8A. Opex_Interest_monthly'!O121:O132),"") -> 5305.705557 | Y35: =IF($C35="X",SUM('8A. Opex_Interest_monthly'!Q133:Q144),"") -> 0 | AA35: =IF($C$35="X",SUM(G35:W35),"") -> 16808.55908
E37: Sheet 8B (Interest calculated on average annual balances) | G37: =IF($C37="X",'8B. Opex_Interest_annual'!N23,"") ->  | I37: =IF($C37="X",'8B. Opex_Interest_annual'!N24,"") ->  | K37: =IF($C37="X",'8B. Opex_Interest_annual'!N25,"") ->  | M37: =IF($C37="X",'8B. Opex_Interest_annual'!N26,"") ->  | O37: =IF($C37="X",'8B. Opex_Interest_annual'!N27,"") ->  | Q37: =IF($C37="X",'8B. Opex_Interest_annual'!N28,"") ->  | S37: =IF($C37="X",'8B. Opex_Interest_annual'!N29,"") ->  | U37: =IF($C37="X",'8B. Opex_Interest_annual'!N30,"") ->  | W37: =IF($C37="X",'8B. Opex_Interest_annual'!N31,"") ->  | Y37: =IF($C37="X",'8B. Opex_Interest_annual'!N32,"") ->  | AA37: =IF($C$37="X",SUM(G37:W37),"") -> 
C40: SMFA Revenues (from Sheet 8) | G40: =SUM('8. Funding_Adder_Revs'!K24:K35) -> 4160 | I40: =SUM('8. Funding_Adder_Revs'!K36:K47) -> 8295.5 | K40: =SUM('8. Funding_Adder_Revs'!K48:K59) -> 8258.21 | M40: =SUM('8. Funding_Adder_Revs'!K60:K71) -> 22445.56 | O40: =SUM('8. Funding_Adder_Revs'!K72:K83) -> 32730.96 | Q40: =SUM('8. Funding_Adder_Revs'!K84:K95) -> 61566.05 | S40: =SUM('8. Funding_Adder_Revs'!K96:K107) -> 34161.93 | U40: =SUM('8. Funding_Adder_Revs'!K108:K119) -> 0 | W40: =SUM('8. Funding_Adder_Revs'!K120:K131) -> 0 | Y40: =SUM('8. Funding_Adder_Revs'!M120:M131) -> 2522.76 | AA40: =SUM(G40:Y40) -> 174140.97
C42: SMFA Interest (from Sheet 8) | G42: =SUM('8. Funding_Adder_Revs'!M24:M35) -> 39.9 | I42: =SUM('8. Funding_Adder_Revs'!M36:M47) -> 380.53 | K42: =SUM('8. Funding_Adder_Revs'!M48:M59) -> 630.64 | M42: =SUM('8. Funding_Adder_Revs'!M60:M71) -> 281.94 | O42: =SUM('8. Funding_Adder_Revs'!M72:M83) -> 487.12 | Q42: =SUM('8. Funding_Adder_Revs'!M84:M95) -> 1442.93 | S42: =SUM('8. Funding_Adder_Revs'!M96:M107) -> 2397.17 | U42: =SUM('8. Funding_Adder_Revs'!M108:M119) -> 2522.76 | W42: =SUM('8. Funding_Adder_Revs'!M120:M131) -> 2522.76 | Y42: =SUM('8. Funding_Adder_Revs'!O120:O131) -> 2522.76 | AA42: =SUM(G42:Y42) -> 13228.51
C44: Net Deferred Revenue Requirement | G44: =(G30+G32)-(G40+G42) -> -4199.9 | I44: =(I30+I32)-(I40+I42) -> 1239.148473 | K44: =(K30+K32)-(K40+K42) -> 1254.458512 | M44: =(M30+M32)-(M40+M42) -> 34681.40473 | O44: =(O30+O32)-(O40+O42) -> 102586.714 | Q44: =(Q30+Q32)-(Q40+Q42) -> 60194.05417 | S44: =(S30+S32)-(S40+S42) -> 77494.65541 | U44: =(U30+U32)-(U40+U42) -> 118852.711 | W44: =(W30+W32)-(W40+W42) -> 124680.092 | Y44: =(Y30+Y32)-(Y40+Y42) -> 110066.4845 | AA44: =(AA30+AA32)-(AA40+AA42) -> 511737.8183
C46: Number of Metered Customers (average for 2015 test year) | Y46: 2731
D47: - Number of metered customers for which smart meter were deployed as part of program). Residential and GS < 50 kW customer classes and any other metered classes involved (e.g. GS 50 to 4999 kW for which interval meters were upgraded to utilize AMI and ODS assets)
C49: Calculation of Smart Meter Funding Adder (per metered customer per month)
D51: Net Deferred Revenues | F51: May 1, 2006 to December 31, 2014 | G51: =AA44 -> 511737.8183
D53: SMFA | F53: XXX 1, 2015 to XXX 30/31, 201X | G53: =IF(Y46=0,"",ROUND(U44/(Y46*12),2)) -> 3.63
D55: Check: Forecasted SMFA Revenues for 2015 test year | G55: =IF(W46=0,"",G53*W46*12) -> 
C57: Calculation of Smart Meter Disposition Rider (per metered customer per month)
D59: Years for collection or refunding | G59: 2
D61: Deferred Incremental Revenue Requirement from 2006 to December 31, 2014 | G61: =SUM(G30:W30)+SUM(G32:W32) -> 699107.2983
E62: plus Interest on OM&A and Amortization
D63: SMFA Revenues collected from 2006 to 2015 test year (inclusive) | G63: =AA40+SUM(G42:Y42) -> 187369.48
E64: Plus Simple Interest on SMFA Revenues
D65: Net Deferred Revenue Requirement | G65: =G61-G63 -> 511737.8183
D67: SMDR | F67: XXX 1, 2015 to XXX 30/31, 201X | G67: =IF(Y46=0,"",ROUND(G65/(Y46*12*G59),2)) -> 7.81
D69: Check: Forecasted SMDR Revenues | G69: =IF(ISERROR(G67*Y46*12*G59), "", G67*Y46*12*G59) -> 511898.64 | I69: =IF(ISERROR(G69/G65), "Error", IF(G69/G65>=95%, "Match", "Error")) -> Match
C71: Calculation of Smart Meter Incremental Revenue Requirement Rate Rider (per metered customer per month)
D73: Incremental Revenue Requirement for 2015 | G73: =Y30 -> 115112.0045
D75: SMIRR | G75: =IF(ISERROR(ROUND(G73/(Y46*12),2)), "", ROUND(G73/(Y46*12),2)) -> 3.51
D77: Check: Forecasted SMIRR Revenues | G77: =IF(ISERROR(G75*Y46*12), "", G75*Y46*12) -> 115029.72 | I77: =IF(ISERROR(G77/G73), "Error", IF(G77/G73>=95%, "Match", "Error")) -> Match

Sheet 10A. Cost_Alloc_SMDR
B13: This worksheet calculates the class-specific SMDRs according to accepted practice. A distributor may choose to use its own methodology, but should provide analogous support for its allocation and derivation of class-specific SMDRs and SMIRRs.
B20: Class-specific SMDRs
B22: Revenue Requirement for Historical Years | C22: 2006 | E22: 2007 | G22: 2008 | I22: 2009 | K22: 2010 | M22: 2011 | O22: 2012 | Q22: 2013 | S22: 2014 | U22: Total 2006 to 2014 | V22: Explanation / Allocator | X22: Residential | Z22: GS < 50 kW | AB22: GS 50 to 4999 kW | AD22: Intermediate | AF22: Total
V23: Check Row if SMDR/SMIRR apply to class | X23: X | Z23: X | AB23: X | AD23: X | AF23: =COUNTIF(X23:AD23,"X") -> 4
X24: % | Z24: % | AB24: % | AD24: %
V25: Weighted Meter Cost - Capital | X25: 0.7467 | Z25: 0.2186 | AB25: 0.033 | AD25: 0.0017 | AF25: =X25+Z25+AB25+AD25 -> 1
B26: Return on Capital | C26: ='5. SM_Rev_Reqt'!G47 -> 0 | E26: ='5. SM_Rev_Reqt'!I47 -> 111.9515081 | G26: ='5. SM_Rev_Reqt'!K47 -> 107.7886723 | I26: ='5. SM_Rev_Reqt'!M47 -> 16430.89359 | K26: ='5. SM_Rev_Reqt'!O47 -> 28522.65282 | M26: ='5. SM_Rev_Reqt'!Q47 -> 31031.33305 | O26: ='5. SM_Rev_Reqt'!S47 -> 32101.05425 | Q26: ='5. SM_Rev_Reqt'!U47 -> 29680.02245 | S26: ='5. SM_Rev_Reqt'!W47 -> 26646.18727 | U26: =SUM(C26,E26,G26,I26,K26,M26,O26,Q26,S26) -> 164631.8836 | V26: Allocated per class | X26: =U26*X25 -> 122930.6275 | Z26: =U26*Z25 -> 35988.52976 | AB26: =U26*AB25 -> 5432.852159 | AD26: =U26*AD25 -> 279.8742022
B28: Depreciation/Amortization expense and related interest | C28: ='5. SM_Rev_Reqt'!G58 -> 0 | E28: ='5. SM_Rev_Reqt'!I58 -> 0 | G28: ='5. SM_Rev_Reqt'!K58 -> 0 | I28: ='5. SM_Rev_Reqt'!M58 -> 18370.284 | K28: ='5. SM_Rev_Reqt'!O58 -> 39611.375 | M28: ='5. SM_Rev_Reqt'!Q58 -> 47604.62933 | O28: ='5. SM_Rev_Reqt'!S58 -> 53546.01933 | Q28: ='5. SM_Rev_Reqt'!U58 -> 54850.011 | S28: ='5. SM_Rev_Reqt'!W58 -> 55066.75533
C29: =IF(C28+C32=0,0,'9. SMFA_SMDR_SMIRR'!G32*C28/(C28+C32)) -> 0 | E29: =IF(E28+E32=0,0,'9. SMFA_SMDR_SMIRR'!I32*E28/(E28+E32)) -> 0 | G29: =IF(G28+G32=0,0,'9. SMFA_SMDR_SMIRR'!K32*G28/(G28+G32)) -> 0 | I29: =IF(I28+I32=0,0,'9. SMFA_SMDR_SMIRR'!M32*I28/(I28+I32)) -> 124.7741456 | K29: =IF(K28+K32=0,0,'9. SMFA_SMDR_SMIRR'!O32*K28/(K28+K32)) -> 263.1509776 | M29: =IF(M28+M32=0,0,'9. SMFA_SMDR_SMIRR'!Q32*M28/(M28+M32)) -> 1322.093236 | O29: =IF(O28+O32=0,0,'9. SMFA_SMDR_SMIRR'!S32*O28/(O28+O32)) -> 2440.111986 | Q29: =IF(Q28+Q32=0,0,'9. SMFA_SMDR_SMIRR'!U32*Q28/(Q28+Q32)) -> 2929.962748 | S29: =IF(S28+S32=0,0,'9. SMFA_SMDR_SMIRR'!W32*S28/(S28+S32)) -> 3332.635692 | V29: =V25 -> Weighted Meter Cost - Capital | X29: =X25 -> 0.7467 | Z29: =Z25 -> 0.2186 | AB29: =AB25 -> 0.033 | AD29: =AD25 -> 0.0017 | AF29: =X29+Z29+AB29+AD29 -> 1
C30: =C28+C29 -> 0 | E30: =E28+E29 -> 0 | G30: =G28+G29 -> 0 | I30: =I28+I29 -> 18495.05815 | K30: =K28+K29 -> 39874.52598 | M30: =M28+M29 -> 48926.72257 | O30: =O28+O29 -> 55986.13132 | Q30: =Q28+Q29 -> 57779.97375 | S30: =S28+S29 -> 58399.39103 | U30: =SUM(C30,E30,G30,I30,K30,M30,O30,Q30,S30) -> 279461.8028 | V30: =V26 -> Allocated per class | X30: =U30*X29 -> 208674.1281 | Z30: =U30*Z29 -> 61090.35009 | AB30: =U30*AB29 -> 9222.239492 | AD30: =U30*AD29 -> 475.0850647
B32: Operating Expenses and related interest | C32: ='5. SM_Rev_Reqt'!G50 -> 0 | E32: ='5. SM_Rev_Reqt'!I50 -> 9788.11 | G32: ='5. SM_Rev_Reqt'!K50 -> 9537.66 | I32: ='5. SM_Rev_Reqt'!M50 -> 18418.17 | K32: ='5. SM_Rev_Reqt'!O50 -> 61848.2 | M32: ='5. SM_Rev_Reqt'!Q50 -> 38097.89 | O32: ='5. SM_Rev_Reqt'!S50 -> 21343.14 | Q32: ='5. SM_Rev_Reqt'!U50 -> 25667.54 | S32: ='5. SM_Rev_Reqt'!W50 -> 32601.99 | V32: Number of Smart Meters installed by Class | X32: # | Z32: # | AB32: # | AD32: #
C33: ='9. SMFA_SMDR_SMIRR'!G32 -> 0 | E33: ='9. SMFA_SMDR_SMIRR'!I32 -> 0 | G33: =IF((G28+G32)=0,0,'9. SMFA_SMDR_SMIRR'!K32*G32/(G28+G32)) -> 484.9987848 | I33: =IF((I28+I32)=0,0,'9. SMFA_SMDR_SMIRR'!M32*I32/(I28+I32)) -> 125.0993956 | K33: =IF((K28+K32)=0,0,'9. SMFA_SMDR_SMIRR'!O32*K32/(K28+K32)) -> 410.877287 | M33: =IF((M28+M32)=0,0,'9. SMFA_SMDR_SMIRR'!Q32*M32/(M28+M32)) -> 1058.068583 | O33: =IF((O28+O32)=0,0,'9. SMFA_SMDR_SMIRR'!S32*O32/(O28+O32)) -> 972.6148158 | Q33: =IF((Q28+Q32)=0,0,'9. SMFA_SMDR_SMIRR'!U32*Q32/(Q28+Q32)) -> 1371.101567 | S33: =IF((S28+S32)=0,0,'9. SMFA_SMDR_SMIRR'!W32*S32/(S28+S32)) -> 1973.069865 | X33: 2280 | Z33: 471 | AB33: 40 | AD33: 2
C34: =C32+C33 -> 0 | E34: =E32+E33 -> 9788.11 | G34: =G32+G33 -> 10022.65878 | I34: =I32+I33 -> 18543.2694 | K34: =K32+K33 -> 62259.07729 | M34: =M32+M33 -> 39155.95858 | O34: =O32+O33 -> 22315.75482 | Q34: =Q32+Q33 -> 27038.64157 | S34: =S32+S33 -> 34575.05987 | U34: =SUM(C34,E34,G34,I34,K34,M34,O34,Q34,S34) -> 223698.5303 | V34: Allocated per class | X34: =IF(SUM($X33,$Z33,$AB33,$AD33)=0,0,$U34*X33/(SUM($X33,$Z33,$AB33,$AD33))) -> 182611.0451 | Z34: =IF(SUM($X33,$Z33,$AB33,$AD33)=0,0,$U34*Z33/(SUM($X33,$Z33,$AB33,$AD33))) -> 37723.59748 | AB34: =IF(SUM($X33,$Z33,$AB33,$AD33)=0,0,$U34*AB33/(SUM($X33,$Z33,$AB33,$AD33))) -> 3203.702546 | AD34: =IF(SUM($X33,$Z33,$AB33,$AD33)=0,0,$U34*AD33/(SUM($X33,$Z33,$AB33,$AD33))) -> 160.1851273
B36: Revenue Requirement before Taxes/PILs | U36: =U26+U30+U34 -> 667792.2167 | X36: =X26+X30+X34 -> 514215.8008 | Z36: =Z26+Z30+Z34 -> 134802.4773 | AB36: =AB26+AB30+AB34 -> 17858.7942 | AD36: =AD26+AD30+AD34 -> 915.1443942 | AF36: =U36-SUM(X36,Z36,AB36,AD36) -> 0
V38: Revenue Requirement before PILs | X38: =IF(X36=0,0,X36/SUM($X36,$Z36,$AB36,$AD36)) -> 0.7700236509 | Z38: =IF(Z36=0,0,Z36/SUM($X36,$Z36,$AB36,$AD36)) -> 0.2018629058 | AB38: =IF(AB36=0,0,AB36/SUM($X36,$Z36,$AB36,$AD36)) -> 0.02674304035 | AD38: =IF(AD36=0,0,AD36/SUM($X36,$Z36,$AB36,$AD36)) -> 0.001370402906 | AF38: =X38+Z38+AB38+AD38 -> 1
B40: Grossed-up Taxes/PILs | C40: ='5. SM_Rev_Reqt'!G68 -> 0 | E40: ='5. SM_Rev_Reqt'!I68 -> 15.11696492 | G40: ='5. SM_Rev_Reqt'!K68 -> 12.8610552 | I40: ='5. SM_Rev_Reqt'!M68 -> 3939.683599 | K40: ='5. SM_Rev_Reqt'!O68 -> 5148.537911 | M40: ='5. SM_Rev_Reqt'!Q68 -> 4089.019967 | O40: ='5. SM_Rev_Reqt'!S68 -> 3650.815024 | Q40: ='5. SM_Rev_Reqt'!U68 -> 6876.833264 | S40: ='5. SM_Rev_Reqt'!W68 -> 7582.213858 | U40: =SUM(C40,E40,G40,I40,K40,M40,O40,Q40,S40) -> 31315.08164 | X40: =U40*X38 -> 24113.3535 | Z40: =U40*Z38 -> 6321.353376 | AB40: =U40*AB38 -> 837.460492 | AD40: =U40*AD38 -> 42.91427888
B42: Total Revenue Requirement plus interest on OM&A and depreciation expense | U42: =U36+U40 -> 699107.2983 | X42: =X36+X40 -> 538329.1543 | Z42: =Z36+Z40 -> 141123.8307 | AB42: =AB40+AB36 -> 18696.25469 | AD42: =AD40+AD36 -> 958.0586731
V43: Percentage of costs allocated to each class | X43: =IF(SUM($X42,$Z42,$AB42,$AD42)=0,0,X42/(SUM($X42,$Z42,$AB42,$AD42))) -> 0.7700236509 | Z43: =IF(SUM($X42,$Z42,$AB42,$AD42)=0,0,Z42/(SUM($X42,$Z42,$AB42,$AD42))) -> 0.2018629058 | AB43: =IF(SUM($X42,$Z42,$AB42,$AD42)=0,0,AB42/(SUM($X42,$Z42,$AB42,$AD42))) -> 0.02674304035 | AD43: =IF(SUM($X42,$Z42,$AB42,$AD42)=0,0,AD42/(SUM($X42,$Z42,$AB42,$AD42))) -> 0.001370402906
U44: =U42-'9. SMFA_SMDR_SMIRR'!G61 -> 0 | V44: Percentage of costs for classes with SMDR/SMIRR | X44: =IF(X23="X",X43,0) -> 0.7700236509 | Z44: =IF(Z23="X",Z43,0) -> 0.2018629058 | AB44: =IF(AB23="X",AB43,0) -> 0.02674304035 | AD44: =IF(AD23="X",AD43,0) -> 0.001370402906
X45: =IF(SUM($X44,$Z44,$AB44,$AD44)=0,0,X44/SUM($X44,$Z44,$AB44,$AD44)) -> 0.7700236509 | Z45: =IF(SUM($X44,$Z44,$AB44,$AD44)=0,0,Z44/SUM($X44,$Z44,$AB44,$AD44)) -> 0.2018629058 | AB45: =IF(SUM($X44,$Z44,$AB44,$AD44)=0,0,AB44/SUM($X44,$Z44,$AB44,$AD44)) -> 0.02674304035 | AD45: =IF(SUM($X44,$Z44,$AB44,$AD44)=0,0,AD44/SUM($X44,$Z44,$AB44,$AD44)) -> 0.001370402906
X47: % | Z47: % | AB47: % | AD47: %
O48: SMFA Revenues directly attributable to class | X48: 0.8438 | Z48: 0.1415 | AB48: 0.0139 | AD48: 9e-05 | AF48: =X48+Z48+AB48+AD48 -> 0.99929
O49: Residual SMFA Revenues (from other metered classes) attributed evenly | X49: =IF(X23="X",X48,0) -> 0.8438 | Z49: =IF(Z23="X",Z48,0) -> 0.1415 | AB49: =IF(AB23="X",AB48,0) -> 0.0139 | AD49: =IF(AD23="X",AD48,0) -> 9e-05 | AF49: =X49+Z49+AB49+AD49 -> 0.99929
X50: =IF(X23="X",(100%-$AF49)/$AF$23,0) -> 0.0001775 | Z50: =IF(Z23="X",(100%-$AF49)/$AF$23,0) -> 0.0001775 | AB50: =IF(AB23="X",(100%-$AF49)/$AF$23,0) -> 0.0001775 | AD50: =IF(AD23="X",(100%-$AF49)/$AF$23,0) -> 0.0001775
O51: Total | X51: =X48+X50 -> 0.8439775 | Z51: =Z48+Z50 -> 0.1416775 | AB51: =AB48+AB50 -> 0.0140775 | AD51: =AD48+AD50 -> 0.0002675
B53: SMFA Revenues plus interest expense | U53: ='9. SMFA_SMDR_SMIRR'!G63 -> 187369.48 | X53: =U53*X51 -> 158135.6253 | Z53: =U53*Z51 -> 26546.0395 | AB53: =U53*AB51 -> 2637.693855 | AD53: =U53*AD51 -> 50.1213359
B55: Net Deferred Revenue Requirement to be recovered via SMDR | U55: =U42-U53 -> 511737.8183 | X55: =IF(X23="X",X42-X53,0) -> 380193.529 | Z55: =IF(Z23="X",Z42-Z53,0) -> 114577.7912 | AB55: =IF(AB23="X",AB42-AB53,0) -> 16058.56083 | AD55: =IF(AD23="X",AD42-AD53,0) -> 907.9373372
B57: Average number of metered customers by class (2015), for customer classes with smart meters deployed | U57: Average number of customers (2015), for applicable classes | X57: 2273 | Z57: 467 | AB57: 40 | AD57: 2
B59: Number of Years for SMDR recovery | U59: 4 | V59: years | X59: =U59 -> 4 | Z59: =U59 -> 4 | AB59: =U59 -> 4 | AD59: =U59 -> 4
B61: Smart Meter Disposition Rider ($/month per metered customer in the customer class) | X61: =IF(X23="X",IF(X57*X59=0,"",ROUND(X55/(X57*X59*12),2)),"") -> 3.48 | Z61: =IF(Z23="X",IF(Z57*Z59=0,"",ROUND(Z55/(Z57*Z59*12),2)),"") -> 5.11 | AB61: =IF(AB23="X",IF(AB57*AB59=0,"",ROUND(AB55/(AB57*AB59*12),2)),"") -> 8.36 | AD61: =IF(AD23="X",IF(AD57*AD59=0,"",ROUND(AD55/(AD57*AD59*12),2)),"") -> 9.46
B63: Estimated SMDR Revenues | U63: =X63+Z63+AB63+AD63 -> 511187.04 | X63: =IF(X23="X",IF(X57=0,0,X61*X59*X57*12),0) -> 379681.92 | Z63: =IF(Z23="X",IF(Z57=0,0,Z61*Z59*Z57*12),0) -> 114545.76 | AB63: =IF(AB23="X",IF(AB57=0,0,AB61*AB59*AB57*12),0) -> 16051.2 | AD63: =IF(AD23="X",IF(AD57=0,0,AD61*AD59*AD57*12),0) -> 908.16
U65: =U55-U63 -> 550.778346

Sheet 10B. Cost_Alloc_SMIRR
B13: This worksheet calculates the class-specific SMIRRs according to accepted practice. A distributor may choose to use its own methodology, but should provide analogous support for its allocation and derivation of class-specific SMDRs and SMIRRs.
B20: Class-specific SMDRs
B22: Revenue Requirement for 2015 | C22: 2006 | E22: 2007 | G22: 2008 | I22: 2009 | K22: 2010 | M22: 2011 | O22: 2012 | Q22: 2015 | R22: Explanation / Allocator | T22: Residential | V22: GS < 50 kW | X22: GS 50 to 4999 kW | Z22: ='10A. Cost_Alloc_SMDR'!AD22 -> Intermediate | AB22: Total
R23: Check Row if SMDR/SMIRR apply to class | T23: =IF('10A. Cost_Alloc_SMDR'!X23="X","X","") -> X | V23: =IF('10A. Cost_Alloc_SMDR'!Z23="X","X","") -> X | X23: =IF('10A. Cost_Alloc_SMDR'!AB23="X","X","") -> X | Z23: =IF('10A. Cost_Alloc_SMDR'!AD23="X","X","") -> X | AB23: =COUNTIF(T23:Z23,"X") -> 4
T24: % | V24: % | X24: % | Z24: %
R25: Weighted Meter Cost - Capital | T25: ='10A. Cost_Alloc_SMDR'!X25 -> 0.7467 | V25: ='10A. Cost_Alloc_SMDR'!Z25 -> 0.2186 | X25: ='10A. Cost_Alloc_SMDR'!AB25 -> 0.033 | Z25: ='10A. Cost_Alloc_SMDR'!AD25 -> 0.0017 | AB25: =T25+V25+X25+Z25 -> 1
B26: Return on Capital | C26: ='5. SM_Rev_Reqt'!G47 -> 0 | E26: ='5. SM_Rev_Reqt'!I47 -> 111.9515081 | G26: ='5. SM_Rev_Reqt'!K47 -> 107.7886723 | I26: ='5. SM_Rev_Reqt'!M47 -> 16430.89359 | K26: ='5. SM_Rev_Reqt'!O47 -> 28522.65282 | M26: ='5. SM_Rev_Reqt'!Q47 -> 31031.33305 | O26: ='5. SM_Rev_Reqt'!S47 -> 32101.05425 | Q26: ='5. SM_Rev_Reqt'!Y47 -> 19822.52631 | R26: Allocated per class | T26: =Q26*T25 -> 14801.48039 | V26: =Q26*V25 -> 4333.204251 | X26: =Q26*X25 -> 654.1433682 | Z26: =Q26*Z25 -> 33.69829473
B28: Depreciation/Amortization expense | C28: ='5. SM_Rev_Reqt'!G58 -> 0 | E28: ='5. SM_Rev_Reqt'!I58 -> 0 | G28: ='5. SM_Rev_Reqt'!K58 -> 0 | I28: ='5. SM_Rev_Reqt'!M58 -> 18370.284 | K28: ='5. SM_Rev_Reqt'!O58 -> 39611.375 | M28: ='5. SM_Rev_Reqt'!Q58 -> 47604.62933 | O28: ='5. SM_Rev_Reqt'!S58 -> 53546.01933
C29: =IF(C28+C32=0,0,'9. SMFA_SMDR_SMIRR'!G32*C28/(C28+C32)) -> 0 | E29: =IF(E28+E32=0,0,'9. SMFA_SMDR_SMIRR'!I32*E28/(E28+E32)) -> 0 | G29: =IF(G28+G32=0,0,'9. SMFA_SMDR_SMIRR'!K32*G28/(G28+G32)) -> 0 | I29: =IF(I28+I32=0,0,'9. SMFA_SMDR_SMIRR'!M32*I28/(I28+I32)) -> 124.7741456 | K29: =IF(K28+K32=0,0,'9. SMFA_SMDR_SMIRR'!O32*K28/(K28+K32)) -> 263.1509776 | M29: =IF(M28+M32=0,0,'9. SMFA_SMDR_SMIRR'!Q32*M28/(M28+M32)) -> 1322.093236 | O29: =IF(O28+O32=0,0,'9. SMFA_SMDR_SMIRR'!S32*O28/(O28+O32)) -> 2440.111986 | R29: =R25 -> Weighted Meter Cost - Capital | T29: =T25 -> 0.7467 | V29: =V25 -> 0.2186 | X29: =X25 -> 0.033 | Z29: =Z25 -> 0.0017 | AB29: =T29+V29+X29+Z29 -> 1
C30: =C28+C29 -> 0 | E30: =E28+E29 -> 0 | G30: =G28+G29 -> 0 | I30: =I28+I29 -> 18495.05815 | K30: =K28+K29 -> 39874.52598 | M30: =M28+M29 -> 48926.72257 | O30: =O28+O29 -> 55986.13132 | Q30: ='5. SM_Rev_Reqt'!Y58 -> 54592.37067 | R30: =R26 -> Allocated per class | T30: =Q30*T29 -> 40764.12318 | V30: =Q30*V29 -> 11933.89223 | X30: =Q30*X29 -> 1801.548232 | Z30: =Q30*Z29 -> 92.80703013
B32: Operating Expenses | C32: ='5. SM_Rev_Reqt'!G50 -> 0 | E32: ='5. SM_Rev_Reqt'!I50 -> 9788.11 | G32: ='5. SM_Rev_Reqt'!K50 -> 9537.66 | I32: ='5. SM_Rev_Reqt'!M50 -> 18418.17 | K32: ='5. SM_Rev_Reqt'!O50 -> 61848.2 | M32: ='5. SM_Rev_Reqt'!Q50 -> 38097.89 | O32: ='5. SM_Rev_Reqt'!S50 -> 21343.14 | Q32: ='5. SM_Rev_Reqt'!Y50 -> 33254.0298 | R32: Number of Smart Meters installed by Class | T32: # | V32: # | X32: # | Z32: #
C33: ='9. SMFA_SMDR_SMIRR'!G32 -> 0 | E33: ='9. SMFA_SMDR_SMIRR'!I32 -> 0 | G33: ='9. SMFA_SMDR_SMIRR'!K32 -> 484.9987848 | I33: ='9. SMFA_SMDR_SMIRR'!M32 -> 249.8735412 | K33: ='9. SMFA_SMDR_SMIRR'!O32 -> 674.0282647 | M33: ='9. SMFA_SMDR_SMIRR'!Q32 -> 2380.161819 | O33: ='9. SMFA_SMDR_SMIRR'!S32 -> 3412.726802 | T33: ='10A. Cost_Alloc_SMDR'!X33 -> 2280 | V33: ='10A. Cost_Alloc_SMDR'!Z33 -> 471 | X33: ='10A. Cost_Alloc_SMDR'!AB33 -> 40 | Z33: ='10A. Cost_Alloc_SMDR'!AD33 -> 2
C34: =C32+C33 -> 0 | E34: =E32+E33 -> 9788.11 | G34: =G32+G33 -> 10022.65878 | I34: =I32+I33 -> 18668.04354 | K34: =K32+K33 -> 62522.22826 | M34: =M32+M33 -> 40478.05182 | O34: =O32+O33 -> 24755.8668 | Q34: =SUM(T34,V34,X34,Z34) -> 33254.0298 | R34: Allocated per class | T34: =IF(SUM($T33,$V33,$X33,$Z33)=0,0,$Q32*T33/(SUM($T33,$V33,$X33,$Z33))) -> 27146.14678 | V34: =IF(SUM($T33,$V33,$X33,$Z33)=0,0,$Q32*V33/(SUM($T33,$V33,$X33,$Z33))) -> 5607.822426 | X34: =IF(SUM($T33,$V33,$X33,$Z33)=0,0,$Q32*X33/(SUM($T33,$V33,$X33,$Z33))) -> 476.248189 | Z34: =IF(SUM($T33,$V33,$X33,$Z33)=0,0,$Q32*Z33/(SUM($T33,$V33,$X33,$Z33))) -> 23.81240945
B36: Revenue Requirement before Taxes/PILs | Q36: =Q26+Q30+Q32 -> 107668.9268 | T36: =T26+T30+T34 -> 82711.75035 | V36: =V26+V30+V34 -> 21874.9189 | X36: =X26+X30+X34 -> 2931.939789 | Z36: =Z26+Z30+Z34 -> 150.3177343 | AB36: =Q36-SUM(T36,V36,X36,Z36) -> 0
R38: Revenue Requirement before PILs | T38: =IF(T36=0,0,T36/SUM($T36,$V36,$X36,$Z36)) -> 0.7682044655 | V38: =IF(V36=0,0,V36/SUM($T36,$V36,$X36,$Z36)) -> 0.2031683566 | X38: =IF(X36=0,0,X36/SUM($T36,$V36,$X36,$Z36)) -> 0.02723106728 | Z38: =IF(Z36=0,0,Z36/SUM($T36,$V36,$X36,$Z36)) -> 0.00139611064 | AB38: =T38+V38+X38+Z38 -> 1
B40: Grossed-up Taxes/PILs | C40: ='5. SM_Rev_Reqt'!G68 -> 0 | E40: ='5. SM_Rev_Reqt'!I68 -> 15.11696492 | G40: ='5. SM_Rev_Reqt'!K68 -> 12.8610552 | I40: ='5. SM_Rev_Reqt'!M68 -> 3939.683599 | K40: ='5. SM_Rev_Reqt'!O68 -> 5148.537911 | M40: ='5. SM_Rev_Reqt'!Q68 -> 4089.019967 | O40: ='5. SM_Rev_Reqt'!S68 -> 3650.815024 | Q40: ='5. SM_Rev_Reqt'!Y68 -> 7443.077741 | T40: =Q40*T38 -> 5717.805558 | V40: =Q40*V38 -> 1512.197872 | X40: =Q40*X38 -> 202.6829508 | Z40: =Q40*Z38 -> 10.39136003
B42: Total Revenue Requirement for 2013 | Q42: =Q36+Q40 -> 115112.0045 | T42: =T36+T40 -> 88429.55591 | V42: =V36+V40 -> 23387.11678 | X42: =X40+X36 -> 3134.62274 | Z42: =Z40+Z36 -> 160.7090943
R43: Percentage of costs allocated to each class | T43: =IF(SUM($T42,$V42,$X42,$Z42)=0,0,T42/(SUM($T42,$V42,$X42,$Z42))) -> 0.7682044655 | V43: =IF(SUM($T42,$V42,$X42,$Z42)=0,0,V42/(SUM($T42,$V42,$X42,$Z42))) -> 0.2031683566 | X43: =IF(SUM($T42,$V42,$X42,$Z42)=0,0,X42/(SUM($T42,$V42,$X42,$Z42))) -> 0.02723106728 | Z43: =IF(SUM($T42,$V42,$X42,$Z42)=0,0,Z42/(SUM($T42,$V42,$X42,$Z42))) -> 0.00139611064
Q44: =Q42-'9. SMFA_SMDR_SMIRR'!G73 -> 0 | R44: Percentage of costs for classes with SMDR/SMIRR | T44: =IF(T23="X",T43,0) -> 0.7682044655 | V44: =IF(V23="X",V43,0) -> 0.2031683566 | X44: =IF(X23="X",X43,0) -> 0.02723106728 | Z44: =IF(Z23="X",Z43,0) -> 0.00139611064
T45: =IF(SUM($T44,$V44,$X44,$Z44)=0,0,T44/SUM($T44,$V44,$X44,$Z44)) -> 0.7682044655 | V45: =IF(SUM($T44,$V44,$X44,$Z44)=0,0,V44/SUM($T44,$V44,$X44,$Z44)) -> 0.2031683566 | X45: =IF(SUM($T44,$V44,$X44,$Z44)=0,0,X44/SUM($T44,$V44,$X44,$Z44)) -> 0.02723106728 | Z45: =IF(SUM($T44,$V44,$X44,$Z44)=0,0,Z44/SUM($T44,$V44,$X44,$Z44)) -> 0.00139611064
B48: Average number of metered customers by class (2013) | T48: ='10A. Cost_Alloc_SMDR'!X57 -> 2273 | V48: ='10A. Cost_Alloc_SMDR'!Z57 -> 467 | X48: ='10A. Cost_Alloc_SMDR'!AB57 -> 40 | Z48: ='10A. Cost_Alloc_SMDR'!AD57 -> 2
B50: The SMIRR is recovered as an annualized rate until the effective date of the distributor's next rebased rates resulting from a cost of service application | Q50: 1 | R50: year | T50: =Q50 -> 1 | V50: =Q50 -> 1 | X50: =Q50 -> 1 | Z50: =Q50 -> 1
B52: Smart Meter Incremental Revenue Requirement Rate Rider ($/month per metered customer in the customer class) | T52: =IF(T23="X",IF(T48*T50=0,"",ROUND(T42/(T48*T50*12),2)),"") -> 3.24 | V52: =IF(V23="X",IF(V48*V50=0,"",ROUND(V42/(V48*V50*12),2)),"") -> 4.17 | X52: =IF(X23="X",IF(X48*X50=0,"",ROUND(X42/(X48*X50*12),2)),"") -> 6.53 | Z52: =IF(Z23="X",IF(Z48*Z50=0,"",ROUND(Z42/(Z48*Z50*12),2)),"") -> 6.7
B54: Estimated SMIRR Revenues | Q54: =T54+V54+X54+Z54 -> 115038.12 | T54: =IF(T23="X",IF(T48=0,0,T52*T50*T48*12),0) -> 88374.24 | V54: =IF(V23="X",IF(V48=0,0,V52*V50*V48*12),0) -> 23368.68 | X54: =IF(X23="X",IF(X48=0,0,X52*X50*X48*12),0) -> 3134.4 | Z54: =IF(Z23="X",IF(Z48=0,0,Z52*Z50*Z48*12),0) -> 160.8
Q56: =Q54-Q42 -> -73.88451693
